{"text_format":"3","workbook":"xlsx","n_sheets":1,"sheets":["2包"],"not_rendered":{"defined_names":1},"read":"whole","date_system":"1900"}

{"sheet":"2包","index":0,"n_rows":141,"n_cols":12,"rows_kept":141,"merged":[[0,0,0,11],[140,0,140,8]]}
["合肥市包河区BH202437号地块装饰固定家具、木饰面、木门采购及安装项目02包"]
["序号","楼栋","工程名称","序号","项目编码","清单(子目)名称","总包清单特征（仅供报价参考）","固定家具、木饰面、木门清单特征描述\n（报价特征范围）","单位","工程量","单价（元）","合价（元）"]
[1,"3#","工程名称：3#-公区","277","011207001051","墙面装饰板","1. 部位：客房走道等\n2. 龙骨材料种类、规格：热镀锌钢龙骨（不分规格型号，投标人综合考虑）\n3. 基层材料种类、规格：12mm阻燃夹板，局部9mm阻燃夹板或双层\n4. 面层材料品种、规格、颜色：12mm深橡木饰面（WD-B01），局部凹槽工艺及灯槽成型等综合考虑\n5. 防护材料种类：所有装修用木基层均应进行防火、防腐处理\n6. 施工时面层颜色、样式由甲方和设计单位确认选样，投标人综合考虑报价，加工、切割、折边、损耗等不另计，中标后综合单价不予调整\n7. 未尽事宜详见设计图纸、图集、设计补充说明、招标文件、政府相关文件及规范等其它资料，满足验收要求","1. 部位：客房走道等\n4. 面层材料品种、规格、颜色：12mm深橡木饰面（WD-B01），局部凹槽工艺及灯槽成型等综合考虑\n5. 防护材料种类：所有装修用木基层均应进行防火、防腐处理\n6. 施工时面层颜色、样式由甲方和设计单位确认选样，投标人综合考虑报价，加工、切割、折边、损耗等不另计，中标后综合单价不予调整\n7. 未尽事宜详见设计图纸、图集、设计补充说明、招标文件、政府相关文件及规范等其它资料，满足验收要求","m2",238.52,null,{"$f":"+J3*K3","v":{"v":0,"d":"0.00"}}]
[2,"3#","工程名称：3#-公区","278","011207001052","墙面装饰板","1. 部位：客房走道等\n2. 龙骨材料种类、规格：轻钢龙骨，规格尺寸满足现场和规范要求\n3. 基层材料种类、规格：12mm阻燃夹板\n4. 面层材料品种、规格、颜色：12mm深橡木饰面（WD-B01），局部凹槽工艺及灯槽成型等综合考虑\n5. 防护材料种类：所有装修用木基层均应进行防火、防腐处理\n6. 施工时面层颜色、样式由甲方和设计单位确认选样，投标人综合考虑报价，加工、切割、折边、损耗等不另计，中标后综合单价不予调整\n7. 未尽事宜详见设计图纸、图集、设计补充说明、招标文件、政府相关文件及规范等其它资料，满足验收要求","1. 部位：客房走道等\n4. 面层材料品种、规格、颜色：12mm深橡木饰面（WD-B01），局部凹槽工艺及灯槽成型等综合考虑\n5. 防护材料种类：所有装修用木基层均应进行防火、防腐处理\n6. 施工时面层颜色、样式由甲方和设计单位确认选样，投标人综合考虑报价，加工、切割、折边、损耗等不另计，中标后综合单价不予调整\n7. 未尽事宜详见设计图纸、图集、设计补充说明、招标文件、政府相关文件及规范等其它资料，满足验收要求","m2",31.01,null,{"v":0,"d":"0.00"}]
[3,"3#","工程名称：3#-公区","279","011207001053","墙面装饰板","1. 部位：客房走道等\n2. 龙骨材料种类、规格：热镀锌钢龙骨（不分规格型号，投标人综合考虑）\n3. 基层材料种类、规格：12mm阻燃夹板\n4. 面层材料品种、规格、颜色：12mm弧形深橡木饰面（WD-B01），灯槽成型等综合考虑\n5. 防护材料种类：所有装修用木基层均应进行防火、防腐处理\n6. 施工时面层颜色、样式由甲方和设计单位确认选样，投标人综合考虑报价，加工、切割、折边、损耗等不另计，中标后综合单价不予调整\n7. 未尽事宜详见设计图纸、图集、设计补充说明、招标文件、政府相关文件及规范等其它资料，满足验收要求","1. 部位：客房走道等\n4. 面层材料品种、规格、颜色：12mm弧形深橡木饰面（WD-B01），灯槽成型等综合考虑\n5. 防护材料种类：所有装修用木基层均应进行防火、防腐处理\n6. 施工时面层颜色、样式由甲方和设计单位确认选样，投标人综合考虑报价，加工、切割、折边、损耗等不另计，中标后综合单价不予调整\n7. 未尽事宜详见设计图纸、图集、设计补充说明、招标文件、政府相关文件及规范等其它资料，满足验收要求","m2",4.61,null,{"v":0,"d":"0.00"}]
[4,"3#","工程名称：3#-公区","280","010801001005","木饰面暗门","1. 部位：客房走道等\n2. 龙骨材料种类、规格：成品门芯\n3. 面层材料种类、规格：12mm深橡木饰面（WD-B01），1.2mm仿铜不锈钢线条收边（MT-B04），展开尺寸：10+10+24mm\n4. 门套基层、面层材料种类、规格：木饰面门框\n5. 五金：包括不限于优质合页、门磁吸、铰链、拉手等\n6. 未尽事宜详见设计图纸、图集、设计补充说明、招标文件、政府相关文件及规范等其它资料，满足验收要求","1. 部位：客房走道等\n2. 龙骨材料种类、规格：成品门芯\n3. 面层材料种类、规格：12mm深橡木饰面（WD-B01），1.2mm仿铜不锈钢线条收边（MT-B04），展开尺寸：10+10+24mm\n4. 门套面层材料种类、规格：木饰面门框\n5. 五金：包括不限于优质合页、门磁吸、铰链、拉手等\n6. 未尽事宜详见设计图纸、图集、设计补充说明、招标文件、政府相关文件及规范等其它资料，满足验收要求","m2",18.99,null,{"v":0,"d":"0.00"}]
[5,"3#","工程名称：3#-公区","281","011207001054","墙面装饰板","1. 部位：客房走道等\n2. 龙骨材料种类、规格：轻钢龙骨，规格尺寸满足现场和规范要求\n3. 基层材料种类、规格：12mm阻燃夹板\n4. 面层材料品种、规格、颜色：12mm中国红手扫漆饰面（WD-B05）\n5. 防护材料种类：所有装修用木基层均应进行防火、防腐处理\n6. 施工时面层颜色、样式由甲方和设计单位确认选样，投标人综合考虑报价，加工、切割、折边、损耗等不另计，中标后综合单价不予调整\n7. 未尽事宜详见设计图纸、图集、设计补充说明、招标文件、政府相关文件及规范等其它资料，满足验收要求","1. 部位：客房走道等\n4. 面层材料品种、规格、颜色：12mm中国红手扫漆饰面（WD-B05）\n5. 防护材料种类：所有装修用木基层均应进行防火、防腐处理\n6. 施工时面层颜色、样式由甲方和设计单位确认选样，投标人综合考虑报价，加工、切割、折边、损耗等不另计，中标后综合单价不予调整\n7. 未尽事宜详见设计图纸、图集、设计补充说明、招标文件、政府相关文件及规范等其它资料，满足验收要求","m2",3.98,null,{"v":0,"d":"0.00"}]
[6,"3#","工程名称：3#-公区","282","011207001055","墙面装饰板","1. 部位：客房走道等\n2. 龙骨材料种类、规格：轻钢龙骨，规格尺寸满足现场和规范要求\n3. 基层材料种类、规格：12mm阻燃夹板\n4. 面层材料品种、规格、颜色：实木线条黑色手扫漆木饰面（WD-B05A）\n5. 防护材料种类：所有装修用木基层均应进行防火、防腐处理\n6. 施工时面层颜色、样式由甲方和设计单位确认选样，投标人综合考虑报价，加工、切割、折边、损耗等不另计，中标后综合单价不予调整\n7. 未尽事宜详见设计图纸、图集、设计补充说明、招标文件、政府相关文件及规范等其它资料，满足验收要求","1. 部位：客房走道等\n4. 面层材料品种、规格、颜色：实木线条黑色手扫漆木饰面（WD-B05A）\n5. 防护材料种类：所有装修用木基层均应进行防火、防腐处理\n6. 施工时面层颜色、样式由甲方和设计单位确认选样，投标人综合考虑报价，加工、切割、折边、损耗等不另计，中标后综合单价不予调整\n7. 未尽事宜详见设计图纸、图集、设计补充说明、招标文件、政府相关文件及规范等其它资料，满足验收要求","m2",2.32,null,{"v":0,"d":"0.00"}]
[7,"3#","工程名称：3#-公区","283","011207001056","墙面装饰板","1. 部位：客房走道等\n2. 龙骨材料种类、规格：轻钢龙骨，规格尺寸满足现场和规范要求\n3. 基层材料种类、规格：12mm阻燃夹板\n4. 面层材料品种、规格、颜色：12mm黑色手扫漆饰面（WD-B05A）\n5. 防护材料种类：所有装修用木基层均应进行防火、防腐处理\n6. 施工时面层颜色、样式由甲方和设计单位确认选样，投标人综合考虑报价，加工、切割、折边、损耗等不另计，中标后综合单价不予调整\n7. 未尽事宜详见设计图纸、图集、设计补充说明、招标文件、政府相关文件及规范等其它资料，满足验收要求","1. 部位：客房走道等\n4. 面层材料品种、规格、颜色：12mm黑色手扫漆饰面（WD-B05A）\n5. 防护材料种类：所有装修用木基层均应进行防火、防腐处理\n6. 施工时面层颜色、样式由甲方和设计单位确认选样，投标人综合考虑报价，加工、切割、折边、损耗等不另计，中标后综合单价不予调整\n7. 未尽事宜详见设计图纸、图集、设计补充说明、招标文件、政府相关文件及规范等其它资料，满足验收要求","m2",0.38,null,{"v":0,"d":"0.00"}]
[8,"3#","工程名称：3#-DX套房","3","010801001001","入户门","1．部位：DX套房入户门\n2．门室内侧外框尺寸：1520*3000mm，室外侧外框尺寸详见设计文件\n3．门套材料种类、规格：室内侧15mm阻燃夹板+浅色木饰面门套(WD-A05 )，过道侧1.2mm黄古铜不锈钢线条(MT-A01)\n4．门楣材料种类、规格：15mm阻燃夹板+9mm阻燃夹板+浅色木饰面门楣（WD-A05）\n5．门扇饰面材质种类、规格：浅色木饰面入户门(WD-A05)，包含20mm细木工板成品门芯、镀锌方通钢龙骨，双面9mm阻燃夹板，外侧1.2mm黄古铜不锈钢（防指纹）线条(MT-A01)\n6．五金品种、规格：包含但不限于凸轮暗藏闭门器、门底挡尘条、猫眼、防盗链、门碰、暗藏五金合页(选型一侧三副)、消音胶条等五金件,门锁此处报价不考虑\n7．防护材料种类：所有装修用木材均应进行防火、防腐处理\n8．施工时面层颜色、样式由甲方和设计单位确认选样，投标人综合考虑报价，加工、切割、折边、损耗等不另计，中标后综合单价不予调整\n9．未尽事宜详见设计图纸、图集、设计补充说明、招标文件、政府相关文件及规范等其它资料，满足验收要求","1．部位：DX套房入户门\n2．门室内侧外框尺寸：1520*3000mm，室外侧外框尺寸详见设计文件\n3．门套材料种类、规格：浅色木饰面门套(WD-A05 )\n4．门楣材料种类、规格：浅色木饰面门楣（WD-A05）\n5．门扇饰面材质种类、规格：浅色木饰面入户门(WD-A05)，包含20mm细木工板成品门芯、镀锌方通钢龙骨，双面9mm阻燃夹板\n6．五金品种、规格：包含但不限于凸轮暗藏闭门器、门底挡尘条、猫眼、防盗链、门碰、暗藏五金合页(选型一侧三副)、消音胶条等五金件,门锁此处报价不考虑\n7．防护材料种类：所有装修用木材均应进行防火、防腐处理\n8．施工时面层颜色、样式由甲方和设计单位确认选样，投标人综合考虑报价，加工、切割、折边、损耗等不另计，中标后综合单价不予调整\n9．未尽事宜详见设计图纸、图集、设计补充说明、招标文件、政府相关文件及规范等其它资料，满足验收要求","樘",{"v":1,"d":"1.00"},null,{"v":0,"d":"0.00"}]
[9,"3#","工程名称：3#-DX套房","4","010801001002","木质门","1．部位：卫生间、备餐间、卧室等\n2．门套材料种类、规格：12mm阻燃夹板+浅色木饰面门套(WD-A05 )\n3．单侧门楣材料种类、规格：9mm阻燃夹板+浅色木饰面门楣（WD-A05）\n4．门扇饰面材质种类、规格：浅色木饰面门(WD-A05)，包含20mm细木工板成品门芯、镀锌方通钢龙骨等\n5．五金品种、规格：包含但不限于门碰、暗藏五金合页、消音胶条、门把手等五金件\n6．按最大外框尺寸计算\n7．防护材料种类：所有装修用木材均应进行防火、防腐处理\n8．施工时面层颜色、样式由甲方和设计单位确认选样，投标人综合考虑报价，加工、切割、折边、损耗等不另计，中标后综合单价不予调整\n9．未尽事宜详见设计图纸、图集、设计补充说明、招标文件、政府相关文件及规范等其它资料，满足验收要求","1．部位：卫生间、备餐间、卧室等\n2．门套材料种类、规格：浅色木饰面门套(WD-A05 )\n3．单侧门楣材料种类、规格：浅色木饰面门楣（WD-A05）\n4．门扇饰面材质种类、规格：浅色木饰面门(WD-A05)，包含20mm细木工板成品门芯、镀锌方通钢龙骨等\n5．五金品种、规格：包含但不限于门碰、暗藏五金合页、消音胶条、门把手等五金件\n6．按最大外框尺寸计算\n7．防护材料种类：所有装修用木材均应进行防火、防腐处理\n8．施工时面层颜色、样式由甲方和设计单位确认选样，投标人综合考虑报价，加工、切割、折边、损耗等不另计，中标后综合单价不予调整\n9．未尽事宜详见设计图纸、图集、设计补充说明、招标文件、政府相关文件及规范等其它资料，满足验收要求","m2",11.22,null,{"v":0,"d":"0.00"}]
[10,"3#","工程名称：3#-DX套房","45","011207001001","墙面装饰板","1．部位：玄关、客厅、书房、卧室墙面\n2．龙骨材料种类、规格：轻钢副龙骨\n3．基层材料种类、规格：9mm阻燃夹板\n4．面层材料品种、规格、颜色：12mm浅色木饰面（WD-A05）\n5．防护材料种类：所有装修用木材均应进行防火、防腐处理\n6．施工时面层颜色、样式由甲方和设计单位确认选样，加工、排版损耗等不另计，投标人综合考虑报价，中标后综合单价不予调整\n7．未尽事宜详见设计图纸、图集、设计补充说明、招标文件、政府相关文件及规范等其它资料，满足验收要求","1．部位：玄关、客厅、书房、卧室墙面\n4．面层材料品种、规格、颜色：12mm浅色木饰面（WD-A05）\n5．防护材料种类：所有装修用木材均应进行防火、防腐处理\n6．施工时面层颜色、样式由甲方和设计单位确认选样，加工、排版损耗等不另计，投标人综合考虑报价，中标后综合单价不予调整\n7．未尽事宜详见设计图纸、图集、设计补充说明、招标文件、政府相关文件及规范等其它资料，满足验收要求","m2",13.63,null,{"v":0,"d":"0.00"}]
[11,"3#","工程名称：3#-DX套房","46","011207001002","墙面装饰板","1．部位：玄关、客厅、书房、卧室墙面\n2．基层材料种类、规格：9mm阻燃夹板，局部阻燃夹板加固报价综合考虑\n3．面层材料品种、规格、颜色：12mm浅色木饰面（WD-A05）\n4．防护材料种类：所有装修用木材均应进行防火、防腐处理\n5．施工时面层颜色、样式由甲方和设计单位确认选样，加工、排版损耗等不另计，投标人综合考虑报价，中标后综合单价不予调整\n6．未尽事宜详见设计图纸、图集、设计补充说明、招标文件、政府相关文件及规范等其它资料，满足验收要求","1．部位：玄关、客厅、书房、卧室墙面\n3．面层材料品种、规格、颜色：12mm浅色木饰面（WD-A05）\n4．防护材料种类：所有装修用木材均应进行防火、防腐处理\n5．施工时面层颜色、样式由甲方和设计单位确认选样，加工、排版损耗等不另计，投标人综合考虑报价，中标后综合单价不予调整\n6．未尽事宜详见设计图纸、图集、设计补充说明、招标文件、政府相关文件及规范等其它资料，满足验收要求","m2",136.97,null,{"v":0,"d":"0.00"}]
[12,"3#","工程名称：3#-DX套房","50","011207001006","墙面装饰板","1. 部位：床头背景墙等\n2. 龙骨材料种类、规格：热镀锌钢龙骨（不分规格型号，投标人综合考虑）\n3. 基层材料种类、规格：9mm阻燃夹板+9.5mm耐火石膏板\n4. 面层材料品种、规格、颜色：一边12mm浅色木饰面（WD-A05）+一边墙布饰面（WC-A04A）+1.2mm黄古铜不锈钢(MT-A01)+40*70不锈钢方通等\n5. 防护材料种类：所有装修用木材均应进行防火、防腐处理\n6．施工时面层颜色、样式由甲方和设计单位确认选样，加工、排版损耗等不另计，投标人综合考虑报价，中标后综合单价不予调整\n7．未尽事宜详见设计图纸、图集、设计补充说明、招标文件、政府相关文件及规范等其它资料，满足验收要求","1. 部位：床头背景墙等\n4. 面层材料品种、规格、颜色：一边12mm浅色木饰面（WD-A05）\n5. 防护材料种类：所有装修用木材均应进行防火、防腐处理\n6．施工时面层颜色、样式由甲方和设计单位确认选样，加工、排版损耗等不另计，投标人综合考虑报价，中标后综合单价不予调整\n7．未尽事宜详见设计图纸、图集、设计补充说明、招标文件、政府相关文件及规范等其它资料，满足验收要求","m2",3.78,null,{"v":0,"d":"0.00"}]
[13,"3#","工程名称：3#-DX套房","80","WB011501001001","玄关柜、衣柜","1．规格：宽600mm*高3000mm\n2．龙骨材质种类、规格：30*30mm木方(阻燃处理)、镀锌钢龙骨（规格型号综合考虑）\n3．基层板材质种类、规格：9mm阻燃夹板、15mm阻燃夹板、9mm硅酸钙板等基层类型及厚度综合考虑\n4．材料种类：12mm厚浅色木饰面（WD-A02）、墙布饰面(WC-A04C)，浅色木饰面抽屉柜、不锈钢门把手、夹丝玻璃(GLA-01）、黄古铜不锈钢(MT-A01）等\n5．五金种类、规格：单价包含挂衣杆、五金合页、抽屉滑轨、阻尼隔振胶垫、暗藏灯槽等\n6．按照立面投影面积计算\n7．防护材料种类：所有装修用木材均应进行防火、防腐处理\n8．施工时面层颜色、样式由甲方和设计单位确认选样，加工、排版损耗等不另计，投标人综合考虑报价，中标后综合单价不予调整\n9．未尽事宜详见设计图纸、图集、设计补充说明、招标文件、政府相关文件及规范等其它资料，满足验收要求","1．规格：宽600mm*高3000mm\n4．材料种类：12mm厚浅色木饰面（WD-A02），浅色木饰面抽屉柜、不锈钢门把手、夹丝玻璃(GLA-01）、黄古铜不锈钢(MT-A01）等\n5．五金种类、规格：单价包含挂衣杆、五金合页、抽屉滑轨、阻尼隔振胶垫、暗藏灯槽等\n6．按照立面投影面积计算\n7．防护材料种类：所有装修用木材均应进行防火、防腐处理\n8．施工时面层颜色、样式由甲方和设计单位确认选样，加工、排版损耗等不另计，投标人综合考虑报价，中标后综合单价不予调整\n9．未尽事宜详见设计图纸、图集、设计补充说明、招标文件、政府相关文件及规范等其它资料，满足验收要求","m2",{"v":11.4,"d":"11.40"},null,{"v":0,"d":"0.00"}]
[14,"3#","工程名称：3#-DX套房","81","WB011501001002","行李柜","1．规格：长1200mm*宽600mm*高800mm\n2．材料种类：12mm浅色木饰面（WD-A05）、18mm欧亚木纹大理石(ST-A03)台面\n5．五金种类、规格：单价包含五金合页、抽屉滑轨、阻尼隔振胶垫等\n6．按照立面投影面积计算\n7．防护材料种类：所有装修用木材均应进行防火、防腐处理\n8．施工时面层颜色、样式由甲方和设计单位确认选样，加工、排版损耗等不另计，投标人综合考虑报价，中标后综合单价不予调整\n9．未尽事宜详见设计图纸、图集、设计补充说明、招标文件、政府相关文件及规范等其它资料，满足验收要求","1．规格：长1200mm*宽600mm*高800mm\n2．材料种类：12mm浅色木饰面（WD-A05）、18mm欧亚木纹大理石(ST-A03)台面\n5．五金种类、规格：单价包含五金合页、抽屉滑轨、阻尼隔振胶垫等\n6．按照立面投影面积计算\n7．防护材料种类：所有装修用木材均应进行防火、防腐处理\n8．施工时面层颜色、样式由甲方和设计单位确认选样，加工、排版损耗等不另计，投标人综合考虑报价，中标后综合单价不予调整\n9．未尽事宜详见设计图纸、图集、设计补充说明、招标文件、政府相关文件及规范等其它资料，满足验收要求","m2",0.96,null,{"v":0,"d":"0.00"}]
[15,"3#","工程名称：3#-DX套房","82","WB011501001003","洗手台+柜体","1. 部位：卫生间、餐厅\n2．规格：宽600mm*高850mm\n3．龙骨材料种类、规格：局部热镀锌方通等钢龙骨规格型号综合考虑\n4．面层材料品种、规格、颜色：18mm星白大理石(ST-A02)台面及挡水条、木饰面柜体及木饰面隔板（WD-A01）、局部1.2mm黄古铜不锈钢(MT-A01)装饰嵌条及包边\n5．所有石材材料在施工前须做六面防护处理,石材结晶，以保证防水、防腐、防污、防油\n6．施工时面层颜色、样式由甲方和设计单位确认选样，投标人综合考虑报价，加工、切割、折边、损耗等不另计，中标后综合单价不予调整\n7．未尽事宜详见设计图纸、图集、设计补充说明、招标文件、政府相关文件及规范等其它资料，满足验收要求","1. 部位：卫生间、餐厅\n2．规格：宽600mm*高850mm\n4．面层材料品种、规格、颜色：木饰面柜体及木饰面隔板（WD-A01）、局部1.2mm黄古铜不锈钢(MT-A01)装饰嵌条及包边\n6．施工时面层颜色、样式由甲方和设计单位确认选样，投标人综合考虑报价，加工、切割、折边、损耗等不另计，中标后综合单价不予调整\n7．未尽事宜详见设计图纸、图集、设计补充说明、招标文件、政府相关文件及规范等其它资料，满足验收要求","m",5.25,null,{"v":0,"d":"0.00"}]
[16,"3#","工程名称：3#-DX套房","87","011502002001","木质装饰线","1．部位：窗边哑口套处、玄关阳角处等\n2．线条材料品种、规格、颜色：200*100mm浅色木饰面弧形装饰线条（WD-A05 ）\n3．施工时面层颜色、样式由甲方和设计单位确认选样，加工、排版损耗等不另计，投标人综合考虑报价，中标后综合单价不予调整\n4．未尽事宜详见设计图纸、图集、设计补充说明、招标文件、政府相关文件及规范等其它资料，满足验收要求","1．部位：窗边哑口套处、玄关阳角处等\n2．线条材料品种、规格、颜色：200*100mm浅色木饰面弧形装饰线条（WD-A05 ）\n3．施工时面层颜色、样式由甲方和设计单位确认选样，加工、排版损耗等不另计，投标人综合考虑报价，中标后综合单价不予调整\n4．未尽事宜详见设计图纸、图集、设计补充说明、招标文件、政府相关文件及规范等其它资料，满足验收要求","m",{"v":6,"d":"6.00"},null,{"v":0,"d":"0.00"}]
[17,"3#","工程名称：3#-K标间客房","3","010801001001","入户门","1．部位：标间客房\n2．门室内侧外框尺寸：1180*3000mm，室外侧外框尺寸详见设计文件\n3．门套材料种类、规格：室内侧15mm阻燃夹板+橡木饰面门套(WD-A01 )，过道侧1.2mm黄古铜不锈钢线条(MT-A01)\n4．门楣材料种类、规格：15mm阻燃夹板+9mm阻燃夹板+橡木饰面门楣（WD-A01）\n5．门扇材料种类、规格：橡木饰面入户门(WD-A01)，包含30mm细木工板成品门芯、20*40mm热镀锌方通钢龙骨，双面9mm阻燃夹板，外侧1.2mm黄古铜不锈钢（防指纹）线条(MT-A01)\n6．五金品种、规格：包含但不限于凸轮暗藏闭门器、门底挡尘条、猫眼、防盗链、门碰、暗藏五金合页(选型一侧三副)、消音胶条等五金件,门锁此处报价不考虑\n7．防护材料种类：所有装修用木材均应进行防火、防腐处理\n8．施工时面层颜色、样式由甲方和设计单位确认选样，投标人综合考虑报价，加工、切割、折边、损耗等不另计，中标后综合单价不予调整\n9．未尽事宜详见设计图纸、图集、设计补充说明、招标文件、政府相关文件及规范等其它资料，满足验收要求","1．部位：标间客房\n2．门室内侧外框尺寸：1180*3000mm，室外侧外框尺寸详见设计文件\n3．门套材料种类、规格：橡木饰面门套(WD-A01 )\n4．门楣材料种类、规格：橡木饰面门楣（WD-A01）\n5．门扇材料种类、规格：橡木饰面入户门(WD-A01)，包含30mm细木工板成品门芯、20*40mm热镀锌方通钢龙骨，双面9mm阻燃夹板\n6．五金品种、规格：包含但不限于凸轮暗藏闭门器、门底挡尘条、猫眼、防盗链、门碰、暗藏五金合页(选型一侧三副)、消音胶条等五金件,门锁此处报价不考虑\n7．防护材料种类：所有装修用木材均应进行防火、防腐处理\n8．施工时面层颜色、样式由甲方和设计单位确认选样，投标人综合考虑报价，加工、切割、折边、损耗等不另计，中标后综合单价不予调整\n9．未尽事宜详见设计图纸、图集、设计补充说明、招标文件、政府相关文件及规范等其它资料，满足验收要求","樘",{"v":24,"d":"24.00"},null,{"v":0,"d":"0.00"}]
[18,"3#","工程名称：3#-K标间客房","47","011207001002","墙面装饰板","1．部位：客房区床背景\n2．龙骨材料种类、规格：50mm竖向天地龙骨\n3．基层材料种类、规格：12mm阻燃夹板\n4．面层材料品种、规格、颜色：漆画(WD-A03)\n5．防护材料种类：所有装修用木材均应进行防火、防腐处理\n6．施工时面层颜色、样式由甲方和设计单位确认选样，加工、排版损耗等不另计，投标人综合考虑报价，中标后综合单价不予调整\n7．未尽事宜详见设计图纸、图集、设计补充说明、招标文件、政府相关文件及规范等其它资料，满足验收要求。","1．部位：客房区床背景\n4．面层材料品种、规格、颜色：漆画(WD-A03)\n5．防护材料种类：所有装修用木材均应进行防火、防腐处理\n6．施工时面层颜色、样式由甲方和设计单位确认选样，加工、排版损耗等不另计，投标人综合考虑报价，中标后综合单价不予调整\n7．未尽事宜详见设计图纸、图集、设计补充说明、招标文件、政府相关文件及规范等其它资料，满足验收要求。","m2",{"v":66.1,"d":"66.10"},null,{"v":0,"d":"0.00"}]
[19,"3#","工程名称：3#-K标间客房","49","011207001004","墙面装饰板","1．部位：客房区床头柜处\n2．龙骨材料种类、规格：50mm竖向天地龙骨\n3．基层材料种类、规格：12mm阻燃夹板\n4．面层材料品种、规格、颜色：橡木饰面（WD-A01）\n5．防护材料种类：所有装修用木材均应进行防火、防腐处理\n6．施工时面层颜色、样式由甲方和设计单位确认选样，加工、排版损耗等不另计，投标人综合考虑报价，中标后综合单价不予调整\n7．未尽事宜详见设计图纸、图集、设计补充说明、招标文件、政府相关文件及规范等其它资料，满足验收要求","1．部位：客房区床头柜处\n4．面层材料品种、规格、颜色：橡木饰面（WD-A01）\n5．防护材料种类：所有装修用木材均应进行防火、防腐处理\n6．施工时面层颜色、样式由甲方和设计单位确认选样，加工、排版损耗等不另计，投标人综合考虑报价，中标后综合单价不予调整\n7．未尽事宜详见设计图纸、图集、设计补充说明、招标文件、政府相关文件及规范等其它资料，满足验收要求","m2",24.57,null,{"v":0,"d":"0.00"}]
[20,"3#","工程名称：3#-K标间客房","52","011207001007","墙面装饰板","1．部位：床头背景墙、电视背景墙下部\n2．龙骨材料种类、规格：热镀锌钢龙骨（不分规格型号，投标人综合考虑）\n3．基层材料种类、规格：9mm阻燃夹板\n4．面层材料品种、规格、颜色：12mm橡木饰面（WD-A01）\n5．防护材料种类：所有装修用木材均应进行防火、防腐处理\n6．施工时面层颜色、样式由甲方和设计单位确认选样，加工、排版损耗等不另计，投标人综合考虑报价，中标后综合单价不予调整\n7．未尽事宜详见设计图纸、图集、设计补充说明、招标文件、政府相关文件及规范等其它资料，满足验收要求","1．部位：床头背景墙、电视背景墙下部\n4．面层材料品种、规格、颜色：12mm橡木饰面（WD-A01）\n5．防护材料种类：所有装修用木材均应进行防火、防腐处理\n6．施工时面层颜色、样式由甲方和设计单位确认选样，加工、排版损耗等不另计，投标人综合考虑报价，中标后综合单价不予调整\n7．未尽事宜详见设计图纸、图集、设计补充说明、招标文件、政府相关文件及规范等其它资料，满足验收要求","m2",74.69,null,{"v":0,"d":"0.00"}]
[21,"3#","工程名称：3#-K标间客房","53","011207001008","墙面装饰板","1．部位：电视背景墙\n2．龙骨材料种类、规格：50mm竖向天地龙骨\n3．基层材料种类、规格：9mm阻燃夹板\n4．面层材料品种、规格、颜色：22mm橡木饰面格栅（WD-A01A），造型15mm宽*10mm深\n5．防护材料种类：所有装修用木材均应进行防火、防腐处理\n6．施工时面层颜色、样式由甲方和设计单位确认选样，加工、排版损耗等不另计，投标人综合考虑报价，中标后综合单价不予调整\n7．未尽事宜详见设计图纸、图集、设计补充说明、招标文件、政府相关文件及规范等其它资料，满足验收要求","1．部位：电视背景墙\n4．面层材料品种、规格、颜色：22mm橡木饰面格栅（WD-A01A），造型15mm宽*10mm深\n5．防护材料种类：所有装修用木材均应进行防火、防腐处理\n6．施工时面层颜色、样式由甲方和设计单位确认选样，加工、排版损耗等不另计，投标人综合考虑报价，中标后综合单价不予调整\n7．未尽事宜详见设计图纸、图集、设计补充说明、招标文件、政府相关文件及规范等其它资料，满足验收要求","m2",36.35,null,{"v":0,"d":"0.00"}]
[22,"3#","工程名称：3#-K标间客房","54","011207001009","墙面装饰板","1．部位：电视背景墙\n2．龙骨材料种类、规格：热镀锌钢龙骨（不分规格型号，投标人综合考虑）\n3．基层材料种类、规格：9mm阻燃夹板\n4．面层材料品种、规格、颜色：22mm橡木饰面格栅（WD-A01A），造型15mm宽*10mm深\n5．防护材料种类：所有装修用木材均应进行防火、防腐处理\n6．施工时面层颜色、样式由甲方和设计单位确认选样，加工、排版损耗等不另计，投标人综合考虑报价，中标后综合单价不予调整\n7．未尽事宜详见设计图纸、图集、设计补充说明、招标文件、政府相关文件及规范等其它资料，满足验收要求","1．部位：电视背景墙\n4．面层材料品种、规格、颜色：22mm橡木饰面格栅（WD-A01A），造型15mm宽*10mm深\n5．防护材料种类：所有装修用木材均应进行防火、防腐处理\n6．施工时面层颜色、样式由甲方和设计单位确认选样，加工、排版损耗等不另计，投标人综合考虑报价，中标后综合单价不予调整\n7．未尽事宜详见设计图纸、图集、设计补充说明、招标文件、政府相关文件及规范等其它资料，满足验收要求","m2",{"v":7.8,"d":"7.80"},null,{"v":0,"d":"0.00"}]
[23,"3#","工程名称：3#-K标间客房","55","011207001010","墙面装饰板","1．部位：电视背景墙上部、卧室窗侧墙面\n2．龙骨材料种类、规格：50mm竖向天地龙骨\n3．基层材料种类、规格：9mm阻燃夹板\n4．面层材料品种、规格、颜色：12mm橡木饰面（WD-A01）\n5．防护材料种类：所有装修用木材均应进行防火、防腐处理\n6．施工时面层颜色、样式由甲方和设计单位确认选样，加工、排版损耗等不另计，投标人综合考虑报价，中标后综合单价不予调整\n7．未尽事宜详见设计图纸、图集、设计补充说明、招标文件、政府相关文件及规范等其它资料，满足验收要求","1．部位：电视背景墙上部、卧室窗侧墙面\n4．面层材料品种、规格、颜色：12mm橡木饰面（WD-A01）\n5．防护材料种类：所有装修用木材均应进行防火、防腐处理\n6．施工时面层颜色、样式由甲方和设计单位确认选样，加工、排版损耗等不另计，投标人综合考虑报价，中标后综合单价不予调整\n7．未尽事宜详见设计图纸、图集、设计补充说明、招标文件、政府相关文件及规范等其它资料，满足验收要求","m2",258.39,null,{"v":0,"d":"0.00"}]
[24,"3#","工程名称：3#-K标间客房","57","011207001012","墙面装饰板","1．部位：卧室墙面\n2．基层材料种类、规格：9mm硅酸钙板，局部硅酸钙板加固报价综合考虑\n3．面层材料品种、规格、颜色：12mm橡木饰面（WD-A01）\n4．防护材料种类：所有装修用木材均应进行防火、防腐处理\n5．施工时面层颜色、样式由甲方和设计单位确认选样，加工、排版损耗等不另计，投标人综合考虑报价，中标后综合单价不予调整\n6．未尽事宜详见设计图纸、图集、设计补充说明、招标文件、政府相关文件及规范等其它资料，满足验收要求","1．部位：卧室墙面\n3．面层材料品种、规格、颜色：12mm橡木饰面（WD-A01）\n4．防护材料种类：所有装修用木材均应进行防火、防腐处理\n5．施工时面层颜色、样式由甲方和设计单位确认选样，加工、排版损耗等不另计，投标人综合考虑报价，中标后综合单价不予调整\n6．未尽事宜详见设计图纸、图集、设计补充说明、招标文件、政府相关文件及规范等其它资料，满足验收要求","m2",{"v":82.3,"d":"82.30"},null,{"v":0,"d":"0.00"}]
[25,"3#","工程名称：3#-K标间客房","58","011207001013","墙面装饰板","1．部位：卧室、玄关墙面\n2．基层材料种类、规格：9mm阻燃夹板+10mm肋条，局部阻燃夹板加固报价综合考虑\n3．面层材料品种、规格、颜色：12mm橡木饰面（WD-A01）\n4．防护材料种类：所有装修用木材均应进行防火、防腐处理\n5．施工时面层颜色、样式由甲方和设计单位确认选样，加工、排版损耗等不另计，投标人综合考虑报价，中标后综合单价不予调整\n6．未尽事宜详见设计图纸、图集、设计补充说明、招标文件、政府相关文件及规范等其它资料，满足验收要求","1．部位：卧室、玄关墙面\n3．面层材料品种、规格、颜色：12mm橡木饰面（WD-A01）\n4．防护材料种类：所有装修用木材均应进行防火、防腐处理\n5．施工时面层颜色、样式由甲方和设计单位确认选样，加工、排版损耗等不另计，投标人综合考虑报价，中标后综合单价不予调整\n6．未尽事宜详见设计图纸、图集、设计补充说明、招标文件、政府相关文件及规范等其它资料，满足验收要求","m2",168.26,null,{"v":0,"d":"0.00"}]
[26,"3#","工程名称：3#-K标间客房","80","ZB010101001003","橡木饰面书桌","1．部位：卧室电视背景墙\n2．书桌尺寸：390mm宽*180mm高*4870mm长，局部宽尺寸不一致报价综合考虑\n3．龙骨材料种类、规格：热镀锌钢龙骨（不分规格型号，投标人综合考虑）\n4．基层材料质种类、规格：9mm阻燃夹板\n5．面层材料品种、规格、颜色：12mm橡木饰面（WD-A01）\n6．防护材料种类：所有装修用木材均应进行防火、防腐处理\n7．施工时面层颜色、样式由甲方和设计单位确认选样，加工、排版损耗等不另计，投标人综合考虑报价，中标后综合单价不予调整\n8．未尽事宜详见设计图纸、图集、设计补充说明、招标文件、政府相关文件及规范等其它资料，满足验收要求","1．部位：卧室电视背景墙\n5．面层材料品种、规格、颜色：12mm橡木饰面（WD-A01）\n6．防护材料种类：所有装修用木材均应进行防火、防腐处理\n7．施工时面层颜色、样式由甲方和设计单位确认选样，加工、排版损耗等不另计，投标人综合考虑报价，中标后综合单价不予调整\n8．未尽事宜详见设计图纸、图集、设计补充说明、招标文件、政府相关文件及规范等其它资料，满足验收要求","m",103.24,null,{"v":0,"d":"0.00"}]
[27,"3#","工程名称：3#-K标间客房","81","WB011501001001","玄关柜","1．规格：长3840mm*宽600mm*高3000mm\n2．龙骨材质种类、规格：热镀锌钢龙骨（不分规格型号，投标人综合考虑）、30*30mm木方/50*30mm木方等(阻燃处理)\n3．基层板材质种类、规格：9mm阻燃夹板、12mm阻燃夹板等基层类型及厚度综合考虑\n4．柜体材料种类、规格：12mm橡木饰面（WD-A01）柜体、布艺硬包饰面(WC-A03)、橡木饰面抽屉柜+6mm超白钢化玻璃、不锈钢门把手、不锈钢踢脚线(MT-A01)等；中间区域柜顶400*900mm木工板加固至少能承重30KG报价综合考虑\n5. 柜门材质种类、规格：木工板基层+12mm橡木饰面（WD-A01），具体柜门由专业厂家二次深化\n6．五金种类、规格：单价包含挂衣杆、雨伞架、U型报纸槽、暗藏合页、抽屉滑轨、阻尼隔振胶垫、烟斗铰链、柜门锁、灯槽成型等\n7．按立面投影面积计算\n8．防护材料种类：所有装修用木材均应进行防火、防腐处理\n9．施工时面层颜色、样式由甲方和设计单位确认选样，加工、排版损耗等不另计，投标人综合考虑报价，中标后综合单价不予调整\n10．未尽事宜详见设计图纸、图集、设计补充说明、招标文件、政府相关文件及规范等其它资料，满足验收要求","1．规格：长3840mm*宽600mm*高3000mm\n4．柜体材料种类、规格：12mm橡木饰面（WD-A01）柜体、橡木饰面抽屉柜+6mm超白钢化玻璃、不锈钢门把手；中间区域柜顶400*900mm木工板加固至少能承重30KG报价综合考虑\n5. 柜门材质种类、规格：木工板基层+12mm橡木饰面（WD-A01），具体柜门由专业厂家二次深化\n6．五金种类、规格：单价包含挂衣杆、雨伞架、U型报纸槽、暗藏合页、抽屉滑轨、阻尼隔振胶垫、烟斗铰链、柜门锁、灯槽成型等\n7．按立面投影面积计算\n8．防护材料种类：所有装修用木材均应进行防火、防腐处理\n9．施工时面层颜色、样式由甲方和设计单位确认选样，加工、排版损耗等不另计，投标人综合考虑报价，中标后综合单价不予调整\n10．未尽事宜详见设计图纸、图集、设计补充说明、招标文件、政府相关文件及规范等其它资料，满足验收要求","m2",279.65,null,{"v":0,"d":"0.00"}]
[28,"3#","工程名称：3#-K标间客房","83","WB011501001003","洗手台+柜体","1. 部位：卫生间\n2．规格：长1700mm*宽600mm*高870mm\n3．龙骨材料种类、规格：局部热镀锌钢龙骨（不分规格型号，投标人综合考虑）\n4．面层材料品种、规格、颜色：18mm星白大理石(ST-A02)台面及挡水条、橡木饰面柜体及橡木饰面隔板（WD-A01 ）、局部1.2mm黄古铜不锈钢(MT-A01)装饰嵌条、踢脚线及包边，单价包含灯槽成型等\n5．所有石材材料在施工前须做六面防护处理,石材结晶，以保证防水、防腐、防污、防油\n6．施工时面层颜色、样式由甲方和设计单位确认选样，投标人综合考虑报价，加工、切割、折边、损耗等不另计，中标后综合单价不予调整\n7．未尽事宜详见设计图纸、图集、设计补充说明、招标文件、政府相关文件及规范等其它资料，满足验收要求","1. 部位：卫生间\n2．规格：长1700mm*宽600mm*高870mm\n4．面层材料品种、规格、颜色：橡木饰面柜体及橡木饰面隔板（WD-A01 ）、局部1.2mm黄古铜不锈钢(MT-A01)装饰嵌条及包边，单价包含灯槽成型等\n6．施工时面层颜色、样式由甲方和设计单位确认选样，投标人综合考虑报价，加工、切割、折边、损耗等不另计，中标后综合单价不予调整\n7．未尽事宜详见设计图纸、图集、设计补充说明、招标文件、政府相关文件及规范等其它资料，满足验收要求","m",43.25,null,{"v":0,"d":"0.00"}]
[29,"3#","工程名称：3#-K标间客房","86","011502002001","木质装饰线","1．部位：电视背景墙处\n2．线条材料品种、规格、颜色：30*30mm橡木饰面半圆弧装饰线条（WD-A01 ）\n3．施工时面层颜色、样式由甲方和设计单位确认选样，加工、排版损耗等不另计，投标人综合考虑报价，中标后综合单价不予调整\n4．未尽事宜详见设计图纸、图集、设计补充说明、招标文件、政府相关文件及规范等其它资料，满足验收要求","1．部位：电视背景墙处\n2．线条材料品种、规格、颜色：30*30mm橡木饰面半圆弧装饰线条（WD-A01 ）\n3．施工时面层颜色、样式由甲方和设计单位确认选样，加工、排版损耗等不另计，投标人综合考虑报价，中标后综合单价不予调整\n4．未尽事宜详见设计图纸、图集、设计补充说明、招标文件、政府相关文件及规范等其它资料，满足验收要求","m",225.14,null,{"v":0,"d":"0.00"}]
[30,"3#","工程名称：3#-K标间客房","87","011502002002","木质装饰线","1．部位：窗边哑口套处、玄关阳角处等\n2．线条材料品种、规格、颜色：50*50mm橡木饰面弧形装饰线条（WD-A01 ）\n3．施工时面层颜色、样式由甲方和设计单位确认选样，加工、排版损耗等不另计，投标人综合考虑报价，中标后综合单价不予调整\n4．未尽事宜详见设计图纸、图集、设计补充说明、招标文件、政府相关文件及规范等其它资料，满足验收要求","1．部位：窗边哑口套处、玄关阳角处等\n2．线条材料品种、规格、颜色：50*50mm橡木饰面弧形装饰线条（WD-A01 ）\n3．施工时面层颜色、样式由甲方和设计单位确认选样，加工、排版损耗等不另计，投标人综合考虑报价，中标后综合单价不予调整\n4．未尽事宜详见设计图纸、图集、设计补充说明、招标文件、政府相关文件及规范等其它资料，满足验收要求","m",375.24,null,{"v":0,"d":"0.00"}]
[31,"3#","工程名称：3#-JS套房","3","010801001001","入户门","1．部位：JS套房\n2．门室内侧外框尺寸：1520*3000mm，室外侧外框尺寸详见设计文件\n3．门套材料种类、规格：室内侧15mm阻燃夹板+橡木饰面门套(WD-A01 )，过道侧1.2mm黄古铜不锈钢线条(MT-A01)\n4．门楣材料种类、规格：15mm阻燃夹板+9mm阻燃夹板+橡木饰面门楣（WD-A01）\n5．门扇饰面材质种类、规格：橡木饰面入户门(WD-A01)，包含20mm细木工板成品门芯、30*30*3mm热镀锌方通钢龙骨，双面9mm阻燃夹板，外侧1.2mm古铜拉丝不锈钢（防指纹）线条(MT-A01)\n6．五金品种、规格：包含但不限于凸轮暗藏闭门器、门底挡尘条、猫眼、防盗链、门碰、暗藏五金合页(选型一侧三副)、消音胶条等五金件,门锁此处不计入\n7．防护材料种类：所有装修用木材均应进行防火、防腐处理\n8．施工时面层颜色、样式由业主和设计单位确认选样，投标人综合考虑报价，加工、切割、折边、损耗等不另计，中标后综合单价不予调整\n9．未尽事宜详见设计图纸、图集、设计补充说明、招标文件、政府相关文件及规范等其它资料，满足验收要求","1．部位：JS套房\n2．门室内侧外框尺寸：1520*3000mm，室外侧外框尺寸详见设计文件\n3．门套材料种类、规格：橡木饰面门套(WD-A01 )\n4．门楣材料种类、规格：橡木饰面门楣（WD-A01）\n5．门扇饰面材质种类、规格：橡木饰面入户门(WD-A01)，包含20mm细木工板成品门芯、30*30*3mm热镀锌方通钢龙骨，双面9mm阻燃夹板\n6．五金品种、规格：包含但不限于凸轮暗藏闭门器、门底挡尘条、猫眼、防盗链、门碰、暗藏五金合页(选型一侧三副)、消音胶条等五金件,门锁此处不计入\n7．防护材料种类：所有装修用木材均应进行防火、防腐处理\n8．施工时面层颜色、样式由业主和设计单位确认选样，投标人综合考虑报价，加工、切割、折边、损耗等不另计，中标后综合单价不予调整\n9．未尽事宜详见设计图纸、图集、设计补充说明、招标文件、政府相关文件及规范等其它资料，满足验收要求","樘",{"v":5,"d":"5.00"},null,{"v":0,"d":"0.00"}]
[32,"3#","工程名称：3#-JS套房","4","010801001002","木质门","1．部位：户内装饰单开门\n2．门套材料种类、规格：12mm阻燃夹板+橡木饰面门套(WD-A01 )\n3．门楣材料种类、规格：9mm阻燃夹板+橡木饰面门楣（WD-A01）\n4．门扇饰面材质种类、规格：橡木饰面门(WD-A01)，包含20mm细木工板成品门芯、20*40mm热镀锌方通钢龙骨等\n5．五金品种、规格：包含但不限于门碰、暗藏五金合页、消音胶条、门把手等五金件\n6．按最大外框尺寸计算\n7．防护材料种类：所有装修用木材均应进行防火、防腐处理\n8．施工时面层颜色、样式由业主和设计单位确认选样，投标人综合考虑报价，加工、切割、折边、损耗等不另计，中标后综合单价不予调整\n9．未尽事宜详见设计图纸、图集、设计补充说明、招标文件、政府相关文件及规范等其它资料，满足验收要求","1．部位：户内装饰单开门\n2．门套材料种类、规格：橡木饰面门套(WD-A01 )\n3．门楣材料种类、规格：橡木饰面门楣（WD-A01）\n4．门扇饰面材质种类、规格：橡木饰面门(WD-A01)，包含20mm细木工板成品门芯、20*40mm热镀锌方通钢龙骨等\n5．五金品种、规格：包含但不限于门碰、暗藏五金合页、消音胶条、门把手等五金件\n6．按最大外框尺寸计算\n7．防护材料种类：所有装修用木材均应进行防火、防腐处理\n8．施工时面层颜色、样式由业主和设计单位确认选样，投标人综合考虑报价，加工、切割、折边、损耗等不另计，中标后综合单价不予调整\n9．未尽事宜详见设计图纸、图集、设计补充说明、招标文件、政府相关文件及规范等其它资料，满足验收要求","m2",42.15,null,{"v":0,"d":"0.00"}]
[33,"3#","工程名称：3#-JS套房","5","010801001003","木质门","1．部位：户内装饰移门\n2．门套材料种类、规格：12mm阻燃夹板，局部双层+1.2mm黄古铜不锈钢（MT-A01）\n3．门楣材料种类、规格：热镀锌钢龙骨（不分规格型号，投标人综合考虑）+12mm阻燃夹板+橡木饰面（WD-A01）\n4．门扇饰面材质种类、规格：橡木饰面（WD-A01），包含成品门芯板、1.2mm黄古铜不锈钢（MT-A01）等\n5．五金品种、规格：包含但不限于液压门轴、滑轨、消音胶条、门把手等五金件\n6．按外框尺寸计算\n7．防护材料种类：所有装修用木材均应进行防火、防腐处理\n8．施工时面层颜色、样式由业主和设计单位确认选样，投标人综合考虑报价，加工、切割、折边、损耗等不另计，中标后综合单价不予调整\n9．未尽事宜详见设计图纸、图集、设计补充说明、招标文件、政府相关文件及规范等其它资料，满足验收要求","1．部位：户内装饰移门\n2．门套材料种类、规格：1.2mm黄古铜不锈钢（MT-A01）\n3．门楣材料种类、规格：橡木饰面（WD-A01）\n4．门扇饰面材质种类、规格：橡木饰面（WD-A01），包含成品门芯板、1.2mm黄古铜不锈钢（MT-A01）等\n5．五金品种、规格：包含但不限于液压门轴、滑轨、消音胶条、门把手等五金件\n6．按外框尺寸计算\n7．防护材料种类：所有装修用木材均应进行防火、防腐处理\n8．施工时面层颜色、样式由业主和设计单位确认选样，投标人综合考虑报价，加工、切割、折边、损耗等不另计，中标后综合单价不予调整\n9．未尽事宜详见设计图纸、图集、设计补充说明、招标文件、政府相关文件及规范等其它资料，满足验收要求","m2",{"v":12,"d":"12.00"},null,{"v":0,"d":"0.00"}]
[34,"3#","工程名称：3#-JS套房","48","011207001001","墙面装饰板","1. 部位：客厅、卧室、玄关、衣帽间等\n2. 基层材料种类、规格：9mm阻燃夹板+10mm成品木挂条调平，局部加固综合考虑\n3．面层材料品种、规格、颜色：12mm橡木饰面（WD-A01）\n4．防护材料种类：所有装修用木材均应进行防火、防腐处理\n5．施工时面层颜色、样式由甲方和设计单位确认选样，加工、排版损耗等不另计，投标人综合考虑报价，中标后综合单价不予调整\n6．未尽事宜详见设计图纸、图集、设计补充说明、招标文件、政府相关文件及规范等其它资料，满足验收要求","1. 部位：客厅、卧室、玄关、衣帽间等\n3．面层材料品种、规格、颜色：12mm橡木饰面（WD-A01）\n4．防护材料种类：所有装修用木材均应进行防火、防腐处理\n5．施工时面层颜色、样式由甲方和设计单位确认选样，加工、排版损耗等不另计，投标人综合考虑报价，中标后综合单价不予调整\n6．未尽事宜详见设计图纸、图集、设计补充说明、招标文件、政府相关文件及规范等其它资料，满足验收要求","m2",458.47,null,{"v":0,"d":"0.00"}]
[35,"3#","工程名称：3#-JS套房","49","011207001002","墙面装饰板","1. 部位：玄关、客厅及电视背景墙、卧室等\n2. 龙骨材料种类、规格：热镀锌钢龙骨（不分规格型号，投标人综合考虑）\n3. 基层材料种类、规格：9mm阻燃夹板\n4．面层材料品种、规格、颜色：12mm橡木饰面（WD-A01）\n5．防护材料种类：所有装修用木材均应进行防火、防腐处理\n6．施工时面层颜色、样式由甲方和设计单位确认选样，加工、排版损耗等不另计，投标人综合考虑报价，中标后综合单价不予调整\n7．未尽事宜详见设计图纸、图集、设计补充说明、招标文件、政府相关文件及规范等其它资料，满足验收要求","1. 部位：玄关、客厅及电视背景墙、卧室等\n4．面层材料品种、规格、颜色：12mm橡木饰面（WD-A01）\n5．防护材料种类：所有装修用木材均应进行防火、防腐处理\n6．施工时面层颜色、样式由甲方和设计单位确认选样，加工、排版损耗等不另计，投标人综合考虑报价，中标后综合单价不予调整\n7．未尽事宜详见设计图纸、图集、设计补充说明、招标文件、政府相关文件及规范等其它资料，满足验收要求","m2",69.04,null,{"v":0,"d":"0.00"}]
[36,"3#","工程名称：3#-JS套房","50","011207001003","墙面装饰板","1. 部位：客厅沙发背景隔断等\n2. 龙骨材料种类、规格：热镀锌钢龙骨（不分规格型号，投标人综合考虑）\n3．面层材料品种、规格、颜色：12mm橡木饰面（WD-A01）\n4．防护材料种类：所有装修用木材均应进行防火、防腐处理\n5．施工时面层颜色、样式由甲方和设计单位确认选样，加工、排版损耗等不另计，投标人综合考虑报价，中标后综合单价不予调整\n6．未尽事宜详见设计图纸、图集、设计补充说明、招标文件、政府相关文件及规范等其它资料，满足验收要求","1. 部位：客厅沙发背景隔断等\n3．面层材料品种、规格、颜色：12mm橡木饰面（WD-A01）\n4．防护材料种类：所有装修用木材均应进行防火、防腐处理\n5．施工时面层颜色、样式由甲方和设计单位确认选样，加工、排版损耗等不另计，投标人综合考虑报价，中标后综合单价不予调整\n6．未尽事宜详见设计图纸、图集、设计补充说明、招标文件、政府相关文件及规范等其它资料，满足验收要求","m2",12.39,null,{"v":0,"d":"0.00"}]
[37,"3#","工程名称：3#-JS套房","58","011207001010","墙面装饰板","1. 部位：电视背景墙等\n2. 龙骨材料种类、规格：30*20mm木龙骨，阻燃处理\n3. 面层材料品种、规格、颜色：12mm实木黑色漆面板（WD-A04）\n4. 防护材料种类：所有装修用木材均应进行防火、防腐处理\n5．施工时面层颜色、样式由甲方和设计单位确认选样，加工、排版损耗等不另计，投标人综合考虑报价，中标后综合单价不予调整\n6．未尽事宜详见设计图纸、图集、设计补充说明、招标文件、政府相关文件及规范等其它资料，满足验收要求","1. 部位：电视背景墙等\n3. 面层材料品种、规格、颜色：12mm实木黑色漆面板（WD-A04）\n4. 防护材料种类：所有装修用木材均应进行防火、防腐处理\n5．施工时面层颜色、样式由甲方和设计单位确认选样，加工、排版损耗等不另计，投标人综合考虑报价，中标后综合单价不予调整\n6．未尽事宜详见设计图纸、图集、设计补充说明、招标文件、政府相关文件及规范等其它资料，满足验收要求","m2",{"v":31.5,"d":"31.50"},null,{"v":0,"d":"0.00"}]
[38,"3#","工程名称：3#-JS套房","65","011207001016","墙面装饰板","1. 部位：床头背景墙JS\n2. 龙骨材料种类、规格：热镀锌钢龙骨（不分规格型号，投标人综合考虑）\n3. 基层材料种类、规格：9mm阻燃夹板+9.5mm石膏板\n4. 面层材料品种、规格、颜色：一边12mm橡木饰面（WD-A01）+一边墙布饰面（WC-A04A）+1.2mm黄古铜不锈钢(MT-A01)+40*70不锈钢方通等\n5. 防护材料种类：所有装修用木材均应进行防火、防腐处理\n6．施工时面层颜色、样式由甲方和设计单位确认选样，加工、排版损耗等不另计，投标人综合考虑报价，中标后综合单价不予调整\n7．未尽事宜详见设计图纸、图集、设计补充说明、招标文件、政府相关文件及规范等其它资料，满足验收要求","1. 部位：床头背景墙JS\n4. 面层材料品种、规格、颜色：一边12mm橡木饰面（WD-A01）\n5. 防护材料种类：所有装修用木材均应进行防火、防腐处理\n6．施工时面层颜色、样式由甲方和设计单位确认选样，加工、排版损耗等不另计，投标人综合考虑报价，中标后综合单价不予调整\n7．未尽事宜详见设计图纸、图集、设计补充说明、招标文件、政府相关文件及规范等其它资料，满足验收要求","m2",{"v":18.9,"d":"18.90"},null,{"v":0,"d":"0.00"}]
[39,"3#","工程名称：3#-JS套房","93","WB011501001001","玄关柜","1. 部位：玄关\n2. 柜体尺寸：1100*600*3000mm\n3. 龙骨材料种类、规格：热镀锌钢龙骨（不分规格型号，投标人综合考虑）、30*30mm木方(阻燃处理)等\n4．基层板材料种类、规格：9mm阻燃夹板、15mm阻燃夹板、9mm硅酸钙板等基层类型及厚度综合考虑\n5．材料种类：12mm橡木饰面（WD-A01）、墙布饰面(WC-A04)、1.2mm黄古铜不锈钢（MT-A01）、橡木饰面抽屉柜、不锈钢门把手、夹丝玻璃（GL-A01）等\n6．五金种类、规格：单价包含挂衣杆、五金合页、抽屉滑轨、阻尼隔振胶垫、暗藏灯槽等\n7．按照立面投影面积计算\n8．防护材料种类：所有装修用木材均应进行防火、防腐处理\n9．施工时面层颜色、样式由甲方和设计单位确认选样，加工、排版损耗等不另计，投标人综合考虑报价，中标后综合单价不予调整\n10．未尽事宜详见设计图纸、图集、设计补充说明、招标文件、政府相关文件及规范等其它资料，满足验收要求","1. 部位：玄关\n2. 柜体尺寸：1100*600*3000mm\n5．材料种类：12mm橡木饰面（WD-A01）、1.2mm黄古铜不锈钢（MT-A01）、橡木饰面抽屉柜、不锈钢门把手、夹丝玻璃（GL-A01）等\n6．五金种类、规格：单价包含挂衣杆、五金合页、抽屉滑轨、阻尼隔振胶垫、暗藏灯槽等\n7．按照立面投影面积计算\n8．防护材料种类：所有装修用木材均应进行防火、防腐处理\n9．施工时面层颜色、样式由甲方和设计单位确认选样，加工、排版损耗等不另计，投标人综合考虑报价，中标后综合单价不予调整\n10．未尽事宜详见设计图纸、图集、设计补充说明、招标文件、政府相关文件及规范等其它资料，满足验收要求","m2",18.18,null,{"v":0,"d":"0.00"}]
[40,"3#","工程名称：3#-JS套房","94","WB011501001002","衣帽间衣柜","1. 部位：衣帽间\n2. 柜体尺寸：650mm*3000mm*长（具体详见设计文件）\n3. 龙骨材质种类、规格：热镀锌钢龙骨（不分规格型号，投标人综合考虑）、木龙骨等\n4．基层板材质种类、规格：基层类型及厚度综合考虑，具体详见设计文件\n5．材料种类：12mm橡木饰面（WD-A01）、墙布饰面(WC-A04)、夹丝玻璃（GL-A01）、星白大理石台面（ST-02）、古铜拉丝不锈钢（MT-A01），橡木饰面抽屉柜、1.2mm黄古铜不锈钢踢脚线(MT-A01)等\n6．五金种类、规格：单价包含挂衣杆、五金合页、抽屉滑轨、阻尼隔振胶垫、暗藏灯槽等\n7．按照立面投影面积计算\n8．防护材料种类：所有装修用木材均应进行防火、防腐处理\n9．施工时面层颜色、样式由甲方和设计单位确认选样，加工、排版损耗等不另计，投标人综合考虑报价，中标后综合单价不予调整\n10．未尽事宜详见设计图纸、图集、设计补充说明、招标文件、政府相关文件及规范等其它资料，满足验收要求","1. 部位：衣帽间\n2. 柜体尺寸：650mm*3000mm*长（具体详见设计文件）\n5．材料种类：12mm橡木饰面（WD-A01）、夹丝玻璃（GL-A01）、星白大理石台面（ST-02）、古铜拉丝不锈钢（MT-A01），橡木饰面抽屉柜\n6．五金种类、规格：单价包含挂衣杆、五金合页、抽屉滑轨、阻尼隔振胶垫、暗藏灯槽等\n7．按照立面投影面积计算\n8．防护材料种类：所有装修用木材均应进行防火、防腐处理\n9．施工时面层颜色、样式由甲方和设计单位确认选样，加工、排版损耗等不另计，投标人综合考虑报价，中标后综合单价不予调整\n10．未尽事宜详见设计图纸、图集、设计补充说明、招标文件、政府相关文件及规范等其它资料，满足验收要求","m2",42.78,null,{"v":0,"d":"0.00"}]
[41,"3#","工程名称：3#-JS套房","95","WB011501001003","洗手台+柜体","1. 部位：卫生间\n2．规格：长1200mm*宽600mm*高850mm\n3．龙骨材料种类、规格：局部热镀锌钢龙骨（不分规格型号，投标人综合考虑）\n4．面层材料品种、规格、颜色：18mm鎏金白玉大理石(ST-A04)台面及挡水条、橡木饰面柜体及橡木饰面隔板（WD-A01 ）、局部1.2mm黄古铜不锈钢(MT-A01)装饰嵌条、踢脚线及包边，单价包含灯槽成型等\n5．所有石材材料在施工前须做六面防护处理,石材结晶，以保证防水、防腐、防污、防油\n6．施工时面层颜色、样式由业主和设计单位确认选样，投标人综合考虑报价，加工、切割、折边、损耗、石材结晶等不另计，中标后综合单价不予调整\n7．未尽事宜详见设计图纸、图集、设计补充说明、招标文件、政府相关文件及规范等其它资料，满足验收要求","1. 部位：卫生间\n2．规格：长1200mm*宽600mm*高850mm\n4．面层材料品种、规格、颜色：橡木饰面柜体及橡木饰面隔板（WD-A01 ）、局部1.2mm黄古铜不锈钢(MT-A01)装饰嵌条及包边，单价包含灯槽成型等\n6．施工时面层颜色、样式由业主和设计单位确认选样，投标人综合考虑报价，加工、切割、折边、损耗、石材结晶等不另计，中标后综合单价不予调整\n7．未尽事宜详见设计图纸、图集、设计补充说明、招标文件、政府相关文件及规范等其它资料，满足验收要求","m",{"v":13.2,"d":"13.20"},null,{"v":0,"d":"0.00"}]
[42,"3#","工程名称：3#-JES套房","3","010801001001","入户门","1．部位：JES套房\n2．门室内侧外框尺寸：1520*3000mm，室外侧外框尺寸详见设计文件\n3．门套材料种类、规格：室内侧15mm阻燃夹板+木饰面门套,过道侧1.2mm黄古铜不锈钢线条(MT-A01)\n4．门楣材料种类、规格：15mm阻燃夹板+9mm阻燃夹板+木饰面门楣\n5．门扇饰面材质种类、规格：木饰面，包含20mm细木工板成品门芯、30*30*3mm热镀锌方通钢龙骨，双面9mm阻燃夹板，外侧1.2mm古铜拉丝不锈钢（防指纹）线条(MT-A01)\n6．五金品种、规格：包含但不限于凸轮暗藏闭门器、门底挡尘条、猫眼、防盗链、门碰、暗藏五金合页(选型一侧三副)、消音胶条等五金件,门锁此处不计入\n7．防护材料种类：所有装修用木材均应进行防火、防腐处理\n8．施工时面层颜色、样式由业主和设计单位确认选样，投标人综合考虑报价，加工、切割、折边、损耗等不另计，中标后综合单价不予调整\n9．未尽事宜详见设计图纸、图集、设计补充说明、招标文件、政府相关文件及规范等其它资料，满足验收要求","1．部位：JES套房\n2．门室内侧外框尺寸：1520*3000mm，室外侧外框尺寸详见设计文件\n3．门套材料种类、规格：木饰面门套\n4．门楣材料种类、规格：木饰面门楣\n5．门扇饰面材质种类、规格：木饰面，包含20mm细木工板成品门芯、30*30*3mm热镀锌方通钢龙骨，双面9mm阻燃夹板\n6．五金品种、规格：包含但不限于凸轮暗藏闭门器、门底挡尘条、猫眼、防盗链、门碰、暗藏五金合页(选型一侧三副)、消音胶条等五金件,门锁此处不计入\n7．防护材料种类：所有装修用木材均应进行防火、防腐处理\n8．施工时面层颜色、样式由业主和设计单位确认选样，投标人综合考虑报价，加工、切割、折边、损耗等不另计，中标后综合单价不予调整\n9．未尽事宜详见设计图纸、图集、设计补充说明、招标文件、政府相关文件及规范等其它资料，满足验收要求","樘",{"v":2,"d":"2.00"},null,{"v":0,"d":"0.00"}]
[43,"3#","工程名称：3#-JES套房","4","010801001002","木质门","1．部位：户内装饰单开门\n2．龙骨材料种类、规格：热镀锌钢龙骨（不分规格型号，投标人综合考虑）\n3．基层材料种类、规格：基层类型及厚度综合考虑，具体详见设计文件\n4．门套材料种类、规格：12mm浅色木饰面(WD-A05)\n5．门楣材料种类、规格：12mm浅色木饰面(WD-A05)\n6．门扇饰面材质种类、规格：12mm浅色木饰面(WD-A05)\n5．五金品种、规格：包含但不限于门碰、暗藏五金合页、消音胶条、门把手等全套五金件\n6．按最大外框尺寸计算\n7．防护材料种类：所有装修用木材均应进行防火、防腐处理\n8．施工时面层颜色、样式由业主和设计单位确认选样，投标人综合考虑报价，加工、切割、折边、损耗等不另计，中标后综合单价不予调整\n9．未尽事宜详见设计图纸、图集、设计补充说明、招标文件、政府相关文件及规范等其它资料，满足验收要求","1．部位：户内装饰单开门\n2．龙骨材料种类、规格：热镀锌钢龙骨（不分规格型号，投标人综合考虑）\n4．门套材料种类、规格：12mm浅色木饰面(WD-A05)\n5．门楣材料种类、规格：12mm浅色木饰面(WD-A05)\n6．门扇饰面材质种类、规格：12mm浅色木饰面(WD-A05)\n5．五金品种、规格：包含但不限于门碰、暗藏五金合页、消音胶条、门把手等全套五金件\n6．按最大外框尺寸计算\n7．防护材料种类：所有装修用木材均应进行防火、防腐处理\n8．施工时面层颜色、样式由业主和设计单位确认选样，投标人综合考虑报价，加工、切割、折边、损耗等不另计，中标后综合单价不予调整\n9．未尽事宜详见设计图纸、图集、设计补充说明、招标文件、政府相关文件及规范等其它资料，满足验收要求","m2",{"v":43.3,"d":"43.30"},null,{"v":0,"d":"0.00"}]
[44,"3#","工程名称：3#-JES套房","41","011207001001","墙面装饰板","1. 部位：客厅、卧室、玄关、衣帽间\n2. 基层材料种类、规格：9mm阻燃夹板+10mm成品木挂条调平，局部加固综合考虑\n3．面层材料品种、规格、颜色：12mm浅色木饰面(WD-A05)\n4．防护材料种类：所有装修用木材均应进行防火、防腐处理\n5．施工时面层颜色、样式由甲方和设计单位确认选样，加工、排版损耗等不另计，投标人综合考虑报价，中标后综合单价不予调整\n6．未尽事宜详见设计图纸、图集、设计补充说明、招标文件、政府相关文件及规范等其它资料，满足验收要求","1. 部位：客厅、卧室、玄关、衣帽间\n3．面层材料品种、规格、颜色：12mm浅色木饰面(WD-A05)\n4．防护材料种类：所有装修用木材均应进行防火、防腐处理\n5．施工时面层颜色、样式由甲方和设计单位确认选样，加工、排版损耗等不另计，投标人综合考虑报价，中标后综合单价不予调整\n6．未尽事宜详见设计图纸、图集、设计补充说明、招标文件、政府相关文件及规范等其它资料，满足验收要求","m2",378.57,null,{"v":0,"d":"0.00"}]
[45,"3#","工程名称：3#-JES套房","43","011207001003","墙面装饰板","1. 部位：床头背景墙下部\n2. 龙骨材料种类、规格：50mm竖向天地龙骨，配C50龙骨\n3. 基层材料种类、规格：9mm阻燃夹板+10mm成品木挂条调平\n4．面层材料品种、规格、颜色：12mm浅色木饰面(WD-A05)\n5．防护材料种类：所有装修用木材均应进行防火、防腐处理\n6．施工时面层颜色、样式由甲方和设计单位确认选样，加工、排版损耗等不另计，投标人综合考虑报价，中标后综合单价不予调整\n7．未尽事宜详见设计图纸、图集、设计补充说明、招标文件、政府相关文件及规范等其它资料，满足验收要求","1. 部位：床头背景墙下部\n4．面层材料品种、规格、颜色：12mm浅色木饰面(WD-A05)\n5．防护材料种类：所有装修用木材均应进行防火、防腐处理\n6．施工时面层颜色、样式由甲方和设计单位确认选样，加工、排版损耗等不另计，投标人综合考虑报价，中标后综合单价不予调整\n7．未尽事宜详见设计图纸、图集、设计补充说明、招标文件、政府相关文件及规范等其它资料，满足验收要求","m2",8.09,null,{"v":0,"d":"0.00"}]
[46,"3#","工程名称：3#-JES套房","44","011207001004","墙面装饰板","1. 部位：沙发背景墙两侧\n2. 龙骨材料种类、规格：热镀锌钢龙骨（不分规格型号，投标人综合考虑）\n3. 基层材料种类、规格：9mm阻燃夹板\n4．面层材料品种、规格、颜色：12mm浅色木饰面(WD-A05)\n5．防护材料种类：所有装修用木材均应进行防火、防腐处理\n6．施工时面层颜色、样式由甲方和设计单位确认选样，加工、排版损耗等不另计，投标人综合考虑报价，中标后综合单价不予调整\n7．未尽事宜详见设计图纸、图集、设计补充说明、招标文件、政府相关文件及规范等其它资料，满足验收要求","1. 部位：沙发背景墙两侧\n4．面层材料品种、规格、颜色：12mm浅色木饰面(WD-A05)\n5．防护材料种类：所有装修用木材均应进行防火、防腐处理\n6．施工时面层颜色、样式由甲方和设计单位确认选样，加工、排版损耗等不另计，投标人综合考虑报价，中标后综合单价不予调整\n7．未尽事宜详见设计图纸、图集、设计补充说明、招标文件、政府相关文件及规范等其它资料，满足验收要求","m2",8.85,null,{"v":0,"d":"0.00"}]
[47,"3#","工程名称：3#-JES套房","45","011207001005","墙面装饰板","1. 部位：书房背景隔断\n2. 龙骨材料种类、规格：热镀锌钢龙骨（不分规格型号，投标人综合考虑）\n3. 基层材料种类、规格：9mm阻燃夹板\n4．面层材料品种、规格、颜色：12mm浅色木饰面(WD-A05)\n5．防护材料种类：所有装修用木材均应进行防火、防腐处理\n6. 另计，投标人综合考虑报价，中标后综合单价不予调整\n7. 按展开面积计算\n8．未尽事宜详见设计图纸、图集、设计补充说明、招标文件、政府相关文件及规范等其它资料，满足验收要求","1. 部位：书房背景隔断\n4．面层材料品种、规格、颜色：12mm浅色木饰面(WD-A05)\n5．防护材料种类：所有装修用木材均应进行防火、防腐处理\n6. 另计，投标人综合考虑报价，中标后综合单价不予调整\n7. 按展开面积计算\n8．未尽事宜详见设计图纸、图集、设计补充说明、招标文件、政府相关文件及规范等其它资料，满足验收要求","m2",11.21,null,{"v":0,"d":"0.00"}]
[48,"3#","工程名称：3#-JES套房","50","011502002001","木质装饰线","1．工程部位：沙发背景墙\n2．线条材料品种、规格、颜色：80*170mm竖纹木饰面（WD-A05）\n3．施工时面层颜色、样式由甲方和设计单位确认选样，投标人综合考虑报价，中标后综合单价不予调整\n4．未尽事宜详见设计图纸、图集、设计补充说明、招标文件、政府相关文件及规范等其它资料，满足验收要求。","1．工程部位：沙发背景墙\n2．线条材料品种、规格、颜色：80*170mm竖纹木饰面（WD-A05）\n3．施工时面层颜色、样式由甲方和设计单位确认选样，投标人综合考虑报价，中标后综合单价不予调整\n4．未尽事宜详见设计图纸、图集、设计补充说明、招标文件、政府相关文件及规范等其它资料，满足验收要求。","m",{"v":12,"d":"12.00"},null,{"v":0,"d":"0.00"}]
[49,"3#","工程名称：3#-JES套房","55","011207001014","墙面装饰板","1. 部位：床头背景墙JES\n2. 龙骨材料种类、规格：热镀锌钢龙骨（不分规格型号，投标人综合考虑）\n3. 基层材料种类、规格：9mm阻燃夹板+9.5mm石膏板\n4. 面层材料品种、规格、颜色：一边12mm橡木饰面（WD-A01）+一边墙布饰面（WC-A04A）+1.2mm黄古铜不锈钢(MT-A01)+40*70不锈钢方通等\n5. 防护材料种类：所有装修用木材均应进行防火、防腐处理\n6．施工时面层颜色、样式由甲方和设计单位确认选样，加工、排版损耗等不另计，投标人综合考虑报价，中标后综合单价不予调整\n7．未尽事宜详见设计图纸、图集、设计补充说明、招标文件、政府相关文件及规范等其它资料，满足验收要求","1. 部位：床头背景墙JES\n4. 面层材料品种、规格、颜色：一边12mm橡木饰面（WD-A01）\n5. 防护材料种类：所有装修用木材均应进行防火、防腐处理\n6．施工时面层颜色、样式由甲方和设计单位确认选样，加工、排版损耗等不另计，投标人综合考虑报价，中标后综合单价不予调整\n7．未尽事宜详见设计图纸、图集、设计补充说明、招标文件、政府相关文件及规范等其它资料，满足验收要求","m2",7.56,null,{"v":0,"d":"0.00"}]
[50,"3#","工程名称：3#-JES套房","83","WB011501001001","玄关柜","1. 部位：玄关\n2. 柜体尺寸：宽600mm*高3000mm*长（具体详见设计文件）\n3. 龙骨材料种类、规格：热镀锌钢龙骨（不分规格型号，投标人综合考虑）、30*30mm木方(阻燃处理)等\n4．基层板材料种类、规格：9mm阻燃夹板、15mm阻燃夹板、9mm硅酸钙板等基层类型及厚度综合考虑\n5．材料种类：12mm木饰面、墙布饰面(WC-A04)、1.2mm黄古铜不锈钢（MT-A01）、木饰面抽屉柜、不锈钢门把手、夹丝玻璃（GL-A01）等\n6．五金种类、规格：单价包含挂衣杆、五金合页、抽屉滑轨、阻尼隔振胶垫、暗藏灯槽等\n7．按照立面投影面积计算\n8．防护材料种类：所有装修用木材均应进行防火、防腐处理\n9．施工时面层颜色、样式由甲方和设计单位确认选样，加工、排版损耗等不另计，投标人综合考虑报价，中标后综合单价不予调整\n10．未尽事宜详见设计图纸、图集、设计补充说明、招标文件、政府相关文件及规范等其它资料，满足验收要求","1. 部位：玄关\n2. 柜体尺寸：宽600mm*高3000mm*长（具体详见设计文件）\n5．材料种类：12mm木饰面、1.2mm黄古铜不锈钢（MT-A01）、木饰面抽屉柜、不锈钢门把手、夹丝玻璃（GL-A01）等\n6．五金种类、规格：单价包含挂衣杆、五金合页、抽屉滑轨、阻尼隔振胶垫、暗藏灯槽等\n7．按照立面投影面积计算\n8．防护材料种类：所有装修用木材均应进行防火、防腐处理\n9．施工时面层颜色、样式由甲方和设计单位确认选样，加工、排版损耗等不另计，投标人综合考虑报价，中标后综合单价不予调整\n10．未尽事宜详见设计图纸、图集、设计补充说明、招标文件、政府相关文件及规范等其它资料，满足验收要求","m2",12.96,null,{"v":0,"d":"0.00"}]
[51,"3#","工程名称：3#-JES套房","84","WB011501001002","衣帽间衣柜","1. 部位：衣帽间\n2. 柜体尺寸：650mm*3000mm*长（具体详见设计文件）\n3. 龙骨材质种类、规格：热镀锌钢龙骨（不分规格型号，投标人综合考虑）、木龙骨等\n4．基层板材质种类、规格：基层类型及厚度综合考虑，具体详见设计文件\n5．材料种类：12mm木饰面、墙布饰面(WC-A04)、夹丝玻璃（GL-A01）、18mm星白大理石台面（ST-02）、1.2mm黄古铜不锈钢（MT-A01），木饰面抽屉柜、1.2mm不锈钢踢脚线(MT-A01)等\n6．五金种类、规格：单价包含挂衣杆、五金合页、抽屉滑轨、阻尼隔振胶垫、暗藏灯槽等\n7．按照立面投影面积计算\n8．防护材料种类：所有装修用木材均应进行防火、防腐处理\n9．施工时面层颜色、样式由甲方和设计单位确认选样，加工、排版损耗等不另计，投标人综合考虑报价，中标后综合单价不予调整\n10．未尽事宜详见设计图纸、图集、设计补充说明、招标文件、政府相关文件及规范等其它资料，满足验收要求","1. 部位：衣帽间\n2. 柜体尺寸：650mm*3000mm*长（具体详见设计文件）\n5．材料种类：12mm木饰面、夹丝玻璃（GL-A01）、18mm星白大理石台面（ST-02）、1.2mm黄古铜不锈钢（MT-A01），木饰面抽屉柜\n6．五金种类、规格：单价包含挂衣杆、五金合页、抽屉滑轨、阻尼隔振胶垫、暗藏灯槽等\n7．按照立面投影面积计算\n8．防护材料种类：所有装修用木材均应进行防火、防腐处理\n9．施工时面层颜色、样式由甲方和设计单位确认选样，加工、排版损耗等不另计，投标人综合考虑报价，中标后综合单价不予调整\n10．未尽事宜详见设计图纸、图集、设计补充说明、招标文件、政府相关文件及规范等其它资料，满足验收要求","m2",20.28,null,{"v":0,"d":"0.00"}]
[52,"3#","工程名称：3#-JES套房","85","WB011501001003","洗手台+柜体","1. 部位：卫生间\n2．规格：宽600mm*高850mm*长（详见设计文件）\n3．龙骨材料种类、规格：局部热镀锌钢龙骨（不分规格型号，投标人综合考虑）\n4．面层材料品种、规格、颜色：18mm鎏金白玉大理石(ST-A04)台面及挡水条、木饰面柜体及木饰面隔板（WD-A01 ）、局部1.2mm黄古铜不锈钢(MT-A01)装饰嵌条、踢脚线及包边，单价包含灯槽成型等\n5．所有石材材料在施工前须做六面防护处理,石材结晶，以保证防水、防腐、防污、防油\n6．施工时面层颜色、样式由甲方和设计单位确认选样，投标人综合考虑报价，加工、切割、折边、损耗等不另计，中标后综合单价不予调整\n7．未尽事宜详见设计图纸、图集、设计补充说明、招标文件、政府相关文件及规范等其它资料，满足验收要求","1. 部位：卫生间\n2．规格：宽600mm*高850mm*长（详见设计文件）\n4．面层材料品种、规格、颜色：木饰面柜体及木饰面隔板（WD-A01 ）、局部1.2mm黄古铜不锈钢(MT-A01)装饰嵌条及包边，单价包含灯槽成型等\n6．施工时面层颜色、样式由甲方和设计单位确认选样，投标人综合考虑报价，加工、切割、折边、损耗等不另计，中标后综合单价不予调整\n7．未尽事宜详见设计图纸、图集、设计补充说明、招标文件、政府相关文件及规范等其它资料，满足验收要求","m",3.74,null,{"v":0,"d":"0.00"}]
[53,"5#","工程名称：5#-公区","182","010801001002","木饰面暗门","1. 部位：客房走廊\n2. 龙骨材料种类、规格：30mm细木工板门芯\n3. 面层材料种类、规格：12mm橡木饰面（WD-A01）\n4. 门套基层、面层材料种类、规格：钢龙骨等多种规格综合考虑+木饰面门套\n5. 五金：包括不限于优质合页、门磁吸、铰链、拉手等\n6. 未尽事宜详见设计图纸、图集、设计补充说明、招标文件、政府相关文件及规范等其它资料，满足验收要求","1. 部位：客房走廊\n2. 龙骨材料种类、规格：30mm细木工板门芯\n3. 面层材料种类、规格：12mm橡木饰面（WD-A01）\n4. 门套面层材料种类、规格：木饰面门套\n5. 五金：包括不限于优质合页、门磁吸、铰链、拉手等\n6. 未尽事宜详见设计图纸、图集、设计补充说明、招标文件、政府相关文件及规范等其它资料，满足验收要求","m2",12.66,null,{"v":0,"d":"0.00"}]
[54,"5#","工程名称：5#-公区","183","011207001040","硬包暗门","1. 部位：客房走廊（消火栓、管井暗门）\n2. 龙骨材料种类、规格：热镀锌钢龙骨（不分规格型号，投标人综合考虑）+1.0mm厚镀锌铁皮包封\n3. 基层材料种类、规格：12mm阻燃夹板\n4. 面层材料品种、规格、颜色：墙布饰面(12mm雪弗板+扪布饰面)（WC-A01）+50mm宽橡木饰面线条（WD-A01）\n5. 五金品种、规格：包括不限于暗铰链、磁碰、天地轴、隐藏拉手等完成此项工作的全部五金配件\n6. 施工时面层颜色、样式由甲方和设计单位确认选样，投标人综合考虑报价，加工、损耗等不另计，中标后综合单价不予调整\n7. 未尽事宜详见设计图纸、图集、设计补充说明、招标文件、政府相关文件及规范等其它资料，满足验收要求","1. 部位：客房走廊（消火栓、管井暗门）\n4. 面层材料品种、规格、颜色：50mm宽橡木饰面线条（WD-A01）\n6. 施工时面层颜色、样式由甲方和设计单位确认选样，投标人综合考虑报价，加工、损耗等不另计，中标后综合单价不予调整\n7. 未尽事宜详见设计图纸、图集、设计补充说明、招标文件、政府相关文件及规范等其它资料，满足验收要求","m2",20.25,null,{"v":0,"d":"0.00"}]
[55,"5#","工程名称：5#-公区","184","WB010801002002","木饰面暗门","1. 部位：客房走廊\n2. 龙骨材料种类、规格：热镀锌钢龙骨（不分规格型号，投标人综合考虑）\n3. 基层材料种类、规格：9mm阻燃夹板，局部双层\n4. 面层材料品种、规格、颜色：橡木饰面(格栅)（WD-A01A），造型15mm宽*10mm深\n5. 五金：包括不限于合页、门磁吸、铰链、拉手等\n6. 未尽事宜详见设计图纸、图集、设计补充说明、招标文件、政府相关文件及规范等其它资料，满足验收要求","1. 部位：客房走廊\n4. 面层材料品种、规格、颜色：橡木饰面(格栅)（WD-A01A），造型15mm宽*10mm深\n5. 五金：包括不限于合页、门磁吸、铰链、拉手等\n6. 未尽事宜详见设计图纸、图集、设计补充说明、招标文件、政府相关文件及规范等其它资料，满足验收要求","m2",0.93,null,{"v":0,"d":"0.00"}]
[56,"5#","工程名称：5#-公区","203","011207001044","墙面装饰板","1. 部位：客房走廊休息区\n2. 龙骨材料种类、规格：50系列隔墙轻钢龙骨，U型固定夹固定\n3. 基层材料种类、规格：9mm阻燃夹板\n4. 面层材料品种、规格、颜色：橡木饰面(格栅)（WD-A01A），造型15mm宽*10mm深\n5. 防护材料种类：所有装修用木材均应进行防火、防腐处理\n6. 施工时面层颜色、样式由甲方和设计单位确认选样，投标人综合考虑报价，加工、切割、折边、损耗等不另计，中标后综合单价不予调整\n7. 未尽事宜详见设计图纸、图集、设计补充说明、招标文件、政府相关文件及规范等其它资料，满足验收要求","1. 部位：客房走廊休息区\n4. 面层材料品种、规格、颜色：橡木饰面(格栅)（WD-A01A），造型15mm宽*10mm深\n5. 防护材料种类：所有装修用木材均应进行防火、防腐处理\n6. 施工时面层颜色、样式由甲方和设计单位确认选样，投标人综合考虑报价，加工、切割、折边、损耗等不另计，中标后综合单价不予调整\n7. 未尽事宜详见设计图纸、图集、设计补充说明、招标文件、政府相关文件及规范等其它资料，满足验收要求","m2",20.06,null,{"v":0,"d":"0.00"}]
[57,"5#","工程名称：5#-公区","204","011207001045","墙面装饰板","1. 部位：客房走廊\n2. 龙骨材料种类、规格：热镀锌钢龙骨（不分规格型号，投标人综合考虑）\n3. 基层材料种类、规格：9mm阻燃夹板\n4. 面层材料品种、规格、颜色：橡木饰面(格栅)（WD-A01A），造型15mm宽*10mm深\n5. 防护材料种类：所有装修用木材均应进行防火、防腐处理\n6. 施工时面层颜色、样式由甲方和设计单位确认选样，投标人综合考虑报价，加工、切割、折边、损耗等不另计，中标后综合单价不予调整\n7. 未尽事宜详见设计图纸、图集、设计补充说明、招标文件、政府相关文件及规范等其它资料，满足验收要求","1. 部位：客房走廊\n4. 面层材料品种、规格、颜色：橡木饰面(格栅)（WD-A01A），造型15mm宽*10mm深\n5. 防护材料种类：所有装修用木材均应进行防火、防腐处理\n6. 施工时面层颜色、样式由甲方和设计单位确认选样，投标人综合考虑报价，加工、切割、折边、损耗等不另计，中标后综合单价不予调整\n7. 未尽事宜详见设计图纸、图集、设计补充说明、招标文件、政府相关文件及规范等其它资料，满足验收要求","m2",1.65,null,{"v":0,"d":"0.00"}]
[58,"5#","工程名称：5#-公区","205","011207001046","墙面装饰板","1. 部位：客房走廊\n2. 龙骨材料种类、规格：50系列隔墙轻钢龙骨，U型固定夹固定，局部暗门处钢龙骨加固综合考虑\n3. 基层材料种类、规格：12mm阻燃夹板\n4. 面层材料品种、规格、颜色：墙布饰面(12mm雪弗板+扪布饰面)（WC-A01）+50mm宽橡木饰面线条（WD-A01）\n5. 防护材料种类：所有装修用木材均应进行防火、防腐处理\n6. 施工时面层颜色、样式由甲方和设计单位确认选样，投标人综合考虑报价，加工、切割、折边、损耗等不另计，中标后综合单价不予调整\n7. 未尽事宜详见设计图纸、图集、设计补充说明、招标文件、政府相关文件及规范等其它资料，满足验收要求","1. 部位：客房走廊\n4. 面层材料品种、规格、颜色：50mm宽橡木饰面线条（WD-A01）\n5. 防护材料种类：所有装修用木材均应进行防火、防腐处理\n6. 施工时面层颜色、样式由甲方和设计单位确认选样，投标人综合考虑报价，加工、切割、折边、损耗等不另计，中标后综合单价不予调整\n7. 未尽事宜详见设计图纸、图集、设计补充说明、招标文件、政府相关文件及规范等其它资料，满足验收要求","m2",197.65,null,{"v":0,"d":"0.00"}]
[59,"5#","工程名称：5#-公区","206","011207001047","墙面装饰板","1. 部位：客房走廊\n2. 龙骨材料种类、规格：热镀锌钢龙骨（不分规格型号，投标人综合考虑）\n3. 基层材料种类、规格：12mm阻燃板\n4. 面层材料品种、规格、颜色：12mm橡木饰面(（WD-A01）\n5. 防护材料种类：所有装修用木材均应进行防火、防腐处理\n6. 施工时面层颜色、样式由甲方和设计单位确认选样，投标人综合考虑报价，加工、切割、折边、损耗等不另计，中标后综合单价不予调整\n7. 未尽事宜详见设计图纸、图集、设计补充说明、招标文件、政府相关文件及规范等其它资料，满足验收要求","1. 部位：客房走廊\n4. 面层材料品种、规格、颜色：12mm橡木饰面(（WD-A01）\n5. 防护材料种类：所有装修用木材均应进行防火、防腐处理\n6. 施工时面层颜色、样式由甲方和设计单位确认选样，投标人综合考虑报价，加工、切割、折边、损耗等不另计，中标后综合单价不予调整\n7. 未尽事宜详见设计图纸、图集、设计补充说明、招标文件、政府相关文件及规范等其它资料，满足验收要求","m2",{"v":25.7,"d":"25.70"},null,{"v":0,"d":"0.00"}]
[60,"5#","工程名称：5#-公区","207","011207001048","墙面装饰板","1. 部位：客房走廊\n2. 龙骨材料种类、规格：50系列隔墙轻钢龙骨，U型固定夹固定\n3. 基层材料种类、规格：12mm阻燃板\n4. 面层材料品种、规格、颜色：12mm橡木饰面(（WD-A01）\n5. 防护材料种类：所有装修用木材均应进行防火、防腐处理\n6. 施工时面层颜色、样式由甲方和设计单位确认选样，投标人综合考虑报价，加工、切割、折边、损耗等不另计，中标后综合单价不予调整\n7. 未尽事宜详见设计图纸、图集、设计补充说明、招标文件、政府相关文件及规范等其它资料，满足验收要求","1. 部位：客房走廊\n4. 面层材料品种、规格、颜色：12mm橡木饰面(（WD-A01）\n5. 防护材料种类：所有装修用木材均应进行防火、防腐处理\n6. 施工时面层颜色、样式由甲方和设计单位确认选样，投标人综合考虑报价，加工、切割、折边、损耗等不另计，中标后综合单价不予调整\n7. 未尽事宜详见设计图纸、图集、设计补充说明、招标文件、政府相关文件及规范等其它资料，满足验收要求","m2",33.88,null,{"v":0,"d":"0.00"}]
[61,"5#","工程名称：5#-DX套房","3","010801001001","入户门","1. 部位：DX套房入户门\n2．门室内侧外框尺寸：1520*3000mm，室外侧外框尺寸详见设计文件\n3．门套材料种类、规格：室内侧15mm阻燃夹板+浅色木饰面门套(WD-A05 )，过道侧1.2mm黄古铜不锈钢线条(MT-A01)\n4．门楣材料种类、规格：15mm阻燃夹板+9mm阻燃夹板+浅色木饰面门楣（WD-A05）\n5．门扇饰面材质种类、规格：浅色木饰面入户门(WD-A05)，包含20mm细木工板成品门芯、镀锌方通钢龙骨，双面9mm阻燃夹板，外侧1.2mm黄古铜不锈钢（防指纹）线条(MT-A01)\n6．五金品种、规格：包含但不限于凸轮暗藏闭门器、门底挡尘条、猫眼、防盗链、门碰、暗藏五金合页(选型一侧三副)、消音胶条等五金件,门锁此处报价不考虑\n7．防护材料种类：所有装修用木材均应进行防火、防腐处理\n8．施工时面层颜色、样式由甲方和设计单位确认选样，投标人综合考虑报价，加工、切割、折边、损耗等不另计，中标后综合单价不予调整\n9．未尽事宜详见设计图纸、图集、设计补充说明、招标文件、政府相关文件及规范等其它资料，满足验收要求","1. 部位：DX套房入户门\n2．门室内侧外框尺寸：1520*3000mm，室外侧外框尺寸详见设计文件\n3．门套材料种类、规格：浅色木饰面门套(WD-A05 )\n4．门楣材料种类、规格：浅色木饰面门楣（WD-A05）\n5．门扇饰面材质种类、规格：浅色木饰面入户门(WD-A05)，包含20mm细木工板成品门芯、镀锌方通钢龙骨，双面9mm阻燃夹板\n6．五金品种、规格：包含但不限于凸轮暗藏闭门器、门底挡尘条、猫眼、防盗链、门碰、暗藏五金合页(选型一侧三副)、消音胶条等五金件,门锁此处报价不考虑\n7．防护材料种类：所有装修用木材均应进行防火、防腐处理\n8．施工时面层颜色、样式由甲方和设计单位确认选样，投标人综合考虑报价，加工、切割、折边、损耗等不另计，中标后综合单价不予调整\n9．未尽事宜详见设计图纸、图集、设计补充说明、招标文件、政府相关文件及规范等其它资料，满足验收要求","樘",{"v":1,"d":"1.00"},null,{"v":0,"d":"0.00"}]
[62,"5#","工程名称：5#-DX套房","4","010801001002","木质门","1. 部位：卫生间、备餐间、卧室等\n2．门套材料种类、规格：12mm阻燃夹板+浅色木饰面门套(WD-A05 )\n3．门楣材料种类、规格：9mm阻燃夹板+浅色木饰面门楣（WD-A05）\n4．门扇饰面材质种类、规格：浅色木饰面门(WD-A05)，包含20mm细木工板成品门芯、20*40mm热镀锌方通钢龙骨等\n5．五金品种、规格：包含但不限于门碰、暗藏五金合页、消音胶条、门把手等五金件\n6．按最大外框尺寸计算\n7．防护材料种类：所有装修用木材均应进行防火、防腐处理\n8．施工时面层颜色、样式由甲方和设计单位确认选样，投标人综合考虑报价，加工、切割、折边、损耗等不另计，中标后综合单价不予调整\n9．未尽事宜详见设计图纸、图集、设计补充说明、招标文件、政府相关文件及规范等其它资料，满足验收要求","1. 部位：卫生间、备餐间、卧室等\n2．门套材料种类、规格：浅色木饰面门套(WD-A05 )\n3．门楣材料种类、规格：浅色木饰面门楣（WD-A05）\n4．门扇饰面材质种类、规格：浅色木饰面门(WD-A05)，包含20mm细木工板成品门芯、20*40mm热镀锌方通钢龙骨等\n5．五金品种、规格：包含但不限于门碰、暗藏五金合页、消音胶条、门把手等五金件\n6．按最大外框尺寸计算\n7．防护材料种类：所有装修用木材均应进行防火、防腐处理\n8．施工时面层颜色、样式由甲方和设计单位确认选样，投标人综合考虑报价，加工、切割、折边、损耗等不另计，中标后综合单价不予调整\n9．未尽事宜详见设计图纸、图集、设计补充说明、招标文件、政府相关文件及规范等其它资料，满足验收要求","m2",11.22,null,{"v":0,"d":"0.00"}]
[63,"5#","工程名称：5#-DX套房","45","011207001001","墙面装饰板","1．部位：玄关、客厅、书房、卧室墙面\n2．龙骨材料种类、规格：轻钢副龙骨\n3．基层材料种类、规格：9mm阻燃夹板\n4．面层材料品种、规格、颜色：12mm浅色木饰面（WD-A05）\n5．防护材料种类：所有装修用木材均应进行防火、防腐处理\n6．施工时面层颜色、样式由甲方和设计单位确认选样，加工、排版损耗等不另计，投标人综合考虑报价，中标后综合单价不予调整\n7．未尽事宜详见设计图纸、图集、设计补充说明、招标文件、政府相关文件及规范等其它资料，满足验收要求","1．部位：玄关、客厅、书房、卧室墙面\n4．面层材料品种、规格、颜色：12mm浅色木饰面（WD-A05）\n5．防护材料种类：所有装修用木材均应进行防火、防腐处理\n6．施工时面层颜色、样式由甲方和设计单位确认选样，加工、排版损耗等不另计，投标人综合考虑报价，中标后综合单价不予调整\n7．未尽事宜详见设计图纸、图集、设计补充说明、招标文件、政府相关文件及规范等其它资料，满足验收要求","m2",15.22,null,{"v":0,"d":"0.00"}]
[64,"5#","工程名称：5#-DX套房","46","011207001002","墙面装饰板","1．部位：玄关、客厅、书房、卧室墙面\n2．基层材料种类、规格：9mm阻燃夹板，局部阻燃夹板加固报价综合考虑\n3．面层材料品种、规格、颜色：12mm浅色木饰面（WD-A05）\n4．防护材料种类：所有装修用木材均应进行防火、防腐处理\n5．施工时面层颜色、样式由甲方和设计单位确认选样，加工、排版损耗等不另计，投标人综合考虑报价，中标后综合单价不予调整\n6．未尽事宜详见设计图纸、图集、设计补充说明、招标文件、政府相关文件及规范等其它资料，满足验收要求","1．部位：玄关、客厅、书房、卧室墙面\n3．面层材料品种、规格、颜色：12mm浅色木饰面（WD-A05）\n4．防护材料种类：所有装修用木材均应进行防火、防腐处理\n5．施工时面层颜色、样式由甲方和设计单位确认选样，加工、排版损耗等不另计，投标人综合考虑报价，中标后综合单价不予调整\n6．未尽事宜详见设计图纸、图集、设计补充说明、招标文件、政府相关文件及规范等其它资料，满足验收要求","m2",123.84,null,{"v":0,"d":"0.00"}]
[65,"5#","工程名称：5#-DX套房","50","011207001006","墙面装饰板","1. 部位：床头背景墙等\n2. 龙骨材料种类、规格：热镀锌钢龙骨（不分规格型号，投标人综合考虑）\n3. 基层材料种类、规格：9mm阻燃夹板+9.5mm耐火石膏板\n4. 面层材料品种、规格、颜色：一边12mm浅色木饰面（WD-A05）+一边墙布饰面（WC-A04A）+1.2mm黄古铜不锈钢(MT-A01)+40*70不锈钢方通等\n5. 防护材料种类：所有装修用木材均应进行防火、防腐处理\n6．施工时面层颜色、样式由甲方和设计单位确认选样，加工、排版损耗等不另计，投标人综合考虑报价，中标后综合单价不予调整\n7．未尽事宜详见设计图纸、图集、设计补充说明、招标文件、政府相关文件及规范等其它资料，满足验收要求","1. 部位：床头背景墙等\n4. 面层材料品种、规格、颜色：一边12mm浅色木饰面（WD-A05）\n5. 防护材料种类：所有装修用木材均应进行防火、防腐处理\n6．施工时面层颜色、样式由甲方和设计单位确认选样，加工、排版损耗等不另计，投标人综合考虑报价，中标后综合单价不予调整\n7．未尽事宜详见设计图纸、图集、设计补充说明、招标文件、政府相关文件及规范等其它资料，满足验收要求","m2",3.78,null,{"$f":"+J67*K67","v":{"v":0,"d":"0.00"}}]
[66,"5#","工程名称：5#-DX套房","81","WB011501001001","玄关柜、衣柜","1．规格：宽600mm*高3000mm\n2．龙骨材质种类、规格：30*30mm木方(阻燃处理)、镀锌钢龙骨（规格型号综合考虑）\n3．基层板材质种类、规格：9mm阻燃夹板、15mm阻燃夹板、9mm硅酸钙板等基层类型及厚度综合考虑\n4．材料种类：12mm厚浅色木饰面（WD-A02）、墙布饰面(WC-A04C)，浅色木饰面抽屉柜、不锈钢门把手、夹丝玻璃(GLA-01）、黄古铜不锈钢(MT-A01）等\n5．五金种类、规格：单价包含挂衣杆、五金合页、抽屉滑轨、阻尼隔振胶垫、暗藏灯槽等\n6．按照立面投影面积计算\n7．防护材料种类：所有装修用木材均应进行防火、防腐处理\n8．施工时面层颜色、样式由甲方和设计单位确认选样，加工、排版损耗等不另计，投标人综合考虑报价，中标后综合单价不予调整\n9．未尽事宜详见设计图纸、图集、设计补充说明、招标文件、政府相关文件及规范等其它资料，满足验收要求","1．规格：宽600mm*高3000mm\n4．材料种类：12mm厚浅色木饰面（WD-A02），浅色木饰面抽屉柜、不锈钢门把手、夹丝玻璃(GLA-01）、黄古铜不锈钢(MT-A01）等\n5．五金种类、规格：单价包含挂衣杆、五金合页、抽屉滑轨、阻尼隔振胶垫、暗藏灯槽等\n6．按照立面投影面积计算\n7．防护材料种类：所有装修用木材均应进行防火、防腐处理\n8．施工时面层颜色、样式由甲方和设计单位确认选样，加工、排版损耗等不另计，投标人综合考虑报价，中标后综合单价不予调整\n9．未尽事宜详见设计图纸、图集、设计补充说明、招标文件、政府相关文件及规范等其它资料，满足验收要求","m2",{"v":12.3,"d":"12.30"},null,{"v":0,"d":"0.00"}]
[67,"5#","工程名称：5#-DX套房","82","WB011501001002","行李柜","1．规格：长1200mm*宽600mm*高800mm\n2．材料种类：12mm浅色木饰面（WD-A05）、18mm欧亚木纹大理石(ST-A03)台面\n5．五金种类、规格：单价包含五金合页、抽屉滑轨、阻尼隔振胶垫等\n6．按照立面投影面积计算\n7．防护材料种类：所有装修用木材均应进行防火、防腐处理\n8．施工时面层颜色、样式由甲方和设计单位确认选样，加工、排版损耗等不另计，投标人综合考虑报价，中标后综合单价不予调整\n9．未尽事宜详见设计图纸、图集、设计补充说明、招标文件、政府相关文件及规范等其它资料，满足验收要求","1．规格：长1200mm*宽600mm*高800mm\n2．材料种类：12mm浅色木饰面（WD-A05）、18mm欧亚木纹大理石(ST-A03)台面\n5．五金种类、规格：单价包含五金合页、抽屉滑轨、阻尼隔振胶垫等\n6．按照立面投影面积计算\n7．防护材料种类：所有装修用木材均应进行防火、防腐处理\n8．施工时面层颜色、样式由甲方和设计单位确认选样，加工、排版损耗等不另计，投标人综合考虑报价，中标后综合单价不予调整\n9．未尽事宜详见设计图纸、图集、设计补充说明、招标文件、政府相关文件及规范等其它资料，满足验收要求","m2",0.96,null,{"v":0,"d":"0.00"}]
[68,"5#","工程名称：5#-DX套房","83","WB011501001003","洗手台+柜体","1. 部位：卫生间、餐厅\n2．规格：宽600mm*高850mm\n3．龙骨材料种类、规格：局部热镀锌方通等钢龙骨规格型号综合考虑\n4．面层材料品种、规格、颜色：18mm星白大理石(ST-A02)台面及挡水条、木饰面柜体及木饰面隔板（WD-A01）、局部1.2mm古黄古铜不锈钢(MT-A01)装饰嵌条及包边\n5．所有石材材料在施工前须做六面防护处理石材结晶，以保证防水、防腐、防污、防油\n6．施工时面层颜色、样式由甲方和设计单位确认选样，投标人综合考虑报价，加工、切割、折边、损耗等不另计，中标后综合单价不予调整\n7．未尽事宜详见设计图纸、图集、设计补充说明、招标文件、政府相关文件及规范等其它资料，满足验收要求","1. 部位：卫生间、餐厅\n2．规格：宽600mm*高850mm\n4．面层材料品种、规格、颜色：木饰面柜体及木饰面隔板（WD-A01）、局部1.2mm古黄古铜不锈钢(MT-A01)装饰嵌条及包边\n6．施工时面层颜色、样式由甲方和设计单位确认选样，投标人综合考虑报价，加工、切割、折边、损耗等不另计，中标后综合单价不予调整\n7．未尽事宜详见设计图纸、图集、设计补充说明、招标文件、政府相关文件及规范等其它资料，满足验收要求","m",5.25,null,{"v":0,"d":"0.00"}]
[69,"5#","工程名称：5#-DX套房","88","011502002001","木质装饰线","1．部位：窗边哑口套处、玄关阳角处等\n2．线条材料品种、规格、颜色：200*100mm浅色木饰面弧形装饰线条（WD-A05 ）\n3．施工时面层颜色、样式由甲方和设计单位确认选样，加工、排版损耗等不另计，投标人综合考虑报价，中标后综合单价不予调整\n4．未尽事宜详见设计图纸、图集、设计补充说明、招标文件、政府相关文件及规范等其它资料，满足验收要求","1．部位：窗边哑口套处、玄关阳角处等\n2．线条材料品种、规格、颜色：200*100mm浅色木饰面弧形装饰线条（WD-A05 ）\n3．施工时面层颜色、样式由甲方和设计单位确认选样，加工、排版损耗等不另计，投标人综合考虑报价，中标后综合单价不予调整\n4．未尽事宜详见设计图纸、图集、设计补充说明、招标文件、政府相关文件及规范等其它资料，满足验收要求","m",{"v":6,"d":"6.00"},null,{"v":0,"d":"0.00"}]
[70,"5#","工程名称：5#-JS套房","3","010801001001","入户门","1．部位：JS套房\n2．门室内侧外框尺寸：1520*3000mm，室外侧外框尺寸详见设计文件\n3．门套材料种类、规格：室内侧15mm阻燃夹板+橡木饰面门套(WD-A01 )，过道侧1.2mm黄古铜不锈钢线条(MT-A01)\n4．门楣材料种类、规格：15mm阻燃夹板+9mm阻燃夹板+橡木饰面门楣（WD-A01）\n5．门扇饰面材质种类、规格：橡木饰面入户门(WD-A01)，包含20mm细木工板成品门芯、30*30*3mm热镀锌方通钢龙骨，双面9mm阻燃夹板，外侧1.2mm黄古铜不锈钢（防指纹）线条(MT-A01)\n6．五金品种、规格：包含但不限于凸轮暗藏闭门器、门底挡尘条、猫眼、防盗链、门碰、暗藏五金合页(选型一侧三副)、消音胶条等五金件,门锁此处报价不考虑\n7．防护材料种类：所有装修用木材均应进行防火、防腐处理\n8．施工时面层颜色、样式由甲方和设计单位确认选样，投标人综合考虑报价，加工、切割、折边、损耗等不另计，中标后综合单价不予调整\n9．未尽事宜详见设计图纸、图集、设计补充说明、招标文件、政府相关文件及规范等其它资料，满足验收要求","1．部位：JS套房\n2．门室内侧外框尺寸：1520*3000mm，室外侧外框尺寸详见设计文件\n3．门套材料种类、规格：橡木饰面门套(WD-A01 )\n4．门楣材料种类、规格：橡木饰面门楣（WD-A01）\n5．门扇饰面材质种类、规格：橡木饰面入户门(WD-A01)，包含20mm细木工板成品门芯、30*30*3mm热镀锌方通钢龙骨，双面9mm阻燃夹板\n6．五金品种、规格：包含但不限于凸轮暗藏闭门器、门底挡尘条、猫眼、防盗链、门碰、暗藏五金合页(选型一侧三副)、消音胶条等五金件,门锁此处报价不考虑\n7．防护材料种类：所有装修用木材均应进行防火、防腐处理\n8．施工时面层颜色、样式由甲方和设计单位确认选样，投标人综合考虑报价，加工、切割、折边、损耗等不另计，中标后综合单价不予调整\n9．未尽事宜详见设计图纸、图集、设计补充说明、招标文件、政府相关文件及规范等其它资料，满足验收要求","樘",{"v":2,"d":"2.00"},null,{"v":0,"d":"0.00"}]
[71,"5#","工程名称：5#-JS套房","4","010801001002","木质门","1．部位：套房内卧室、客厅、衣帽间、卫生间等\n2．门套材料种类、规格：12mm阻燃夹板+橡木饰面门套(WD-A01)\n3．门楣材料种类、规格：9mm阻燃夹板+橡木饰面门楣（WD-A01）\n4．门扇饰面材质种类、规格：橡木饰面门(WD-A01)，包含20mm细木工板成品门芯、20*40mm热镀锌方通钢龙骨等\n5．五金品种、规格：包含但不限于门碰、暗藏五金合页、消音胶条、门把手等五金件\n6．按最大外框尺寸计算\n7．防护材料种类：所有装修用木材均应进行防火、防腐处理\n8．施工时面层颜色、样式由甲方和设计单位确认选样，投标人综合考虑报价，加工、切割、折边、损耗等不另计，中标后综合单价不予调整\n9．未尽事宜详见设计图纸、图集、设计补充说明、招标文件、政府相关文件及规范等其它资料，满足验收要求","1．部位：套房内卧室、客厅、衣帽间、卫生间等\n2．门套材料种类、规格：橡木饰面门套(WD-A01)\n3．门楣材料种类、规格：橡木饰面门楣（WD-A01）\n4．门扇饰面材质种类、规格：橡木饰面门(WD-A01)，包含20mm细木工板成品门芯、20*40mm热镀锌方通钢龙骨等\n5．五金品种、规格：包含但不限于门碰、暗藏五金合页、消音胶条、门把手等五金件\n6．按最大外框尺寸计算\n7．防护材料种类：所有装修用木材均应进行防火、防腐处理\n8．施工时面层颜色、样式由甲方和设计单位确认选样，投标人综合考虑报价，加工、切割、折边、损耗等不另计，中标后综合单价不予调整\n9．未尽事宜详见设计图纸、图集、设计补充说明、招标文件、政府相关文件及规范等其它资料，满足验收要求","m2",16.26,null,{"v":0,"d":"0.00"}]
[72,"5#","工程名称：5#-JS套房","5","010801001003","木质门","1．部位：衣帽间通往卫生间\n2．门套材料种类、规格：12mm阻燃夹板，局部双层+1.2mm黄古铜不锈钢（MT-A01）\n3．门楣材料种类、规格：热镀锌钢龙骨（不分规格型号，投标人综合考虑）+12mm阻燃夹板+12mm橡木饰面（WD-A01）\n4．门扇饰面材质种类、规格：橡木饰面门(WD-A01)，包含成品门芯板、黄古铜不锈钢（MT-A01）等\n5．五金品种、规格：包含但不限于液压门轴、滑轨、消音胶条、门把手等五金件\n6．按外框尺寸计算\n7．防护材料种类：所有装修用木材均应进行防火、防腐处理\n8．施工时面层颜色、样式由甲方和设计单位确认选样，投标人综合考虑报价，加工、切割、折边、损耗等不另计，中标后综合单价不予调整\n9．未尽事宜详见设计图纸、图集、设计补充说明、招标文件、政府相关文件及规范等其它资料，满足验收要求","1．部位：衣帽间通往卫生间\n2．门套材料种类、规格：1.2mm黄古铜不锈钢（MT-A01）\n3．门楣材料种类、规格：12mm橡木饰面（WD-A01）\n4．门扇饰面材质种类、规格：橡木饰面门(WD-A01)，包含成品门芯板、黄古铜不锈钢（MT-A01）等\n5．五金品种、规格：包含但不限于液压门轴、滑轨、消音胶条、门把手等五金件\n6．按外框尺寸计算\n7．防护材料种类：所有装修用木材均应进行防火、防腐处理\n8．施工时面层颜色、样式由甲方和设计单位确认选样，投标人综合考虑报价，加工、切割、折边、损耗等不另计，中标后综合单价不予调整\n9．未尽事宜详见设计图纸、图集、设计补充说明、招标文件、政府相关文件及规范等其它资料，满足验收要求","m2",5.04,null,{"v":0,"d":"0.00"}]
[73,"5#","工程名称：5#-JS套房","47","011207001001","墙面装饰板","1．部位：客厅、卧室、玄关、衣帽间等\n2．基层材料种类、规格：9mm阻燃夹板+10mm成品木挂条调平，局部加固综合考虑\n3．面层材料品种、规格、颜色：12mm橡木饰面（WD-A01）\n4．防护材料种类：所有装修用木材均应进行防火、防腐处理\n5．施工时面层颜色、样式由甲方和设计单位确认选样，加工、排版损耗等不另计，投标人综合考虑报价，中标后综合单价不予调整\n6．未尽事宜详见设计图纸、图集、设计补充说明、招标文件、政府相关文件及规范等其它资料，满足验收要求","1．部位：客厅、卧室、玄关、衣帽间等\n3．面层材料品种、规格、颜色：12mm橡木饰面（WD-A01）\n4．防护材料种类：所有装修用木材均应进行防火、防腐处理\n5．施工时面层颜色、样式由甲方和设计单位确认选样，加工、排版损耗等不另计，投标人综合考虑报价，中标后综合单价不予调整\n6．未尽事宜详见设计图纸、图集、设计补充说明、招标文件、政府相关文件及规范等其它资料，满足验收要求","m2",{"v":176.7,"d":"176.70"},null,{"v":0,"d":"0.00"}]
[74,"5#","工程名称：5#-JS套房","48","011207001002","墙面装饰板","1. 部位：客厅、卧室等\n2. 龙骨材料种类、规格：50mm竖向天地龙骨，配C50龙骨\n3. 基层材料种类、规格：9mm阻燃夹板+10mm成品木挂条调平\n4．面层材料品种、规格、颜色：12mm橡木饰面（WD-A01）\n5．防护材料种类：所有装修用木材均应进行防火、防腐处理\n6．施工时面层颜色、样式由甲方和设计单位确认选样，加工、排版损耗等不另计，投标人综合考虑报价，中标后综合单价不予调整\n7．未尽事宜详见设计图纸、图集、设计补充说明、招标文件、政府相关文件及规范等其它资料，满足验收要求","1. 部位：客厅、卧室等\n4．面层材料品种、规格、颜色：12mm橡木饰面（WD-A01）\n5．防护材料种类：所有装修用木材均应进行防火、防腐处理\n6．施工时面层颜色、样式由甲方和设计单位确认选样，加工、排版损耗等不另计，投标人综合考虑报价，中标后综合单价不予调整\n7．未尽事宜详见设计图纸、图集、设计补充说明、招标文件、政府相关文件及规范等其它资料，满足验收要求","m2",13.94,null,{"v":0,"d":"0.00"}]
[75,"5#","工程名称：5#-JS套房","49","011207001003","墙面装饰板","1. 部位：玄关、客厅及电视背景墙、卧室等\n2. 龙骨材料种类、规格：热镀锌钢龙骨（不分规格型号，投标人综合考虑）\n3. 基层材料种类、规格：9mm阻燃夹板\n4．面层材料品种、规格、颜色：12mm橡木饰面（WD-A01）\n5．防护材料种类：所有装修用木材均应进行防火、防腐处理\n6．施工时面层颜色、样式由甲方和设计单位确认选样，加工、排版损耗等不另计，投标人综合考虑报价，中标后综合单价不予调整\n7．未尽事宜详见设计图纸、图集、设计补充说明、招标文件、政府相关文件及规范等其它资料，满足验收要求","1. 部位：玄关、客厅及电视背景墙、卧室等\n4．面层材料品种、规格、颜色：12mm橡木饰面（WD-A01）\n5．防护材料种类：所有装修用木材均应进行防火、防腐处理\n6．施工时面层颜色、样式由甲方和设计单位确认选样，加工、排版损耗等不另计，投标人综合考虑报价，中标后综合单价不予调整\n7．未尽事宜详见设计图纸、图集、设计补充说明、招标文件、政府相关文件及规范等其它资料，满足验收要求","m2",24.01,null,{"v":0,"d":"0.00"}]
[76,"5#","工程名称：5#-JS套房","50","011207001004","墙面装饰板","1. 部位：客厅沙发背景隔断等\n2. 龙骨材料种类、规格：热镀锌钢龙骨（不分规格型号，投标人综合考虑）\n3．面层材料品种、规格、颜色：12mm橡木饰面（WD-A01）\n4．防护材料种类：所有装修用木材均应进行防火、防腐处理\n5．施工时面层颜色、样式由甲方和设计单位确认选样，加工、排版损耗等不另计，投标人综合考虑报价，中标后综合单价不予调整\n6．未尽事宜详见设计图纸、图集、设计补充说明、招标文件、政府相关文件及规范等其它资料，满足验收要求","1. 部位：客厅沙发背景隔断等\n3．面层材料品种、规格、颜色：12mm橡木饰面（WD-A01）\n4．防护材料种类：所有装修用木材均应进行防火、防腐处理\n5．施工时面层颜色、样式由甲方和设计单位确认选样，加工、排版损耗等不另计，投标人综合考虑报价，中标后综合单价不予调整\n6．未尽事宜详见设计图纸、图集、设计补充说明、招标文件、政府相关文件及规范等其它资料，满足验收要求","m2",{"v":6.2,"d":"6.20"},null,{"v":0,"d":"0.00"}]
[77,"5#","工程名称：5#-JS套房","61","011207001014","墙面装饰板","1. 部位：电视背景墙等\n2. 龙骨材料种类、规格：30*20mm木龙骨，阻燃处理\n3. 面层材料品种、规格、颜色：12mm实木黑色漆面板（WD-A04）\n4. 防护材料种类：所有装修用木材均应进行防火、防腐处理\n5．施工时面层颜色、样式由甲方和设计单位确认选样，加工、排版损耗等不另计，投标人综合考虑报价，中标后综合单价不予调整\n6．未尽事宜详见设计图纸、图集、设计补充说明、招标文件、政府相关文件及规范等其它资料，满足验收要求","1. 部位：电视背景墙等\n3. 面层材料品种、规格、颜色：12mm实木黑色漆面板（WD-A04）\n4. 防护材料种类：所有装修用木材均应进行防火、防腐处理\n5．施工时面层颜色、样式由甲方和设计单位确认选样，加工、排版损耗等不另计，投标人综合考虑报价，中标后综合单价不予调整\n6．未尽事宜详见设计图纸、图集、设计补充说明、招标文件、政府相关文件及规范等其它资料，满足验收要求","m2",15.77,null,{"v":0,"d":"0.00"}]
[78,"5#","工程名称：5#-JS套房","67","011207001019","墙面装饰板","1. 部位：床头背景墙等\n2. 龙骨材料种类、规格：热镀锌钢龙骨（不分规格型号，投标人综合考虑）\n3. 基层材料种类、规格：9mm阻燃夹板+9.5mm耐火石膏板\n4. 面层材料品种、规格、颜色：一边12mm橡木饰面（WD-A01）+一边墙布饰面（WC-A05）+1.2mm黄古铜不锈钢(MT-A01)+40*70不锈钢方通等\n5. 防护材料种类：所有装修用木材均应进行防火、防腐处理\n6．施工时面层颜色、样式由甲方和设计单位确认选样，加工、排版损耗等不另计，投标人综合考虑报价，中标后综合单价不予调整\n7．未尽事宜详见设计图纸、图集、设计补充说明、招标文件、政府相关文件及规范等其它资料，满足验收要求","1. 部位：床头背景墙等\n4. 面层材料品种、规格、颜色：一边12mm橡木饰面（WD-A01）\n5. 防护材料种类：所有装修用木材均应进行防火、防腐处理\n6．施工时面层颜色、样式由甲方和设计单位确认选样，加工、排版损耗等不另计，投标人综合考虑报价，中标后综合单价不予调整\n7．未尽事宜详见设计图纸、图集、设计补充说明、招标文件、政府相关文件及规范等其它资料，满足验收要求","m2",7.56,null,{"v":0,"d":"0.00"}]
[79,"5#","工程名称：5#-JS套房","92","WB011501001001","玄关柜","1. 部位：玄关\n2. 柜体尺寸：1100*600*3000mm\n3. 龙骨材料种类、规格：热镀锌钢龙骨（不分规格型号，投标人综合考虑）、30*30mm木方(阻燃处理)等\n4．基层板材料种类、规格：9mm阻燃夹板、15mm阻燃夹板、9mm硅酸钙板等基层类型及厚度综合考虑\n5．材料种类：12mm厚橡木饰面（WD-A01）、墙布饰面(WC-A04B)、黄古铜不锈钢（MT-A01）、橡木饰面抽屉柜、不锈钢门把手、夹丝玻璃（GL-A01）等\n6．五金种类、规格：单价包含挂衣杆、五金合页、抽屉滑轨、阻尼隔振胶垫、暗藏灯槽等\n7．按照立面投影面积计算\n8．防护材料种类：所有装修用木材均应进行防火、防腐处理\n9．施工时面层颜色、样式由甲方和设计单位确认选样，加工、排版损耗等不另计，投标人综合考虑报价，中标后综合单价不予调整\n10．未尽事宜详见设计图纸、图集、设计补充说明、招标文件、政府相关文件及规范等其它资料，满足验收要求","1. 部位：玄关\n2. 柜体尺寸：1100*600*3000mm\n5．材料种类：12mm厚橡木饰面（WD-A01）、黄古铜不锈钢（MT-A01）、橡木饰面抽屉柜、不锈钢门把手、夹丝玻璃（GL-A01）等\n6．五金种类、规格：单价包含挂衣杆、五金合页、抽屉滑轨、阻尼隔振胶垫、暗藏灯槽等\n7．按照立面投影面积计算\n8．防护材料种类：所有装修用木材均应进行防火、防腐处理\n9．施工时面层颜色、样式由甲方和设计单位确认选样，加工、排版损耗等不另计，投标人综合考虑报价，中标后综合单价不予调整\n10．未尽事宜详见设计图纸、图集、设计补充说明、招标文件、政府相关文件及规范等其它资料，满足验收要求","m2",{"v":3,"d":"3.00"},null,{"v":0,"d":"0.00"}]
[80,"5#","工程名称：5#-JS套房","93","WB011501001002","衣帽间衣柜","1. 部位：衣帽间\n2. 柜体尺寸：650mm*3000mm*长（具体详见设计文件）\n3. 龙骨材质种类、规格：热镀锌钢龙骨（不分规格型号，投标人综合考虑）、木龙骨等\n4．基层板材质种类、规格：基层类型及厚度综合考虑，具体详见设计文件\n5．材料种类：12mm橡木饰面（WD-A01）、墙布饰面(WC-A04B)、夹丝玻璃（GL-A01）、星白大理石台面（ST-02）、黄古铜不锈钢（MT-A01），橡木饰面抽屉柜、不锈钢踢脚线(MT-A01)等\n6．五金种类、规格：单价包含挂衣杆、五金合页、抽屉滑轨、阻尼隔振胶垫、暗藏灯槽等\n7．按照立面投影面积计算\n8．防护材料种类：所有装修用木材均应进行防火、防腐处理\n9．施工时面层颜色、样式由甲方和设计单位确认选样，加工、排版损耗等不另计，投标人综合考虑报价，中标后综合单价不予调整\n10．未尽事宜详见设计图纸、图集、设计补充说明、招标文件、政府相关文件及规范等其它资料，满足验收要求","1. 部位：衣帽间\n2. 柜体尺寸：650mm*3000mm*长（具体详见设计文件）\n5．材料种类：12mm橡木饰面（WD-A01）、夹丝玻璃（GL-A01）、星白大理石台面（ST-02）、黄古铜不锈钢（MT-A01），橡木饰面抽屉柜\n6．五金种类、规格：单价包含挂衣杆、五金合页、抽屉滑轨、阻尼隔振胶垫、暗藏灯槽等\n7．按照立面投影面积计算\n8．防护材料种类：所有装修用木材均应进行防火、防腐处理\n9．施工时面层颜色、样式由甲方和设计单位确认选样，加工、排版损耗等不另计，投标人综合考虑报价，中标后综合单价不予调整\n10．未尽事宜详见设计图纸、图集、设计补充说明、招标文件、政府相关文件及规范等其它资料，满足验收要求","m2",14.13,null,{"v":0,"d":"0.00"}]
[81,"5#","工程名称：5#-JS套房","94","WB011501001003","洗手台+柜体","1. 部位：卫生间\n2．规格：长1200mm*宽600mm*高850mm\n3．龙骨材料种类、规格：局部热镀锌钢龙骨（不分规格型号，投标人综合考虑）\n4．面层材料品种、规格、颜色：18mm鎏金白玉大理石(ST-A04)台面及挡水条、橡木饰面柜体及橡木饰面隔板（WD-A01 ）、局部1.2mm黄古铜不锈钢(MT-A01)装饰嵌条、踢脚线及包边，单价包含灯槽成型等\n5．所有石材材料在施工前须做六面防护处理石材结晶，以保证防水、防腐、防污、防油\n6．施工时面层颜色、样式由甲方和设计单位确认选样，投标人综合考虑报价，加工、切割、折边、损耗等不另计，中标后综合单价不予调整\n7．未尽事宜详见设计图纸、图集、设计补充说明、招标文件、政府相关文件及规范等其它资料，满足验收要求","1. 部位：卫生间\n2．规格：长1200mm*宽600mm*高850mm\n4．面层材料品种、规格、颜色：橡木饰面柜体及橡木饰面隔板（WD-A01 ）、局部1.2mm黄古铜不锈钢(MT-A01)装饰嵌条及包边，单价包含灯槽成型等\n6．施工时面层颜色、样式由甲方和设计单位确认选样，投标人综合考虑报价，加工、切割、折边、损耗等不另计，中标后综合单价不予调整\n7．未尽事宜详见设计图纸、图集、设计补充说明、招标文件、政府相关文件及规范等其它资料，满足验收要求","m",{"v":4.8,"d":"4.80"},null,{"v":0,"d":"0.00"}]
[82,"5#","工程名称：5#-K标间客房","3","010801001001","入户门","1．部位：标间客房\n2．门室内侧外框尺寸：1180*3000mm，室外侧外框尺寸详见设计文件\n3．门套材料种类、规格：室内侧15mm阻燃夹板+橡木饰面门套(WD-A01 )，过道侧1.2mm黄古铜不锈钢线条(MT-A01)\n4．门楣材料种类、规格：15mm阻燃夹板+9mm阻燃夹板+橡木饰面门楣（WD-A01）\n5．门扇材料种类、规格：橡木饰面入户门(WD-A01)，包含30mm细木工板成品门芯、20*40mm热镀锌方通钢龙骨，双面9mm阻燃夹板，外侧1.2mm黄古铜不锈钢（防指纹）线条(MT-A01)\n6．五金品种、规格：包含但不限于凸轮暗藏闭门器、门底挡尘条、猫眼、防盗链、门碰、暗藏五金合页(选型一侧三副)、消音胶条等五金件,门锁此处报价不考虑\n7．防护材料种类：所有装修用木材均应进行防火、防腐处理\n8．施工时面层颜色、样式由甲方和设计单位确认选样，投标人综合考虑报价，加工、切割、折边、损耗等不另计，中标后综合单价不予调整\n9．未尽事宜详见设计图纸、图集、设计补充说明、招标文件、政府相关文件及规范等其它资料，满足验收要求","1．部位：标间客房\n2．门室内侧外框尺寸：1180*3000mm，室外侧外框尺寸详见设计文件\n3．门套材料种类、规格：橡木饰面门套(WD-A01 )\n4．门楣材料种类、规格：橡木饰面门楣（WD-A01）\n5．门扇材料种类、规格：橡木饰面入户门(WD-A01)，包含30mm细木工板成品门芯、20*40mm热镀锌方通钢龙骨，双面9mm阻燃夹板\n6．五金品种、规格：包含但不限于凸轮暗藏闭门器、门底挡尘条、猫眼、防盗链、门碰、暗藏五金合页(选型一侧三副)、消音胶条等五金件,门锁此处报价不考虑\n7．防护材料种类：所有装修用木材均应进行防火、防腐处理\n8．施工时面层颜色、样式由甲方和设计单位确认选样，投标人综合考虑报价，加工、切割、折边、损耗等不另计，中标后综合单价不予调整\n9．未尽事宜详见设计图纸、图集、设计补充说明、招标文件、政府相关文件及规范等其它资料，满足验收要求","樘",{"v":13,"d":"13.00"},null,{"v":0,"d":"0.00"}]
[83,"5#","工程名称：5#-K标间客房","47","011207001002","墙面装饰板","1．部位：客房区床背景\n2．龙骨材料种类、规格：50mm竖向天地龙骨\n3．基层材料种类、规格：12mm阻燃夹板\n4．面层材料品种、规格、颜色：漆画(WD-A03)\n5．防护材料种类：所有装修用木材均应进行防火、防腐处理\n6．施工时面层颜色、样式由甲方和设计单位确认选样，加工、排版损耗等不另计，投标人综合考虑报价，中标后综合单价不予调整\n7．未尽事宜详见设计图纸、图集、设计补充说明、招标文件、政府相关文件及规范等其它资料，满足验收要求。","1．部位：客房区床背景\n4．面层材料品种、规格、颜色：漆画(WD-A03)\n5．防护材料种类：所有装修用木材均应进行防火、防腐处理\n6．施工时面层颜色、样式由甲方和设计单位确认选样，加工、排版损耗等不另计，投标人综合考虑报价，中标后综合单价不予调整\n7．未尽事宜详见设计图纸、图集、设计补充说明、招标文件、政府相关文件及规范等其它资料，满足验收要求。","m2",33.78,null,{"v":0,"d":"0.00"}]
[84,"5#","工程名称：5#-K标间客房","49","011207001004","墙面装饰板","1．部位：客房区床头柜处\n2．龙骨材料种类、规格：50mm竖向天地龙骨\n3．基层材料种类、规格：12mm阻燃夹板\n4．面层材料品种、规格、颜色：橡木饰面（WD-A01）\n5．防护材料种类：所有装修用木材均应进行防火、防腐处理\n6．施工时面层颜色、样式由甲方和设计单位确认选样，加工、排版损耗等不另计，投标人综合考虑报价，中标后综合单价不予调整\n7．未尽事宜详见设计图纸、图集、设计补充说明、招标文件、政府相关文件及规范等其它资料，满足验收要求。","1．部位：客房区床头柜处\n4．面层材料品种、规格、颜色：橡木饰面（WD-A01）\n5．防护材料种类：所有装修用木材均应进行防火、防腐处理\n6．施工时面层颜色、样式由甲方和设计单位确认选样，加工、排版损耗等不另计，投标人综合考虑报价，中标后综合单价不予调整\n7．未尽事宜详见设计图纸、图集、设计补充说明、招标文件、政府相关文件及规范等其它资料，满足验收要求。","m2",12.56,null,{"v":0,"d":"0.00"}]
[85,"5#","工程名称：5#-K标间客房","52","011207001007","墙面装饰板","1．部位：床头背景墙、电视背景墙下部\n2．龙骨材料种类、规格：热镀锌钢龙骨（不分规格型号，投标人综合考虑）\n3．基层材料种类、规格：9mm阻燃夹板\n4．面层材料品种、规格、颜色：12mm橡木饰面（WD-A01）\n5．防护材料种类：所有装修用木材均应进行防火、防腐处理\n6．施工时面层颜色、样式由甲方和设计单位确认选样，加工、排版损耗等不另计，投标人综合考虑报价，中标后综合单价不予调整\n7．未尽事宜详见设计图纸、图集、设计补充说明、招标文件、政府相关文件及规范等其它资料，满足验收要求","1．部位：床头背景墙、电视背景墙下部\n4．面层材料品种、规格、颜色：12mm橡木饰面（WD-A01）\n5．防护材料种类：所有装修用木材均应进行防火、防腐处理\n6．施工时面层颜色、样式由甲方和设计单位确认选样，加工、排版损耗等不另计，投标人综合考虑报价，中标后综合单价不予调整\n7．未尽事宜详见设计图纸、图集、设计补充说明、招标文件、政府相关文件及规范等其它资料，满足验收要求","m2",41.56,null,{"v":0,"d":"0.00"}]
[86,"5#","工程名称：5#-K标间客房","53","011207001008","墙面装饰板","1．部位：电视背景墙\n2．龙骨材料种类、规格：50mm竖向天地龙骨\n3．基层材料种类、规格：9mm阻燃夹板\n4．面层材料品种、规格、颜色：22mm橡木饰面格栅（WD-A01A），造型15mm宽*10mm深\n5．防护材料种类：所有装修用木材均应进行防火、防腐处理\n6．施工时面层颜色、样式由甲方和设计单位确认选样，加工、排版损耗等不另计，投标人综合考虑报价，中标后综合单价不予调整\n7．未尽事宜详见设计图纸、图集、设计补充说明、招标文件、政府相关文件及规范等其它资料，满足验收要求","1．部位：电视背景墙\n4．面层材料品种、规格、颜色：22mm橡木饰面格栅（WD-A01A），造型15mm宽*10mm深\n5．防护材料种类：所有装修用木材均应进行防火、防腐处理\n6．施工时面层颜色、样式由甲方和设计单位确认选样，加工、排版损耗等不另计，投标人综合考虑报价，中标后综合单价不予调整\n7．未尽事宜详见设计图纸、图集、设计补充说明、招标文件、政府相关文件及规范等其它资料，满足验收要求","m2",{"v":22.3,"d":"22.30"},null,{"v":0,"d":"0.00"}]
[87,"5#","工程名称：5#-K标间客房","54","011207001009","墙面装饰板","1．部位：电视背景墙\n2．龙骨材料种类、规格：热镀锌钢龙骨（不分规格型号，投标人综合考虑）\n3．基层材料种类、规格：9mm阻燃夹板\n4．面层材料品种、规格、颜色：22mm橡木饰面格栅（WD-A01A），造型15mm宽*10mm深\n5．防护材料种类：所有装修用木材均应进行防火、防腐处理\n6．施工时面层颜色、样式由甲方和设计单位确认选样，加工、排版损耗等不另计，投标人综合考虑报价，中标后综合单价不予调整\n7．未尽事宜详见设计图纸、图集、设计补充说明、招标文件、政府相关文件及规范等其它资料，满足验收要求","1．部位：电视背景墙\n4．面层材料品种、规格、颜色：22mm橡木饰面格栅（WD-A01A），造型15mm宽*10mm深\n5．防护材料种类：所有装修用木材均应进行防火、防腐处理\n6．施工时面层颜色、样式由甲方和设计单位确认选样，加工、排版损耗等不另计，投标人综合考虑报价，中标后综合单价不予调整\n7．未尽事宜详见设计图纸、图集、设计补充说明、招标文件、政府相关文件及规范等其它资料，满足验收要求","m2",3.99,null,{"v":0,"d":"0.00"}]
[88,"5#","工程名称：5#-K标间客房","55","011207001010","墙面装饰板","1．部位：电视背景墙上部、卧室窗侧墙面\n2．龙骨材料种类、规格：50mm竖向天地龙骨\n3．基层材料种类、规格：9mm阻燃夹板\n4．面层材料品种、规格、颜色：12mm橡木饰面（WD-A01）\n5．防护材料种类：所有装修用木材均应进行防火、防腐处理\n6．施工时面层颜色、样式由甲方和设计单位确认选样，加工、排版损耗等不另计，投标人综合考虑报价，中标后综合单价不予调整\n7．未尽事宜详见设计图纸、图集、设计补充说明、招标文件、政府相关文件及规范等其它资料，满足验收要求","1．部位：电视背景墙上部、卧室窗侧墙面\n4．面层材料品种、规格、颜色：12mm橡木饰面（WD-A01）\n5．防护材料种类：所有装修用木材均应进行防火、防腐处理\n6．施工时面层颜色、样式由甲方和设计单位确认选样，加工、排版损耗等不另计，投标人综合考虑报价，中标后综合单价不予调整\n7．未尽事宜详见设计图纸、图集、设计补充说明、招标文件、政府相关文件及规范等其它资料，满足验收要求","m2",{"v":125.4,"d":"125.40"},null,{"v":0,"d":"0.00"}]
[89,"5#","工程名称：5#-K标间客房","57","011207001012","墙面装饰板","1．部位：卧室墙面\n2．基层材料种类、规格：9mm硅酸钙板，局部硅酸钙板加固报价综合考虑\n3．面层材料品种、规格、颜色：12mm橡木饰面（WD-A01）\n4．防护材料种类：所有装修用木材均应进行防火、防腐处理\n5．施工时面层颜色、样式由甲方和设计单位确认选样，加工、排版损耗等不另计，投标人综合考虑报价，中标后综合单价不予调整\n6．未尽事宜详见设计图纸、图集、设计补充说明、招标文件、政府相关文件及规范等其它资料，满足验收要求","1．部位：卧室墙面\n3．面层材料品种、规格、颜色：12mm橡木饰面（WD-A01）\n4．防护材料种类：所有装修用木材均应进行防火、防腐处理\n5．施工时面层颜色、样式由甲方和设计单位确认选样，加工、排版损耗等不另计，投标人综合考虑报价，中标后综合单价不予调整\n6．未尽事宜详见设计图纸、图集、设计补充说明、招标文件、政府相关文件及规范等其它资料，满足验收要求","m2",42.06,null,{"v":0,"d":"0.00"}]
[90,"5#","工程名称：5#-K标间客房","58","011207001013","墙面装饰板","1．部位：卧室、玄关墙面\n2．基层材料种类、规格：9mm阻燃夹板+10mm肋条，局部阻燃夹板加固报价综合考虑\n3．面层材料品种、规格、颜色：12mm橡木饰面（WD-A01）\n4．防护材料种类：所有装修用木材均应进行防火、防腐处理\n5．施工时面层颜色、样式由甲方和设计单位确认选样，加工、排版损耗等不另计，投标人综合考虑报价，中标后综合单价不予调整\n6．未尽事宜详见设计图纸、图集、设计补充说明、招标文件、政府相关文件及规范等其它资料，满足验收要求","1．部位：卧室、玄关墙面\n3．面层材料品种、规格、颜色：12mm橡木饰面（WD-A01）\n4．防护材料种类：所有装修用木材均应进行防火、防腐处理\n5．施工时面层颜色、样式由甲方和设计单位确认选样，加工、排版损耗等不另计，投标人综合考虑报价，中标后综合单价不予调整\n6．未尽事宜详见设计图纸、图集、设计补充说明、招标文件、政府相关文件及规范等其它资料，满足验收要求","m2",87.63,null,{"v":0,"d":"0.00"}]
[91,"5#","工程名称：5#-K标间客房","80","ZB010101001003","橡木饰面书桌","1．部位：卧室电视背景墙\n2．书桌尺寸：390mm宽*180mm高*4870mm长，局部宽尺寸不一致报价综合考虑\n3．龙骨材料种类、规格：热镀锌钢龙骨（不分规格型号，投标人综合考虑）\n4．基层材料质种类、规格：9mm阻燃夹板\n5．面层材料品种、规格、颜色：12mm橡木饰面（WD-A01）\n6．防护材料种类：所有装修用木材均应进行防火、防腐处理\n7．施工时面层颜色、样式由甲方和设计单位确认选样，加工、排版损耗等不另计，投标人综合考虑报价，中标后综合单价不予调整\n8．未尽事宜详见设计图纸、图集、设计补充说明、招标文件、政府相关文件及规范等其它资料，满足验收要求","1．部位：卧室电视背景墙\n5．面层材料品种、规格、颜色：12mm橡木饰面（WD-A01）\n6．防护材料种类：所有装修用木材均应进行防火、防腐处理\n7．施工时面层颜色、样式由甲方和设计单位确认选样，加工、排版损耗等不另计，投标人综合考虑报价，中标后综合单价不予调整\n8．未尽事宜详见设计图纸、图集、设计补充说明、招标文件、政府相关文件及规范等其它资料，满足验收要求","m",63.31,null,{"v":0,"d":"0.00"}]
[92,"5#","工程名称：5#-K标间客房","81","WB011501001001","玄关柜","1．规格：长3840mm*宽600mm*高3000mm\n2．龙骨材质种类、规格：热镀锌钢龙骨（不分规格型号，投标人综合考虑）、30*30mm木方/50*30mm木方等(阻燃处理)\n3．基层板材质种类、规格：9mm阻燃夹板、12mm阻燃夹板等基层类型及厚度综合考虑\n4．柜体材料种类、规格：12mm橡木饰面（WD-A01）柜体、布艺硬包饰面(WC-A03)、橡木饰面抽屉柜+6mm超白钢化玻璃、不锈钢门把手、不锈钢踢脚线(MT-A01)等；中间区域柜顶400*900mm木工板加固至少能承重30KG报价综合考虑\n5. 柜门材质种类、规格：木工板基层+12mm橡木饰面（WD-A01），具体柜门由专业厂家二次深化\n6．五金种类、规格：单价包含挂衣杆、雨伞架、U型报纸槽、暗藏合页、抽屉滑轨、阻尼隔振胶垫、烟斗铰链、柜门锁、灯槽成型等\n7．按立面投影面积计算\n8．防护材料种类：所有装修用木材均应进行防火、防腐处理\n9．施工时面层颜色、样式由甲方和设计单位确认选样，加工、排版损耗等不另计，投标人综合考虑报价，中标后综合单价不予调整\n10．未尽事宜详见设计图纸、图集、设计补充说明、招标文件、政府相关文件及规范等其它资料，满足验收要求","1．规格：长3840mm*宽600mm*高3000mm\n4．柜体材料种类、规格：12mm橡木饰面（WD-A01）柜体、橡木饰面抽屉柜+6mm超白钢化玻璃、不锈钢门把手；中间区域柜顶400*900mm木工板加固至少能承重30KG报价综合考虑\n5. 柜门材质种类、规格：木工板基层+12mm橡木饰面（WD-A01），具体柜门由专业厂家二次深化\n6．五金种类、规格：单价包含挂衣杆、雨伞架、U型报纸槽、暗藏合页、抽屉滑轨、阻尼隔振胶垫、烟斗铰链、柜门锁、灯槽成型等\n7．按立面投影面积计算\n8．防护材料种类：所有装修用木材均应进行防火、防腐处理\n9．施工时面层颜色、样式由甲方和设计单位确认选样，加工、排版损耗等不另计，投标人综合考虑报价，中标后综合单价不予调整\n10．未尽事宜详见设计图纸、图集、设计补充说明、招标文件、政府相关文件及规范等其它资料，满足验收要求","m2",149.37,null,{"v":0,"d":"0.00"}]
[93,"5#","工程名称：5#-K标间客房","83","WB011501001003","洗手台+柜体","1. 部位：卫生间\n2．规格：长1700mm*宽600mm*高870mm\n3．龙骨材料种类、规格：局部热镀锌钢龙骨（不分规格型号，投标人综合考虑）\n4．面层材料品种、规格、颜色：18mm星白大理石(ST-A02)台面及挡水条、橡木饰面柜体及橡木饰面隔板（WD-A01 ）、局部1.2mm厚黄古铜不锈钢(MT-A01)装饰嵌条、踢脚线及包边，单价包含灯槽成型等\n5．所有石材材料在施工前须做六面防护处理石材结晶，以保证防水、防腐、防污、防油\n6．施工时面层颜色、样式由甲方和设计单位确认选样，投标人综合考虑报价，加工、切割、折边、损耗等不另计，中标后综合单价不予调整\n7．未尽事宜详见设计图纸、图集、设计补充说明、招标文件、政府相关文件及规范等其它资料，满足验收要求","1. 部位：卫生间\n2．规格：长1700mm*宽600mm*高870mm\n4．面层材料品种、规格、颜色：橡木饰面柜体及橡木饰面隔板（WD-A01 ）、局部1.2mm厚黄古铜不锈钢(MT-A01)装饰嵌条及包边，单价包含灯槽成型等\n6．施工时面层颜色、样式由甲方和设计单位确认选样，投标人综合考虑报价，加工、切割、折边、损耗等不另计，中标后综合单价不予调整\n7．未尽事宜详见设计图纸、图集、设计补充说明、招标文件、政府相关文件及规范等其它资料，满足验收要求","m",{"v":22.1,"d":"22.10"},null,{"v":0,"d":"0.00"}]
[94,"5#","工程名称：5#-K标间客房","86","011502002001","木质装饰线","1．部位：电视背景墙处\n2．线条材料品种、规格、颜色：30*30mm橡木饰面半圆弧装饰线条（WD-A01 ）\n3．施工时面层颜色、样式由甲方和设计单位确认选样，加工、排版损耗等不另计，投标人综合考虑报价，中标后综合单价不予调整\n4．未尽事宜详见设计图纸、图集、设计补充说明、招标文件、政府相关文件及规范等其它资料，满足验收要求","1．部位：电视背景墙处\n2．线条材料品种、规格、颜色：30*30mm橡木饰面半圆弧装饰线条（WD-A01 ）\n3．施工时面层颜色、样式由甲方和设计单位确认选样，加工、排版损耗等不另计，投标人综合考虑报价，中标后综合单价不予调整\n4．未尽事宜详见设计图纸、图集、设计补充说明、招标文件、政府相关文件及规范等其它资料，满足验收要求","m",115.05,null,{"v":0,"d":"0.00"}]
[95,"5#","工程名称：5#-K标间客房","87","011502002002","木质装饰线","1．部位：窗边哑口套处、玄关阳角处等\n2．线条材料品种、规格、颜色：50*50mm橡木饰面弧形装饰线条（WD-A01 ）\n3．施工时面层颜色、样式由甲方和设计单位确认选样，加工、排版损耗等不另计，投标人综合考虑报价，中标后综合单价不予调整\n4．未尽事宜详见设计图纸、图集、设计补充说明、招标文件、政府相关文件及规范等其它资料，满足验收要求","1．部位：窗边哑口套处、玄关阳角处等\n2．线条材料品种、规格、颜色：50*50mm橡木饰面弧形装饰线条（WD-A01 ）\n3．施工时面层颜色、样式由甲方和设计单位确认选样，加工、排版损耗等不另计，投标人综合考虑报价，中标后综合单价不予调整\n4．未尽事宜详见设计图纸、图集、设计补充说明、招标文件、政府相关文件及规范等其它资料，满足验收要求","m",191.75,null,{"v":0,"d":"0.00"}]
[96,"7#","工程名称：7#-公区","206","011207001030","墙面装饰板","1. 部位：客房走道等\n2．龙骨材料种类、规格：热镀锌钢龙骨（不分规格型号，投标人综合考虑）\n3．基层材料种类、规格：12mm阻燃夹板，局部9mm阻燃夹板或双层\n4. 面层材料品种、规格、颜色：12mm深橡木饰面（WD-B01），局部凹槽工艺及灯槽成型等综合考虑\n5．防护材料种类：所有装修用木基层均应进行防火、防腐处理\n6. 施工时面层颜色、样式由甲方和设计单位确认选样，投标人综合考虑报价，加工、切割、折边、损耗等不另计，中标后综合单价不予调整\n7．未尽事宜详见设计图纸、图集、设计补充说明、招标文件、政府相关文件及规范等其它资料，满足验收要求","1. 部位：客房走道等\n4. 面层材料品种、规格、颜色：12mm深橡木饰面（WD-B01），局部凹槽工艺及灯槽成型等综合考虑\n5．防护材料种类：所有装修用木基层均应进行防火、防腐处理\n6. 施工时面层颜色、样式由甲方和设计单位确认选样，投标人综合考虑报价，加工、切割、折边、损耗等不另计，中标后综合单价不予调整\n7．未尽事宜详见设计图纸、图集、设计补充说明、招标文件、政府相关文件及规范等其它资料，满足验收要求","m2",223.65,null,{"v":0,"d":"0.00"}]
[97,"7#","工程名称：7#-公区","207","011207001031","墙面装饰板","1. 部位：客房走道等\n2．龙骨材料种类、规格：轻钢龙骨，规格尺寸满足现场和规范要求\n3．基层材料种类、规格：12mm阻燃夹板\n4. 面层材料品种、规格、颜色：12mm深橡木饰面（WD-B01），局部凹槽工艺及灯槽成型等综合考虑\n5．防护材料种类：所有装修用木基层均应进行防火、防腐处理\n6. 施工时面层颜色、样式由甲方和设计单位确认选样，投标人综合考虑报价，加工、切割、折边、损耗等不另计，中标后综合单价不予调整\n7．未尽事宜详见设计图纸、图集、设计补充说明、招标文件、政府相关文件及规范等其它资料，满足验收要求","1. 部位：客房走道等\n4. 面层材料品种、规格、颜色：12mm深橡木饰面（WD-B01），局部凹槽工艺及灯槽成型等综合考虑\n5．防护材料种类：所有装修用木基层均应进行防火、防腐处理\n6. 施工时面层颜色、样式由甲方和设计单位确认选样，投标人综合考虑报价，加工、切割、折边、损耗等不另计，中标后综合单价不予调整\n7．未尽事宜详见设计图纸、图集、设计补充说明、招标文件、政府相关文件及规范等其它资料，满足验收要求","m2",19.43,null,{"v":0,"d":"0.00"}]
[98,"7#","工程名称：7#-公区","208","011207001032","墙面装饰板","1. 部位：客房走道等\n2．龙骨材料种类、规格：热镀锌钢龙骨（不分规格型号，投标人综合考虑）\n3．基层材料种类、规格：12mm阻燃夹板\n4. 面层材料品种、规格、颜色：12mm弧形深橡木饰面（WD-B01），灯槽成型等综合考虑\n5．防护材料种类：所有装修用木基层均应进行防火、防腐处理\n6. 施工时面层颜色、样式由甲方和设计单位确认选样，投标人综合考虑报价，加工、切割、折边、损耗等不另计，中标后综合单价不予调整\n7．未尽事宜详见设计图纸、图集、设计补充说明、招标文件、政府相关文件及规范等其它资料，满足验收要求","1. 部位：客房走道等\n4. 面层材料品种、规格、颜色：12mm弧形深橡木饰面（WD-B01），灯槽成型等综合考虑\n5．防护材料种类：所有装修用木基层均应进行防火、防腐处理\n6. 施工时面层颜色、样式由甲方和设计单位确认选样，投标人综合考虑报价，加工、切割、折边、损耗等不另计，中标后综合单价不予调整\n7．未尽事宜详见设计图纸、图集、设计补充说明、招标文件、政府相关文件及规范等其它资料，满足验收要求","m2",4.13,null,{"v":0,"d":"0.00"}]
[99,"7#","工程名称：7#-公区","209","010801001006","木饰面暗门","1. 部位：客房走道等\n2. 龙骨材料种类、规格：成品门芯\n3. 面层材料种类、规格：12mm深橡木饰面（WD-B01），1.2mm仿铜不锈钢线条收边（MT-B04），展开尺寸：10+10+24mm\n4. 门套基层、面层材料种类、规格：木饰面门框\n5. 五金：包括不限于优质合页、门磁吸、铰链、拉手等\n6. 未尽事宜详见设计图纸、图集、设计补充说明、招标文件、政府相关文件及规范等其它资料，满足验收要求","1. 部位：客房走道等\n2. 龙骨材料种类、规格：成品门芯\n3. 面层材料种类、规格：12mm深橡木饰面（WD-B01），1.2mm仿铜不锈钢线条收边（MT-B04），展开尺寸：10+10+24mm\n4. 门套面层材料种类、规格：木饰面门框\n5. 五金：包括不限于优质合页、门磁吸、铰链、拉手等\n6. 未尽事宜详见设计图纸、图集、设计补充说明、招标文件、政府相关文件及规范等其它资料，满足验收要求","m2",18.24,null,{"v":0,"d":"0.00"}]
[100,"7#","工程名称：7#-公区","210","011207001033","墙面装饰板","1. 部位：客房走道等\n2．龙骨材料种类、规格：轻钢龙骨，规格尺寸满足现场和规范要求\n3．基层材料种类、规格：12mm阻燃夹板\n4. 面层材料品种、规格、颜色：12mm中国红手扫漆饰面（WD-B05）\n5．防护材料种类：所有装修用木基层均应进行防火、防腐处理\n6. 施工时面层颜色、样式由甲方和设计单位确认选样，投标人综合考虑报价，加工、切割、折边、损耗等不另计，中标后综合单价不予调整\n7．未尽事宜详见设计图纸、图集、设计补充说明、招标文件、政府相关文件及规范等其它资料，满足验收要求","1. 部位：客房走道等\n4. 面层材料品种、规格、颜色：12mm中国红手扫漆饰面（WD-B05）\n5．防护材料种类：所有装修用木基层均应进行防火、防腐处理\n6. 施工时面层颜色、样式由甲方和设计单位确认选样，投标人综合考虑报价，加工、切割、折边、损耗等不另计，中标后综合单价不予调整\n7．未尽事宜详见设计图纸、图集、设计补充说明、招标文件、政府相关文件及规范等其它资料，满足验收要求","m2",3.76,null,{"v":0,"d":"0.00"}]
[101,"7#","工程名称：7#-公区","211","011207001034","墙面装饰板","1. 部位：客房走道等\n2．龙骨材料种类、规格：轻钢龙骨，规格尺寸满足现场和规范要求\n3．基层材料种类、规格：12mm阻燃夹板\n4. 面层材料品种、规格、颜色：实木线条黑色手扫漆饰面（WD-B05A）\n5．防护材料种类：所有装修用木基层均应进行防火、防腐处理\n6. 施工时面层颜色、样式由甲方和设计单位确认选样，投标人综合考虑报价，加工、切割、折边、损耗等不另计，中标后综合单价不予调整\n7．未尽事宜详见设计图纸、图集、设计补充说明、招标文件、政府相关文件及规范等其它资料，满足验收要求","1. 部位：客房走道等\n4. 面层材料品种、规格、颜色：实木线条黑色手扫漆饰面（WD-B05A）\n5．防护材料种类：所有装修用木基层均应进行防火、防腐处理\n6. 施工时面层颜色、样式由甲方和设计单位确认选样，投标人综合考虑报价，加工、切割、折边、损耗等不另计，中标后综合单价不予调整\n7．未尽事宜详见设计图纸、图集、设计补充说明、招标文件、政府相关文件及规范等其它资料，满足验收要求","m2",2.08,null,{"v":0,"d":"0.00"}]
[102,"7#","工程名称：7#-公区","212","011207001035","墙面装饰板","1. 部位：客房走道等\n2．龙骨材料种类、规格：轻钢龙骨，规格尺寸满足现场和规范要求\n3．基层材料种类、规格：12mm阻燃夹板\n4. 面层材料品种、规格、颜色：12mm黑色手扫漆饰面（WD-B05A）\n5．防护材料种类：所有装修用木基层均应进行防火、防腐处理\n6. 施工时面层颜色、样式由甲方和设计单位确认选样，投标人综合考虑报价，加工、切割、折边、损耗等不另计，中标后综合单价不予调整\n7．未尽事宜详见设计图纸、图集、设计补充说明、招标文件、政府相关文件及规范等其它资料，满足验收要求","1. 部位：客房走道等\n4. 面层材料品种、规格、颜色：12mm黑色手扫漆饰面（WD-B05A）\n5．防护材料种类：所有装修用木基层均应进行防火、防腐处理\n6. 施工时面层颜色、样式由甲方和设计单位确认选样，投标人综合考虑报价，加工、切割、折边、损耗等不另计，中标后综合单价不予调整\n7．未尽事宜详见设计图纸、图集、设计补充说明、招标文件、政府相关文件及规范等其它资料，满足验收要求","m2",{"v":0.4,"d":"0.40"},null,{"v":0,"d":"0.00"}]
[103,"7#","工程名称：7#-JES套房","3","010801001001","入户门","1．部位：JES套房\n2．门室内侧外框尺寸：1520*3000mm，室外侧外框尺寸详见设计文件\n3．门套材料种类、规格：室内侧15mm阻燃夹板+木饰面门套,过道侧1.2mm黄古铜不锈钢线条(MT-A01)\n4．门楣材料种类、规格：15mm阻燃夹板+9mm阻燃夹板+木饰面门楣\n5．门扇饰面材质种类、规格：木饰面，包含20mm细木工板成品门芯、30*30*3mm热镀锌方通钢龙骨，双面9mm阻燃夹板，外侧1.2mm古铜拉丝不锈钢（防指纹）线条(MT-A01)\n6．五金品种、规格：包含但不限于凸轮暗藏闭门器、门底挡尘条、猫眼、防盗链、门碰、暗藏五金合页(选型一侧三副)、消音胶条等五金件,门锁此处不计入\n7．防护材料种类：所有装修用木材均应进行防火、防腐处理\n8．施工时面层颜色、样式由甲方和设计单位确认选样，投标人综合考虑报价，加工、切割、折边、损耗等不另计，中标后综合单价不予调整\n9．未尽事宜详见设计图纸、图集、设计补充说明、招标文件、政府相关文件及规范等其它资料，满足验收要求","1．部位：JES套房\n2．门室内侧外框尺寸：1520*3000mm，室外侧外框尺寸详见设计文件\n3．门套材料种类、规格：木饰面门套\n4．门楣材料种类、规格：木饰面门楣\n5．门扇饰面材质种类、规格：木饰面，包含20mm细木工板成品门芯、30*30*3mm热镀锌方通钢龙骨，双面9mm阻燃夹板\n6．五金品种、规格：包含但不限于凸轮暗藏闭门器、门底挡尘条、猫眼、防盗链、门碰、暗藏五金合页(选型一侧三副)、消音胶条等五金件,门锁此处不计入\n7．防护材料种类：所有装修用木材均应进行防火、防腐处理\n8．施工时面层颜色、样式由甲方和设计单位确认选样，投标人综合考虑报价，加工、切割、折边、损耗等不另计，中标后综合单价不予调整\n9．未尽事宜详见设计图纸、图集、设计补充说","樘",{"v":2,"d":"2.00"},null,{"v":0,"d":"0.00"}]
[104,"7#","工程名称：7#-JES套房","4","010801001002","木质门","1．部位：户内装饰单开门\n2．龙骨材料种类、规格：热镀锌钢龙骨（不分规格型号，投标人综合考虑）\n3．基层材料种类、规格：基层类型及厚度综合考虑，具体详见设计文件\n4．门套材料种类、规格：12mm浅色木饰面(WD-A05)\n5．门楣材料种类、规格：12mm浅色木饰面(WD-A05)\n6．门扇饰面材质种类、规格：12mm浅色木饰面(WD-A05)\n5．五金品种、规格：包含但不限于门碰、暗藏五金合页、消音胶条、门把手等全套五金件\n6．按最大外框尺寸计算\n7．防护材料种类：所有装修用木材均应进行防火、防腐处理\n8．施工时面层颜色、样式由甲方和设计单位确认选样，投标人综合考虑报价，加工、切割、折边、损耗等不另计，中标后综合单价不予调整\n9．未尽事宜详见设计图纸、图集、设计补充说明、招标文件、政府相关文件及规范等其它资料，满足验收要求","1．部位：户内装饰单开门\n2．龙骨材料种类、规格：热镀锌钢龙骨（不分规格型号，投标人综合考虑）\n3．基层材料种类、规格：基层类型及厚度综合考虑，具体详见设计文件\n4．门套材料种类、规格：12mm浅色木饰面(WD-A05)\n5．门楣材料种类、规格：12mm浅色木饰面(WD-A05)\n6．门扇饰面材质种类、规格：12mm浅色木饰面(WD-A05)\n5．五金品种、规格：包含但不限于门碰、暗藏五金合页、消音胶条、门把手等全套五金件\n6．按最大外框尺寸计算\n7．防护材料种类：所有装修用木材均应进行防火、防腐处理\n8．施工时面层颜色、样式由甲方和设计单位确认选样，投标人综合考虑报价，加工、切割、折边、损耗等不另计，中标后综合单价不予调整\n9．未尽事宜详见设计图纸、图集、设计补充说明、招标文件、政府相关文件及规范等其它资料，满足验收要求","m2",{"v":36.1,"d":"36.10"},null,{"v":0,"d":"0.00"}]
[105,"7#","工程名称：7#-JES套房","43","011207001001","墙面装饰板","1. 部位：客厅、卧室、玄关、衣帽间\n2. 基层材料种类、规格：9mm阻燃夹板+10mm成品木挂条调平，局部加固综合考虑\n3．面层材料品种、规格、颜色：12mm浅色木饰面(WD-A05)\n4．防护材料种类：所有装修用木材均应进行防火、防腐处理\n5．施工时面层颜色、样式由甲方和设计单位确认选样，加工、排版损耗等不另计，投标人综合考虑报价，中标后综合单价不予调整\n6．未尽事宜详见设计图纸、图集、设计补充说明、招标文件、政府相关文件及规范等其它资料，满足验收要求","1. 部位：客厅、卧室、玄关、衣帽间\n3．面层材料品种、规格、颜色：12mm浅色木饰面(WD-A05)\n4．防护材料种类：所有装修用木材均应进行防火、防腐处理\n5．施工时面层颜色、样式由甲方和设计单位确认选样，加工、排版损耗等不另计，投标人综合考虑报价，中标后综合单价不予调整\n6．未尽事宜详见设计图纸、图集、设计补充说明、招标文件、政府相关文件及规范等其它资料，满足验收要求","m2",{"v":355.1,"d":"355.10"},null,{"v":0,"d":"0.00"}]
[106,"7#","工程名称：7#-JES套房","44","011207001002","墙面装饰板","1. 部位：床头背景墙下部\n2. 龙骨材料种类、规格：50mm竖向天地龙骨，配C50龙骨\n3. 基层材料种类、规格：9mm阻燃夹板+10mm成品木挂条调平\n4．面层材料品种、规格、颜色：12mm浅色木饰面(WD-A05)\n5．防护材料种类：所有装修用木材均应进行防火、防腐处理\n6．施工时面层颜色、样式由甲方和设计单位确认选样，加工、排版损耗等不另计，投标人综合考虑报价，中标后综合单价不予调整\n7．未尽事宜详见设计图纸、图集、设计补充说明、招标文件、政府相关文件及规范等其它资料，满足验收要求","1. 部位：床头背景墙下部\n4．面层材料品种、规格、颜色：12mm浅色木饰面(WD-A05)\n5．防护材料种类：所有装修用木材均应进行防火、防腐处理\n6．施工时面层颜色、样式由甲方和设计单位确认选样，加工、排版损耗等不另计，投标人综合考虑报价，中标后综合单价不予调整\n7．未尽事宜详见设计图纸、图集、设计补充说明、招标文件、政府相关文件及规范等其它资料，满足验收要求","m2",8.09,null,{"v":0,"d":"0.00"}]
[107,"7#","工程名称：7#-JES套房","45","011207001003","墙面装饰板","1. 部位：沙发背景墙两侧\n2. 龙骨材料种类、规格：热镀锌钢龙骨（不分规格型号，投标人综合考虑）\n3. 基层材料种类、规格：9mm阻燃夹板\n4．面层材料品种、规格、颜色：12mm浅色木饰面(WD-A05)\n5．防护材料种类：所有装修用木材均应进行防火、防腐处理\n6．施工时面层颜色、样式由甲方和设计单位确认选样，加工、排版损耗等不另计，投标人综合考虑报价，中标后综合单价不予调整\n7．未尽事宜详见设计图纸、图集、设计补充说明、招标文件、政府相关文件及规范等其它资料，满足验收要求","1. 部位：沙发背景墙两侧\n4．面层材料品种、规格、颜色：12mm浅色木饰面(WD-A05)\n5．防护材料种类：所有装修用木材均应进行防火、防腐处理\n6．施工时面层颜色、样式由甲方和设计单位确认选样，加工、排版损耗等不另计，投标人综合考虑报价，中标后综合单价不予调整\n7．未尽事宜详见设计图纸、图集、设计补充说明、招标文件、政府相关文件及规范等其它资料，满足验收要求","m2",{"v":27,"d":"27.00"},null,{"v":0,"d":"0.00"}]
[108,"7#","工程名称：7#-JES套房","46","011207001004","墙面装饰板","1. 部位：书房背景隔断\n2. 龙骨材料种类、规格：热镀锌钢龙骨（不分规格型号，投标人综合考虑）\n3. 基层材料种类、规格：9mm阻燃夹板\n4．面层材料品种、规格、颜色：12mm浅色木饰面(WD-A05)\n5．防护材料种类：所有装修用木材均应进行防火、防腐处理\n6. 另计，投标人综合考虑报价，中标后综合单价不予调整\n7. 按展开面积计算\n8．未尽事宜详见设计图纸、图集、设计补充说明、招标文件、政府相关文件及规范等其它资料，满足验收要求","1. 部位：书房背景隔断\n4．面层材料品种、规格、颜色：12mm浅色木饰面(WD-A05)\n5．防护材料种类：所有装修用木材均应进行防火、防腐处理\n6. 另计，投标人综合考虑报价，中标后综合单价不予调整\n7. 按展开面积计算\n8．未尽事宜详见设计图纸、图集、设计补充说明、招标文件、政府相关文件及规范等其它资料，满足验收要求","m2",11.21,null,{"v":0,"d":"0.00"}]
[109,"7#","工程名称：7#-JES套房","51","011502002001","木质装饰线","1．工程部位：沙发背景墙\n2．线条材料品种、规格、颜色：80*170mm竖纹木饰面（WD-A05）\n3．施工时面层颜色、样式由甲方和设计单位确认选样，投标人综合考虑报价，中标后综合单价不予调整\n4．未尽事宜详见设计图纸、图集、设计补充说明、招标文件、政府相关文件及规范等其它资料，满足验收要求。","1．工程部位：沙发背景墙\n2．线条材料品种、规格、颜色：80*170mm竖纹木饰面（WD-A05）\n3．施工时面层颜色、样式由甲方和设计单位确认选样，投标人综合考虑报价，中标后综合单价不予调整\n4．未尽事宜详见设计图纸、图集、设计补充说明、招标文件、政府相关文件及规范等其它资料，满足验收要求。","m",{"v":12,"d":"12.00"},null,{"v":0,"d":"0.00"}]
[110,"7#","工程名称：7#-JES套房","56","011207001013","墙面装饰板","1. 部位：床头背景墙JES\n2. 龙骨材料种类、规格：热镀锌钢龙骨（不分规格型号，投标人综合考虑）\n3. 基层材料种类、规格：9mm阻燃夹板+9.5mm石膏板\n4. 面层材料品种、规格、颜色：一边12mm橡木饰面（WD-A01）+一边墙布饰面（WC-A04A）+1.2mm黄古铜不锈钢(MT-A01)+40*70不锈钢方通等\n5. 防护材料种类：所有装修用木材均应进行防火、防腐处理\n6．施工时面层颜色、样式由甲方和设计单位确认选样，加工、排版损耗等不另计，投标人综合考虑报价，中标后综合单价不予调整\n7．未尽事宜详见设计图纸、图集、设计补充说明、招标文件、政府相关文件及规范等其它资料，满足验收要求","1. 部位：床头背景墙JES\n4. 面层材料品种、规格、颜色：一边12mm橡木饰面（WD-A01）\n6．施工时面层颜色、样式由甲方和设计单位确认选样，加工、排版损耗等不另计，投标人综合考虑报价，中标后综合单价不予调整\n7．未尽事宜详见设计图纸、图集、设计补充说明、招标文件、政府相关文件及规范等其它资料，满足验收要求","m2",7.56,null,{"v":0,"d":"0.00"}]
[111,"7#","工程名称：7#-JES套房","83","WB011501001001","玄关柜","1. 部位：玄关\n2. 柜体尺寸：宽600mm*高3000mm*长（具体详见设计文件）\n3. 龙骨材料种类、规格：热镀锌钢龙骨（不分规格型号，投标人综合考虑）、30*30mm木方(阻燃处理)等\n4．基层板材料种类、规格：9mm阻燃夹板、15mm阻燃夹板、9mm硅酸钙板等基层类型及厚度综合考虑\n5．材料种类：12mm木饰面、墙布饰面(WC-A04)、1.2mm黄古铜不锈钢（MT-A01）、木饰面抽屉柜、不锈钢门把手、夹丝玻璃（GL-A01）等\n6．五金种类、规格：单价包含挂衣杆、五金合页、抽屉滑轨、阻尼隔振胶垫、暗藏灯槽等\n7．按照立面投影面积计算\n8．防护材料种类：所有装修用木材均应进行防火、防腐处理\n9．施工时面层颜色、样式由甲方和设计单位确认选样，加工、排版损耗等不另计，投标人综合考虑报价，中标后综合单价不予调整\n10．未尽事宜详见设计图纸、图集、设计补充说明、招标文件、政府相关文件及规范等其它资料，满足验收要求","1. 部位：玄关\n2. 柜体尺寸：宽600mm*高3000mm*长（具体详见设计文件）\n5．材料种类：12mm木饰面、1.2mm黄古铜不锈钢（MT-A01）、木饰面抽屉柜、不锈钢门把手、夹丝玻璃（GL-A01）等\n6．五金种类、规格：单价包含挂衣杆、五金合页、抽屉滑轨、阻尼隔振胶垫、暗藏灯槽等\n7．按照立面投影面积计算\n8．防护材料种类：所有装修用木材均应进行防火、防腐处理\n9．施工时面层颜色、样式由甲方和设计单位确认选样，加工、排版损耗等不另计，投标人综合考虑报价，中标后综合单价不予调整\n10．未尽事宜详见设计图纸、图集、设计补充说明、招标文件、政府相关文件及规范等其它资料，满足验收要求","m2",12.36,null,{"v":0,"d":"0.00"}]
[112,"7#","工程名称：7#-JES套房","84","WB011501001002","衣帽间衣柜","1. 部位：衣帽间\n2. 柜体尺寸：650mm*3000mm*长（具体详见设计文件）\n3. 龙骨材质种类、规格：热镀锌钢龙骨（不分规格型号，投标人综合考虑）、木龙骨等\n4．基层板材质种类、规格：基层类型及厚度综合考虑，具体详见设计文件\n5．材料种类：12mm木饰面、墙布饰面(WC-A04)、夹丝玻璃（GL-A01）、18mm星白大理石台面（ST-02）、1.2mm古铜拉丝不锈钢（MT-A01），木饰面抽屉柜、1.2mm黄古铜不锈钢踢脚线(MT-A01)等\n6．五金种类、规格：单价包含挂衣杆、五金合页、抽屉滑轨、阻尼隔振胶垫、暗藏灯槽等\n7．按照立面投影面积计算\n8．防护材料种类：所有装修用木材均应进行防火、防腐处理\n9．施工时面层颜色、样式由甲方和设计单位确认选样，加工、排版损耗等不另计，投标人综合考虑报价，中标后综合单价不予调整\n10．未尽事宜详见设计图纸、图集、设计补充说明、招标文件、政府相关文件及规范等其它资料，满足验收要求","1. 部位：衣帽间\n2. 柜体尺寸：650mm*3000mm*长（具体详见设计文件）\n5．材料种类：12mm木饰面、夹丝玻璃（GL-A01）、18mm星白大理石台面（ST-02）、1.2mm古铜拉丝不锈钢（MT-A01），木饰面抽屉柜等\n6．五金种类、规格：单价包含挂衣杆、五金合页、抽屉滑轨、阻尼隔振胶垫、暗藏灯槽等\n7．按照立面投影面积计算\n8．防护材料种类：所有装修用木材均应进行防火、防腐处理\n9．施工时面层颜色、样式由甲方和设计单位确认选样，加工、排版损耗等不另计，投标人综合考虑报价，中标后综合单价不予调整\n10．未尽事宜详见设计图纸、图集、设计补充说明、招标文件、政府相关文件及规范等其它资料，满足验收要求","m2",20.28,null,{"v":0,"d":"0.00"}]
[113,"7#","工程名称：7#-JES套房","85","WB011501001003","洗手台+柜体","1. 部位：卫生间\n2．规格：宽600mm*高850mm*长（详见设计文件）\n3．龙骨材料种类、规格：局部热镀锌钢龙骨（不分规格型号，投标人综合考虑）\n4．面层材料品种、规格、颜色：18mm鎏金白玉大理石(ST-A04)台面及挡水条、木饰面柜体及木饰面隔板（WD-A01 ）、局部1.2mm黄古铜不锈钢(MT-A01)装饰嵌条、踢脚线及包边，单价包含灯槽成型等\n5. 所有石材材料在施工前须做六面防护处理,石材结晶，以保证防水、防腐、防污、防油\n6. 施工时面层颜色、样式由甲方和设计单位确认选样，倒角，磨边、切割等加工费不另计，投标人综合考虑报价，中标后综合单价不予调整\n7. 未尽事宜详见设计图纸、图集、设计补充说明、招标文件、政府相关文件及规范等其它资料，满足验收要求","1. 部位：卫生间\n2．规格：宽600mm*高850mm*长（详见设计文件）\n4．面层材料品种、规格、颜色：木饰面柜体及木饰面隔板（WD-A01 ）、局部1.2mm黄古铜不锈钢(MT-A01)装饰嵌条及包边，单价包含灯槽成型等\n6. 施工时面层颜色、样式由甲方和设计单位确认选样，倒角，磨边、切割等加工费不另计，投标人综合考虑报价，中标后综合单价不予调整\n7. 未尽事宜详见设计图纸、图集、设计补充说明、招标文件、政府相关文件及规范等其它资料，满足验收要求","m",3.74,null,{"v":0,"d":"0.00"}]
[114,"7#","工程名称：7#-JS套房","3","010801001001","入户门","1．部位：JS套房\n2．门室内侧外框尺寸：1520*3000mm，室外侧外框尺寸详见设计文件\n3．门套材料种类、规格：室内侧15mm阻燃夹板+橡木饰面门套(WD-A01 )，过道侧1.2mm黄古铜不锈钢线条(MT-A01)\n4．门楣材料种类、规格：15mm阻燃夹板+9mm阻燃夹板+橡木饰面门楣（WD-A01）\n5．门扇饰面材质种类、规格：橡木饰面入户门(WD-A01)，包含20mm细木工板成品门芯、30*30*3mm热镀锌方通钢龙骨，双面9mm阻燃夹板，外侧1.2mm古铜拉丝不锈钢（防指纹）线条(MT-A01)\n6．五金品种、规格：包含但不限于凸轮暗藏闭门器、门底挡尘条、猫眼、防盗链、门碰、暗藏五金合页(选型一侧三副)、消音胶条等五金件,门锁此处不计入\n7．防护材料种类：所有装修用木材均应进行防火、防腐处理\n8．施工时面层颜色、样式由甲方和设计单位确认选样，投标人综合考虑报价，加工、切割、折边、损耗等不另计，中标后综合单价不予调整\n9．未尽事宜详见设计图纸、图集、设计补充说明、招标文件、政府相关文件及规范等其它资料，满足验收要求","1．部位：JS套房\n2．门室内侧外框尺寸：1520*3000mm，室外侧外框尺寸详见设计文件\n3．门套材料种类、规格：橡木饰面门套(WD-A01 )\n4．门楣材料种类、规格：橡木饰面门楣（WD-A01）\n5．门扇饰面材质种类、规格：橡木饰面入户门(WD-A01)，包含20mm细木工板成品门芯、30*30*3mm热镀锌方通钢龙骨，双面9mm阻燃夹板\n6．五金品种、规格：包含但不限于凸轮暗藏闭门器、门底挡尘条、猫眼、防盗链、门碰、暗藏五金合页(选型一侧三副)、消音胶条等五金件,门锁此处不计入\n7．防护材料种类：所有装修用木材均应进行防火、防腐处理\n8．施工时面层颜色、样式由甲方和设计单位确认选样，投标人综合考虑报价，加工、切割、折边、损耗等不另计，中标后综合单价不予调整\n9．未尽事宜详见设计图纸、图集、设计补充说明、招标文件、政府相关文件及规范等其它资料，满足验收要求","樘",{"v":4,"d":"4.00"},null,{"v":0,"d":"0.00"}]
[115,"7#","工程名称：7#-JS套房","4","010801001002","木质门","1．部位：户内装饰单开门\n2．门套材料种类、规格：12mm阻燃夹板+橡木饰面门套(WD-A01 )\n3．门楣材料种类、规格：9mm阻燃夹板+橡木饰面门楣（WD-A01）\n4．门扇饰面材质种类、规格：橡木饰面门(WD-A01)，包含20mm细木工板成品门芯、20*40mm热镀锌方通钢龙骨等\n5．五金品种、规格：包含但不限于门碰、暗藏五金合页、消音胶条、门把手等五金件\n6．按最大外框尺寸计算\n7．防护材料种类：所有装修用木材均应进行防火、防腐处理\n8．施工时面层颜色、样式由甲方和设计单位确认选样，投标人综合考虑报价，加工、切割、折边、损耗等不另计，中标后综合单价不予调整\n9．未尽事宜详见设计图纸、图集、设计补充说明、招标文件、政府相关文件及规范等其它资料，满足验收要求","1．部位：户内装饰单开门\n2．门套材料种类、规格：橡木饰面门套(WD-A01 )\n3．门楣材料种类、规格：橡木饰面门楣（WD-A01）\n4．门扇饰面材质种类、规格：橡木饰面门(WD-A01)，包含20mm细木工板成品门芯、20*40mm热镀锌方通钢龙骨等\n5．五金品种、规格：包含但不限于门碰、暗藏五金合页、消音胶条、门把手等五金件\n6．按最大外框尺寸计算\n7．防护材料种类：所有装修用木材均应进行防火、防腐处理\n8．施工时面层颜色、样式由甲方和设计单位确认选样，投标人综合考虑报价，加工、切割、折边、损耗等不另计，中标后综合单价不予调整\n9．未尽事宜详见设计图纸、图集、设计补充说明、招标文件、政府相关文件及规范等其它资料，满足验收要求","m2",33.72,null,{"v":0,"d":"0.00"}]
[116,"7#","工程名称：7#-JS套房","5","010801001003","木质门","1．部位：户内装饰移门\n2．门套材料种类、规格：12mm阻燃夹板，局部双层+1.2mm古铜拉丝不锈钢（MT-A01）\n3．门楣材料种类、规格：热镀锌钢龙骨（不分规格型号，投标人综合考虑）+12mm阻燃夹板+橡木饰面（WD-A01）\n4．门扇饰面材质种类、规格：橡木饰面（WD-A01），包含成品门芯板、1.2mm黄古铜不锈钢（MT-A01）等\n5．五金品种、规格：包含但不限于液压门轴、滑轨、消音胶条、门把手等五金件\n6．按外框尺寸计算\n7．防护材料种类：所有装修用木材均应进行防火、防腐处理\n8．施工时面层颜色、样式由甲方和设计单位确认选样，投标人综合考虑报价，加工、切割、折边、损耗等不另计，中标后综合单价不予调整\n9．未尽事宜详见设计图纸、图集、设计补充说明、招标文件、政府相关文件及规范等其它资料，满足验收要求","1．部位：户内装饰移门\n2．门套材料种类、规格：局部双层+1.2mm古铜拉丝不锈钢（MT-A01）\n3．门楣材料种类、规格：橡木饰面（WD-A01）\n4．门扇饰面材质种类、规格：橡木饰面（WD-A01），包含成品门芯板、1.2mm黄古铜不锈钢（MT-A01）等\n5．五金品种、规格：包含但不限于液压门轴、滑轨、消音胶条、门把手等五金件\n6．按外框尺寸计算\n7．防护材料种类：所有装修用木材均应进行防火、防腐处理\n8．施工时面层颜色、样式由甲方和设计单位确认选样，投标人综合考虑报价，加工、切割、折边、损耗等不另计，中标后综合单价不予调整\n9．未尽事宜详见设计图纸、图集、设计补充说明、招标文件、政府相关文件及规范等其它资料，满足验收要求","m2",{"v":9.6,"d":"9.60"},null,{"v":0,"d":"0.00"}]
[117,"7#","工程名称：7#-JS套房","48","011207001001","墙面装饰板","1. 部位：客厅、卧室、玄关、衣帽间等\n2. 基层材料种类、规格：9mm阻燃夹板+10mm成品木挂条调平，局部加固综合考虑\n3．面层材料品种、规格、颜色：12mm橡木饰面（WD-A01）\n4．防护材料种类：所有装修用木材均应进行防火、防腐处理\n5．施工时面层颜色、样式由甲方和设计单位确认选样，加工、排版损耗等不另计，投标人综合考虑报价，中标后综合单价不予调整\n6．未尽事宜详见设计图纸、图集、设计补充说明、招标文件、政府相关文件及规范等其它资料，满足验收要求","1. 部位：客厅、卧室、玄关、衣帽间等\n3．面层材料品种、规格、颜色：12mm橡木饰面（WD-A01）\n4．防护材料种类：所有装修用木材均应进行防火、防腐处理\n5．施工时面层颜色、样式由甲方和设计单位确认选样，加工、排版损耗等不另计，投标人综合考虑报价，中标后综合单价不予调整\n6．未尽事宜详见设计图纸、图集、设计补充说明、招标文件、政府相关文件及规范等其它资料，满足验收要求","m2",397.86,null,{"v":0,"d":"0.00"}]
[118,"7#","工程名称：7#-JS套房","49","011207001002","墙面装饰板","1. 部位：玄关、客厅及电视背景墙、卧室等\n2. 龙骨材料种类、规格：热镀锌钢龙骨（不分规格型号，投标人综合考虑）\n3. 基层材料种类、规格：9mm阻燃夹板\n4．面层材料品种、规格、颜色：12mm橡木饰面（WD-A01）\n5．防护材料种类：所有装修用木材均应进行防火、防腐处理\n6．施工时面层颜色、样式由甲方和设计单位确认选样，加工、排版损耗等不另计，投标人综合考虑报价，中标后综合单价不予调整\n7．未尽事宜详见设计图纸、图集、设计补充说明、招标文件、政府相关文件及规范等其它资料，满足验收要求","1. 部位：玄关、客厅及电视背景墙、卧室等\n4．面层材料品种、规格、颜色：12mm橡木饰面（WD-A01）\n5．防护材料种类：所有装修用木材均应进行防火、防腐处理\n6．施工时面层颜色、样式由甲方和设计单位确认选样，加工、排版损耗等不另计，投标人综合考虑报价，中标后综合单价不予调整\n7．未尽事宜详见设计图纸、图集、设计补充说明、招标文件、政府相关文件及规范等其它资料，满足验收要求","m2",51.18,null,{"v":0,"d":"0.00"}]
[119,"7#","工程名称：7#-JS套房","50","011207001003","墙面装饰板","1. 部位：客厅沙发背景隔断等\n2. 龙骨材料种类、规格：热镀锌钢龙骨（不分规格型号，投标人综合考虑）\n3．面层材料品种、规格、颜色：12mm橡木饰面（WD-A01）\n4．防护材料种类：所有装修用木材均应进行防火、防腐处理\n5．施工时面层颜色、样式由甲方和设计单位确认选样，加工、排版损耗等不另计，投标人综合考虑报价，中标后综合单价不予调整\n6．未尽事宜详见设计图纸、图集、设计补充说明、招标文件、政府相关文件及规范等其它资料，满足验收要求","1. 部位：客厅沙发背景隔断等\n3．面层材料品种、规格、颜色：12mm橡木饰面（WD-A01）\n4．防护材料种类：所有装修用木材均应进行防火、防腐处理\n5．施工时面层颜色、样式由甲方和设计单位确认选样，加工、排版损耗等不另计，投标人综合考虑报价，中标后综合单价不予调整\n6．未尽事宜详见设计图纸、图集、设计补充说明、招标文件、政府相关文件及规范等其它资料，满足验收要求","m2",12.39,null,{"v":0,"d":"0.00"}]
[120,"7#","工程名称：7#-JS套房","58","011207001010","墙面装饰板","1. 部位：电视背景墙等\n2. 龙骨材料种类、规格：30*20mm木龙骨，阻燃处理\n3. 面层材料品种、规格、颜色：12mm实木黑色漆面板（WD-A04）\n4. 防护材料种类：所有装修用木材均应进行防火、防腐处理\n5．施工时面层颜色、样式由甲方和设计单位确认选样，加工、排版损耗等不另计，投标人综合考虑报价，中标后综合单价不予调整\n6．未尽事宜详见设计图纸、图集、设计补充说明、招标文件、政府相关文件及规范等其它资料，满足验收要求","1. 部位：电视背景墙等\n3. 面层材料品种、规格、颜色：12mm实木黑色漆面板（WD-A04）\n4. 防护材料种类：所有装修用木材均应进行防火、防腐处理\n5．施工时面层颜色、样式由甲方和设计单位确认选样，加工、排版损耗等不另计，投标人综合考虑报价，中标后综合单价不予调整\n6．未尽事宜详见设计图纸、图集、设计补充说明、招标文件、政府相关文件及规范等其它资料，满足验收要求","m2",27.75,null,{"v":0,"d":"0.00"}]
[121,"7#","工程名称：7#-JS套房","64","011207001015","墙面装饰板","1. 部位：床头背景墙\n2. 龙骨材料种类、规格：热镀锌钢龙骨（不分规格型号，投标人综合考虑）\n3. 基层材料种类、规格：9mm阻燃夹板+9.5mm石膏板\n4. 面层材料品种、规格、颜色：一边12mm橡木饰面（WD-A01）+一边墙布饰面（WC-A04A）+1.2mm黄古铜不锈钢(MT-A01)+40*70不锈钢方通等\n5. 防护材料种类：所有装修用木材均应进行防火、防腐处理\n6．施工时面层颜色、样式由甲方和设计单位确认选样，加工、排版损耗等不另计，投标人综合考虑报价，中标后综合单价不予调整\n7．未尽事宜详见设计图纸、图集、设计补充说明、招标文件、政府相关文件及规范等其它资料，满足验收要求","1. 部位：床头背景墙\n4. 面层材料品种、规格、颜色：一边12mm橡木饰面（WD-A01）\n5. 防护材料种类：所有装修用木材均应进行防火、防腐处理\n6．施工时面层颜色、样式由甲方和设计单位确认选样，加工、排版损耗等不另计，投标人综合考虑报价，中标后综合单价不予调整\n7．未尽事宜详见设计图纸、图集、设计补充说明、招标文件、政府相关文件及规范等其它资料，满足验收要求","m2",15.12,null,{"v":0,"d":"0.00"}]
[122,"7#","工程名称：7#-JS套房","91","WB011501001001","玄关柜","1. 部位：玄关\n2. 柜体尺寸：1100*600*3000mm\n3. 龙骨材料种类、规格：热镀锌钢龙骨（不分规格型号，投标人综合考虑）、30*30mm木方(阻燃处理)等\n4．基层板材料种类、规格：9mm阻燃夹板、15mm阻燃夹板、9mm硅酸钙板等基层类型及厚度综合考虑\n5．材料种类：12mm厚橡木饰面（WD-A01）、墙布饰面(WC-A04)、1.2mm黄古铜不锈钢（MT-A01）、橡木饰面抽屉柜、不锈钢门把手、夹丝玻璃（GL-A01）等\n6．五金种类、规格：单价包含挂衣杆、五金合页、抽屉滑轨、阻尼隔振胶垫、暗藏灯槽等\n7．按照立面投影面积计算\n8．防护材料种类：所有装修用木材均应进行防火、防腐处理\n9．施工时面层颜色、样式由甲方和设计单位确认选样，加工、排版损耗等不另计，投标人综合考虑报价，中标后综合单价不予调整\n10．未尽事宜详见设计图纸、图集、设计补充说明、招标文件、政府相关文件及规范等其它资料，满足验收要求","1. 部位：玄关\n2. 柜体尺寸：1100*600*3000mm\n5．材料种类：12mm厚橡木饰面（WD-A01）1.2mm黄古铜不锈钢（MT-A01）、橡木饰面抽屉柜、不锈钢门把手、夹丝玻璃（GL-A01）等\n6．五金种类、规格：单价包含挂衣杆、五金合页、抽屉滑轨、阻尼隔振胶垫、暗藏灯槽等\n7．按照立面投影面积计算\n8．防护材料种类：所有装修用木材均应进行防火、防腐处理\n9．施工时面层颜色、样式由甲方和设计单位确认选样，加工、排版损耗等不另计，投标人综合考虑报价，中标后综合单价不予调整\n10．未尽事宜详见设计图纸、图集、设计补充说明、招标文件、政府相关文件及规范等其它资料，满足验收要求","m2",{"v":9,"d":"9.00"},null,{"v":0,"d":"0.00"}]
[123,"7#","工程名称：7#-JS套房","92","WB011501001002","衣帽间衣柜","1. 部位：衣帽间\n2. 柜体尺寸：650mm*3000mm*长（具体详见设计文件）\n3. 龙骨材质种类、规格：热镀锌钢龙骨（不分规格型号，投标人综合考虑）、木龙骨等\n4．基层板材质种类、规格：基层类型及厚度综合考虑，具体详见设计文件\n5．材料种类：12mm橡木饰面面（WD-A01）、墙布饰面(WC-A04)、夹丝玻璃（GL-A01）、星白大理石台面（ST-02）、古铜拉丝不锈钢（MT-A01），橡木饰面抽屉柜、1.2mm黄古铜不锈钢踢脚线(MT-A01)等\n6．五金种类、规格：单价包含挂衣杆、五金合页、抽屉滑轨、阻尼隔振胶垫、暗藏灯槽等\n7．按照立面投影面积计算\n8．防护材料种类：所有装修用木材均应进行防火、防腐处理\n9．施工时面层颜色、样式由甲方和设计单位确认选样，加工、排版损耗等不另计，投标人综合考虑报价，中标后综合单价不予调整\n10．未尽事宜详见设计图纸、图集、设计补充说明、招标文件、政府相关文件及规范等其它资料，满足验收要求","1. 部位：衣帽间\n2. 柜体尺寸：650mm*3000mm*长（具体详见设计文件）\n5．材料种类：12mm橡木饰面面（WD-A01）、夹丝玻璃（GL-A01）、星白大理石台面（ST-02）、古铜拉丝不锈钢（MT-A01），橡木饰面抽屉柜等\n6．五金种类、规格：单价包含挂衣杆、五金合页、抽屉滑轨、阻尼隔振胶垫、暗藏灯槽等\n7．按照立面投影面积计算\n8．防护材料种类：所有装修用木材均应进行防火、防腐处理\n9．施工时面层颜色、样式由甲方和设计单位确认选样，加工、排版损耗等不另计，投标人综合考虑报价，中标后综合单价不予调整\n10．未尽事宜详见设计图纸、图集、设计补充说明、招标文件、政府相关文件及规范等其它资料，满足验收要求","m2",42.72,null,{"v":0,"d":"0.00"}]
[124,"7#","工程名称：7#-JS套房","93","WB011501001003","洗手台+柜体","1. 部位：卫生间\n2．规格：长1200mm*宽600mm*高850mm\n3．龙骨材料种类、规格：局部热镀锌钢龙骨（不分规格型号，投标人综合考虑）\n4．面层材料品种、规格、颜色：18mm鎏金白玉大理石(ST-A04)台面及挡水条、橡木饰面柜体及橡木饰面隔板（WD-A01 ）、局部1.2mm黄古铜不锈钢(MT-A01)装饰嵌条、踢脚线及包边，单价包含灯槽成型等\n5. 所有石材材料在施工前须做六面防护处理,石材结晶，以保证防水、防腐、防污、防油\n6. 施工时面层颜色、样式由甲方和设计单位确认选样，倒角，磨边、切割等加工费不另计，投标人综合考虑报价，中标后综合单价不予调整\n7. 未尽事宜详见设计图纸、图集、设计补充说明、招标文件、政府相关文件及规范等其它资料，满足验收要求","1. 部位：卫生间\n2．规格：长1200mm*宽600mm*高850mm\n4．面层材料品种、规格、颜色：橡木饰面柜体及橡木饰面隔板（WD-A01 ）、局部1.2mm黄古铜不锈钢(MT-A01)装饰嵌条及包边，单价包含灯槽成型等\n6. 施工时面层颜色、样式由甲方和设计单位确认选样，倒角，磨边、切割等加工费不另计，投标人综合考虑报价，中标后综合单价不予调整\n7. 未尽事宜详见设计图纸、图集、设计补充说明、招标文件、政府相关文件及规范等其它资料，满足验收要求","m",{"v":9.6,"d":"9.60"},null,{"v":0,"d":"0.00"}]
[125,"7#","工程名称：7#-K标间客房","3","010801001001","入户门","1．部位：标间客房\n2．门室内侧外框尺寸：1180*3000mm，室外侧外框尺寸详见设计文件\n3．门套材料种类、规格：室内侧15mm阻燃夹板+橡木饰面门套(WD-A01 )，过道侧1.2mm黄古铜不锈钢线条(MT-A01)\n4．门楣材料种类、规格：15mm阻燃夹板+9mm阻燃夹板+橡木饰面门楣（WD-A01）\n5．门扇材料种类、规格：橡木饰面入户门(WD-A01)，包含30mm细木工板成品门芯、20*40mm热镀锌方通钢龙骨，双面9mm阻燃夹板，外侧1.2mm黄古铜不锈钢（防指纹）线条(MT-A01)\n6．五金品种、规格：包含但不限于凸轮暗藏闭门器、门底挡尘条、猫眼、防盗链、门碰、暗藏五金合页(选型一侧三副)、消音胶条等五金件,门锁此处报价不考虑\n7．防护材料种类：所有装修用木材均应进行防火、防腐处理\n8．施工时面层颜色、样式由甲方和设计单位确认选样，投标人综合考虑报价，加工、切割、折边、损耗等不另计，中标后综合单价不予调整\n9．未尽事宜详见设计图纸、图集、设计补充说明、招标文件、政府相关文件及规范等其它资料，满足验收要求","1．部位：标间客房\n2．门室内侧外框尺寸：1180*3000mm，室外侧外框尺寸详见设计文件\n3．门套材料种类、规格：橡木饰面门套(WD-A01 )\n4．门楣材料种类、规格：橡木饰面门楣（WD-A01）\n5．门扇材料种类、规格：橡木饰面入户门(WD-A01)，包含30mm细木工板成品门芯、20*40mm热镀锌方通钢龙骨，双面9mm阻燃夹板\n6．五金品种、规格：包含但不限于凸轮暗藏闭门器、门底挡尘条、猫眼、防盗链、门碰、暗藏五金合页(选型一侧三副)、消音胶条等五金件,门锁此处报价不考虑\n7．防护材料种类：所有装修用木材均应进行防火、防腐处理\n8．施工时面层颜色、样式由甲方和设计单位确认选样，投标人综合考虑报价，加工、切割、折边、损耗等不另计，中标后综合单价不予调整\n9．未尽事宜详见设计图纸、图集、设计补充说明、招标文件、政府相关文件及规范等其它资料，满足验收要求","樘",{"v":20,"d":"20.00"},null,{"v":0,"d":"0.00"}]
[126,"7#","工程名称：7#-K标间客房","47","011207001002","墙面装饰板","1．部位：客房区床背景\n2．龙骨材料种类、规格：50mm竖向天地龙骨\n3．基层材料种类、规格：12mm阻燃夹板\n4．面层材料品种、规格、颜色：漆画(WD-A03)\n5．防护材料种类：所有装修用木材均应进行防火、防腐处理\n6．施工时面层颜色、样式由甲方和设计单位确认选样，加工、排版损耗等不另计，投标人综合考虑报价，中标后综合单价不予调整\n7．未尽事宜详见设计图纸、图集、设计补充说明、招标文件、政府相关文件及规范等其它资料，满足验收要求。","1．部位：客房区床背景\n4．面层材料品种、规格、颜色：漆画(WD-A03)\n5．防护材料种类：所有装修用木材均应进行防火、防腐处理\n6．施工时面层颜色、样式由甲方和设计单位确认选样，加工、排版损耗等不另计，投标人综合考虑报价，中标后综合单价不予调整\n7．未尽事宜详见设计图纸、图集、设计补充说明、招标文件、政府相关文件及规范等其它资料，满足验收要求。","m2",55.09,null,{"v":0,"d":"0.00"}]
[127,"7#","工程名称：7#-K标间客房","49","011207001004","墙面装饰板","1．部位：客房区床头柜处\n2．龙骨材料种类、规格：50mm竖向天地龙骨\n3．基层材料种类、规格：12mm阻燃夹板\n4．面层材料品种、规格、颜色：橡木饰面（WD-A01）\n5．防护材料种类：所有装修用木材均应进行防火、防腐处理\n6．施工时面层颜色、样式由甲方和设计单位确认选样，加工、排版损耗等不另计，投标人综合考虑报价，中标后综合单价不予调整\n7．未尽事宜详见设计图纸、图集、设计补充说明、招标文件、政府相关文件及规范等其它资料，满足验收要求","1．部位：客房区床头柜处\n4．面层材料品种、规格、颜色：橡木饰面（WD-A01）\n5．防护材料种类：所有装修用木材均应进行防火、防腐处理\n6．施工时面层颜色、样式由甲方和设计单位确认选样，加工、排版损耗等不另计，投标人综合考虑报价，中标后综合单价不予调整\n7．未尽事宜详见设计图纸、图集、设计补充说明、招标文件、政府相关文件及规范等其它资料，满足验收要求","m2",20.48,null,{"v":0,"d":"0.00"}]
[128,"7#","工程名称：7#-K标间客房","52","011207001007","墙面装饰板","1．部位：床头背景墙、电视背景墙下部\n2．龙骨材料种类、规格：热镀锌钢龙骨（不分规格型号，投标人综合考虑）\n3．基层材料种类、规格：9mm阻燃夹板\n4．面层材料品种、规格、颜色：12mm橡木饰面（WD-A01）\n5．防护材料种类：所有装修用木材均应进行防火、防腐处理\n6．施工时面层颜色、样式由甲方和设计单位确认选样，加工、排版损耗等不另计，投标人综合考虑报价，中标后综合单价不予调整\n7．未尽事宜详见设计图纸、图集、设计补充说明、招标文件、政府相关文件及规范等其它资料，满足验收要求","1．部位：床头背景墙、电视背景墙下部\n4．面层材料品种、规格、颜色：12mm橡木饰面（WD-A01）\n5．防护材料种类：所有装修用木材均应进行防火、防腐处理\n6．施工时面层颜色、样式由甲方和设计单位确认选样，加工、排版损耗等不另计，投标人综合考虑报价，中标后综合单价不予调整\n7．未尽事宜详见设计图纸、图集、设计补充说明、招标文件、政府相关文件及规范等其它资料，满足验收要求","m2",67.78,null,{"v":0,"d":"0.00"}]
[129,"7#","工程名称：7#-K标间客房","53","011207001008","墙面装饰板","1．部位：电视背景墙\n2．龙骨材料种类、规格：50mm竖向天地龙骨\n3．基层材料种类、规格：9mm阻燃夹板\n4．面层材料品种、规格、颜色：22mm橡木饰面格栅（WD-A01A），造型15mm宽*10mm深\n5．防护材料种类：所有装修用木材均应进行防火、防腐处理\n6．施工时面层颜色、样式由甲方和设计单位确认选样，加工、排版损耗等不另计，投标人综合考虑报价，中标后综合单价不予调整\n7．未尽事宜详见设计图纸、图集、设计补充说明、招标文件、政府相关文件及规范等其它资料，满足验收要求","1．部位：电视背景墙\n4．面层材料品种、规格、颜色：22mm橡木饰面格栅（WD-A01A），造型15mm宽*10mm深\n5．防护材料种类：所有装修用木材均应进行防火、防腐处理\n6．施工时面层颜色、样式由甲方和设计单位确认选样，加工、排版损耗等不另计，投标人综合考虑报价，中标后综合单价不予调整\n7．未尽事宜详见设计图纸、图集、设计补充说明、招标文件、政府相关文件及规范等其它资料，满足验收要求","m2",36.37,null,{"$f":"+J131*K131","v":{"v":0,"d":"0.00"}}]
[130,"7#","工程名称：7#-K标间客房","54","011207001009","墙面装饰板","1．部位：电视背景墙\n2．龙骨材料种类、规格：热镀锌钢龙骨（不分规格型号，投标人综合考虑）\n3．基层材料种类、规格：9mm阻燃夹板\n4．面层材料品种、规格、颜色：22mm橡木饰面格栅（WD-A01A），造型15mm宽*10mm深\n5．防护材料种类：所有装修用木材均应进行防火、防腐处理\n6．施工时面层颜色、样式由甲方和设计单位确认选样，加工、排版损耗等不另计，投标人综合考虑报价，中标后综合单价不予调整\n7．未尽事宜详见设计图纸、图集、设计补充说明、招标文件、政府相关文件及规范等其它资料，满足验收要求","1．部位：电视背景墙\n4．面层材料品种、规格、颜色：22mm橡木饰面格栅（WD-A01A），造型15mm宽*10mm深\n5．防护材料种类：所有装修用木材均应进行防火、防腐处理\n6．施工时面层颜色、样式由甲方和设计单位确认选样，加工、排版损耗等不另计，投标人综合考虑报价，中标后综合单价不予调整\n7．未尽事宜详见设计图纸、图集、设计补充说明、招标文件、政府相关文件及规范等其它资料，满足验收要求","m2",{"v":6.5,"d":"6.50"},null,{"v":0,"d":"0.00"}]
[131,"7#","工程名称：7#-K标间客房","55","011207001010","墙面装饰板","1．部位：电视背景墙上部、卧室窗侧墙面\n2．龙骨材料种类、规格：50mm竖向天地龙骨\n3．基层材料种类、规格：9mm阻燃夹板\n4．面层材料品种、规格、颜色：12mm橡木饰面（WD-A01）\n5．防护材料种类：所有装修用木材均应进行防火、防腐处理\n6．施工时面层颜色、样式由甲方和设计单位确认选样，加工、排版损耗等不另计，投标人综合考虑报价，中标后综合单价不予调整\n7．未尽事宜详见设计图纸、图集、设计补充说明、招标文件、政府相关文件及规范等其它资料，满足验收要求","1．部位：电视背景墙上部、卧室窗侧墙面\n4．面层材料品种、规格、颜色：12mm橡木饰面（WD-A01）\n5．防护材料种类：所有装修用木材均应进行防火、防腐处理\n6．施工时面层颜色、样式由甲方和设计单位确认选样，加工、排版损耗等不另计，投标人综合考虑报价，中标后综合单价不予调整\n7．未尽事宜详见设计图纸、图集、设计补充说明、招标文件、政府相关文件及规范等其它资料，满足验收要求","m2",204.51,null,{"v":0,"d":"0.00"}]
[132,"7#","工程名称：7#-K标间客房","57","011207001012","墙面装饰板","1．部位：卧室墙面\n2．基层材料种类、规格：9mm硅酸钙板，局部硅酸钙板加固报价综合考虑\n3．面层材料品种、规格、颜色：12mm橡木饰面（WD-A01）\n4．防护材料种类：所有装修用木材均应进行防火、防腐处理\n5．施工时面层颜色、样式由甲方和设计单位确认选样，加工、排版损耗等不另计，投标人综合考虑报价，中标后综合单价不予调整\n6．未尽事宜详见设计图纸、图集、设计补充说明、招标文件、政府相关文件及规范等其它资料，满足验收要求","1．部位：卧室墙面\n3．面层材料品种、规格、颜色：12mm橡木饰面（WD-A01）\n4．防护材料种类：所有装修用木材均应进行防火、防腐处理\n5．施工时面层颜色、样式由甲方和设计单位确认选样，加工、排版损耗等不另计，投标人综合考虑报价，中标后综合单价不予调整\n6．未尽事宜详见设计图纸、图集、设计补充说明、招标文件、政府相关文件及规范等其它资料，满足验收要求","m2",68.58,null,{"v":0,"d":"0.00"}]
[133,"7#","工程名称：7#-K标间客房","58","011207001013","墙面装饰板","1．部位：卧室、玄关墙面\n2．基层材料种类、规格：9mm阻燃夹板+10mm肋条，局部阻燃夹板加固报价综合考虑\n3．面层材料品种、规格、颜色：12mm橡木饰面（WD-A01）\n4．防护材料种类：所有装修用木材均应进行防火、防腐处理\n5．施工时面层颜色、样式由甲方和设计单位确认选样，加工、排版损耗等不另计，投标人综合考虑报价，中标后综合单价不予调整\n6．未尽事宜详见设计图纸、图集、设计补充说明、招标文件、政府相关文件及规范等其它资料，满足验收要求","1．部位：卧室、玄关墙面\n3．面层材料品种、规格、颜色：12mm橡木饰面（WD-A01）\n4．防护材料种类：所有装修用木材均应进行防火、防腐处理\n5．施工时面层颜色、样式由甲方和设计单位确认选样，加工、排版损耗等不另计，投标人综合考虑报价，中标后综合单价不予调整\n6．未尽事宜详见设计图纸、图集、设计补充说明、招标文件、政府相关文件及规范等其它资料，满足验收要求","m2",142.91,null,{"v":0,"d":"0.00"}]
[134,"7#","工程名称：7#-K标间客房","80","ZB010101001003","橡木饰面书桌","1．部位：卧室电视背景墙\n2．书桌尺寸：390mm宽*180mm高*4870mm长，局部宽尺寸不一致报价综合考虑\n3．龙骨材料种类、规格：热镀锌钢龙骨（不分规格型号，投标人综合考虑）\n4．基层材料质种类、规格：9mm阻燃夹板\n5．面层材料品种、规格、颜色：12mm橡木饰面（WD-A01）\n6．防护材料种类：所有装修用木材均应进行防火、防腐处理\n7．施工时面层颜色、样式由甲方和设计单位确认选样，加工、排版损耗等不另计，投标人综合考虑报价，中标后综合单价不予调整\n8．未尽事宜详见设计图纸、图集、设计补充说明、招标文件、政府相关文件及规范等其它资料，满足验收要求","1．部位：卧室电视背景墙\n2．书桌尺寸：390mm宽*180mm高*4870mm长，局部宽尺寸不一致报价综合考虑\n5．面层材料品种、规格、颜色：12mm橡木饰面（WD-A01）\n6．防护材料种类：所有装修用木材均应进行防火、防腐处理\n7．施工时面层颜色、样式由甲方和设计单位确认选样，加工、排版损耗等不另计，投标人综合考虑报价，中标后综合单价不予调整\n8．未尽事宜详见设计图纸、图集、设计补充说明、招标文件、政府相关文件及规范等其它资料，满足验收要求","m",103.24,null,{"v":0,"d":"0.00"}]
[135,"7#","工程名称：7#-K标间客房","81","WB011501001001","玄关柜","1．规格：长3840mm*宽600mm*高3000mm\n2．龙骨材质种类、规格：热镀锌钢龙骨（不分规格型号，投标人综合考虑）、30*30mm木方/50*30mm木方等(阻燃处理)\n3．基层板材质种类、规格：9mm阻燃夹板、12mm阻燃夹板等基层类型及厚度综合考虑\n4．柜体材料种类、规格：12mm橡木饰面（WD-A01）柜体、布艺硬包饰面(WC-A03)、橡木饰面抽屉柜+6mm超白钢化玻璃、不锈钢门把手、不锈钢踢脚线(MT-A01)等；中间区域柜顶400*900mm木工板加固至少能承重30KG报价综合考虑\n5. 柜门材质种类、规格：木工板基层+12mm橡木饰面（WD-A01），具体柜门由专业厂家二次深化\n6．五金种类、规格：单价包含挂衣杆、雨伞架、U型报纸槽、暗藏合页、抽屉滑轨、阻尼隔振胶垫、烟斗铰链、柜门锁、灯槽成型等\n7．按立面投影面积计算\n8．防护材料种类：所有装修用木材均应进行防火、防腐处理\n9．施工时面层颜色、样式由甲方和设计单位确认选样，加工、排版损耗等不另计，投标人综合考虑报价，中标后综合单价不予调整\n10．未尽事宜详见设计图纸、图集、设计补充说明、招标文件、政府相关文件及规范等其它资料，满足验收要求","1．规格：长3840mm*宽600mm*高3000mm\n4．柜体材料种类、规格：12mm橡木饰面（WD-A01）柜体、橡木饰面抽屉柜+6mm超白钢化玻璃、不锈钢门把手等；中间区域柜顶400*900mm木工板加固至少能承重30KG报价综合考虑\n5. 柜门材质种类、规格：木工板基层+12mm橡木饰面（WD-A01），具体柜门由专业厂家二次深化\n6．五金种类、规格：单价包含挂衣杆、雨伞架、U型报纸槽、暗藏合页、抽屉滑轨、阻尼隔振胶垫、烟斗铰链、柜门锁、灯槽成型等\n7．按立面投影面积计算\n8．防护材料种类：所有装修用木材均应进行防火、防腐处理\n9．施工时面层颜色、样式由甲方和设计单位确认选样，加工、排版损耗等不另计，投标人综合考虑报价，中标后综合单价不予调整\n10．未尽事宜详见设计图纸、图集、设计补充说明、招标文件、政府相关文件及规范等其它资料，满足验收要求","m2",243.59,null,{"v":0,"d":"0.00"}]
[136,"7#","工程名称：7#-K标间客房","83","WB011501001003","洗手台+柜体","1. 部位：卫生间\n2．规格：长1700mm*宽600mm*高870mm\n3．龙骨材料种类、规格：局部热镀锌钢龙骨（不分规格型号，投标人综合考虑）\n4．面层材料品种、规格、颜色：18mm星白大理石(ST-A02)台面及挡水条、橡木饰面柜体及橡木饰面隔板（WD-A01 ）、局部1.2mm厚黄古铜不锈钢(MT-A01)装饰嵌条、踢脚线及包边，单价包含灯槽成型等\n5. 所有石材材料在施工前须做六面防护处理,石材结晶，以保证防水、防腐、防污、防油\n6. 施工时面层颜色、样式由甲方和设计单位确认选样，倒角，磨边、切割等加工费不另计，投标人综合考虑报价，中标后综合单价不予调整\n7. 未尽事宜详见设计图纸、图集、设计补充说明、招标文件、政府相关文件及规范等其它资料，满足验收要求","1. 部位：卫生间\n2．规格：长1700mm*宽600mm*高870mm\n4．面层材料品种、规格、颜色：橡木饰面柜体及橡木饰面隔板（WD-A01 ）、局部1.2mm厚黄古铜不锈钢(MT-A01)装饰嵌条及包边，单价包含灯槽成型等\n6. 施工时面层颜色、样式由甲方和设计单位确认选样，倒角，磨边、切割等加工费不另计，投标人综合考虑报价，中标后综合单价不予调整\n7. 未尽事宜详见设计图纸、图集、设计补充说明、招标文件、政府相关文件及规范等其它资料，满足验收要求","m",36.04,null,{"v":0,"d":"0.00"}]
[137,"7#","工程名称：7#-K标间客房","86","011502002001","木质装饰线","1．部位：电视背景墙处\n2．线条材料品种、规格、颜色：30*30mm橡木饰面半圆弧装饰线条（WD-A01 ）\n3．施工时面层颜色、样式由甲方和设计单位确认选样，加工、排版损耗等不另计，投标人综合考虑报价，中标后综合单价不予调整\n4．未尽事宜详见设计图纸、图集、设计补充说明、招标文件、政府相关文件及规范等其它资料，满足验收要求","1．部位：电视背景墙处\n2．线条材料品种、规格、颜色：30*30mm橡木饰面半圆弧装饰线条（WD-A01 ）\n3．施工时面层颜色、样式由甲方和设计单位确认选样，加工、排版损耗等不另计，投标人综合考虑报价，中标后综合单价不予调整\n4．未尽事宜详见设计图纸、图集、设计补充说明、招标文件、政府相关文件及规范等其它资料，满足验收要求","m",187.62,null,{"v":0,"d":"0.00"}]
[138,"7#","工程名称：7#-K标间客房","87","011502002002","木质装饰线","1．部位：窗边哑口套处、玄关阳角处等\n2．线条材料品种、规格、颜色：50*50mm橡木饰面弧形装饰线条（WD-A01 ）\n3．施工时面层颜色、样式由甲方和设计单位确认选样，加工、排版损耗等不另计，投标人综合考虑报价，中标后综合单价不予调整\n4．未尽事宜详见设计图纸、图集、设计补充说明、招标文件、政府相关文件及规范等其它资料，满足验收要求","1．部位：窗边哑口套处、玄关阳角处等\n2．线条材料品种、规格、颜色：50*50mm橡木饰面弧形装饰线条（WD-A01 ）\n3．施工时面层颜色、样式由甲方和设计单位确认选样，加工、排版损耗等不另计，投标人综合考虑报价，中标后综合单价不予调整\n4．未尽事宜详见设计图纸、图集、设计补充说明、招标文件、政府相关文件及规范等其它资料，满足验收要求","m",{"v":312.7,"d":"312.70"},null,{"v":0,"d":"0.00"}]
["总价（元）",{"$nulls":10},{"$f":"SUM(L43:L140)","v":{"v":0,"d":"0.00"}}]